Workbook

Sheet Fronpage
G1: Version | H1: v2.1 | I1: 2015-03-04
C11: LCOE model
C12: - Official Megavind open-source methodology for calculating LCOE for a wind project
C13: - The model is developed in cooperation with ESP Consulting
C25: Questions, comments and improvement suggestions can be sent to ek@windpower.org
C26: All received suggestions will be logged. At least once per year all logged suggestions will be reviewed and it will
C27: be decided whether a new model version is to be made based on the approved suggestions.

Sheet Terminology
B1: Terminology and definitions
B3: Terminology
B4: Abbreviation | C4: Description
B5: LCOE | C5: Levelized Cost of Energy
B6: DEVEX | C6: Development Expenditure
B7: CAPEX | C7: Capital Expenditure
B8: OPEX | C8: Operational Expenditure
B9: ABEX | C9: Abandonment Expenditure
B10: WACC | C10: Weighted Average Cost of Capital
B11: AEP | C11: Annual Energy Production
B12: FID | C12: Final Investment Decision
B13: MW | C13: Megawatt
B14: kWh | C14: Kilowatt hours
B15: MWh | C15: Megawatt hours
B16: GWh | C16: Gigawatt hours
B17: TWh | C17: Terawatt hours
B18: DKK | C18: Danish kroner
B19: GBP | C19: British pounds
B20: EUR | C20: Euro
B23: Number formats
B24: Cell type | C24: Format
B25: Number (with one decimal point) | C25: * #,##0.0;* -#,##0.0;* "-";@
B26: Text | C26: Text
B27: Percent | C27: Percent, 1-2 decimals
B28: Date | C28: dd-mm-yyyy
B30: Title convention
B33: Level 1 title: | C33: White bold text with black background RGB(255,255,255)
B34: Level 2 title: | C34: White bold text with blue background RGB(31,73,125)
B35: Level 3 title: | C35: Sort fed skrift med grå baggrund RGB(221,217,196)
B36: Level 3 title: | C36: White bold text with light blue background RGB(184,204,228)
B38: For column descriptions | C38: Black text with grey background RBG(221,217,196)
B40: Cell types
C41: Filled out | D41: No value/input
B43: Admin - hard coded/calculated: | C43: Text black RGB(0,0,0) | D43: n.a.
B44: User - mandatory input: | C44: Text light blue RGB(79,129,189)
B45: User - optional input: | C45: Text light blue RGB(79,129,189)
B47: Note: All text is default font Calibri with font size 10

Sheet Changelog
B1: Changelog
B3: ID | C3: Version | D3: Date | E3: Responsible | F3: Change | G3: Comment
B4: =ROW()-4 -> 0 | C4: v2.0 | D4: 2014-12-05 | E4: MSS | F4: Version 2.0 released
B5: =ROW()-4 -> 1 | C5: v2.1 | D5: 2015-03-04 | E5: MSS | F5: Standard cost category names | G5: Implemented for for cost input method manual detailed
B6: 2
B7: 3
B8: 4
B9: 5
B10: 6
B11: 7
B12: 8
B13: 9
B14: 10
B15: 11
B16: 12
B17: 13
B18: 14
B19: 15
B20: 16
B21: 17
B22: 18
B23: 19
B24: 20
B25: 21
B26: 22
B27: 23
B28: 24
B29: 25
B30: 26
B31: 27
B32: 28
B33: 29

Sheet Input
B1: Input
B3: Column descriptions for timeseries data
B4: Parameter | E4: Unit | F4: Price basis | G4: Value | H4: 2008 | I4: =H4+1 -> 2009 | J4: =I4+1 -> 2010 | K4: 2011 | L4: 2012 | M4: 2013 | N4: 2014 | O4: 2015 | P4: 2016 | Q4: 2017 | R4: 2018 | S4: 2019 | T4: 2020 | U4: 2021 | V4: 2022 | W4: 2023 | X4: 2024 | Y4: 2025 | Z4: 2026 | AA4: 2027 | AB4: 2028 | AC4: 2029 | AD4: 2030 | AE4: 2031 | AF4: 2032 | AG4: 2033 | AH4: 2034 | AI4: 2035 | AJ4: 2036 | AK4: 2037 | AL4: 2038 | AM4: 2039 | AN4: 2040 | AO4: 2041 | AP4: 2042 | AQ4: 2043 | AR4: 2044 | AS4: 2045 | AT4: 2046 | AU4: 2047 | AV4: 2048 | AW4: 2049 | AX4: 2050
B6: General
B7: Price basis input | G7: N
B8: Price basis output | G8: R2014
B10: WACC (nominal, after tax) | G10: 0.08
B11: ="Inflation " & I_FX -> Inflation EUR | G11: 0.02
B12: Currency | G12: EUR
B14: Design
B15: Park capacity | E15: MW | G15: =I_WTGNo*I_WTGMW -> 400
B16: Turbine model | G16: 4MW offshore turbine
B17: Turbine - number | G17: 100
B18: Turbine - capacity | E18: MW | G18: 4
B19: Turbine - rotor diameter | E19: m | G19: 120
B21: Project timeline
B22: FID year | G22: 2012
B24: Costs
B25: Cost input method | G25: Manual simple
B27: Earnings
B28: Earnings input method | G28: % of investment
B29: Park lifetime earnings (EBITDA), % of investment | G29: 2.5
B31: Tax
B32: Corporate tax rate | G32: 0.245
B33: Tax depreciation method | G33: Declining balance
B34: Tax depreciation rate (decl. bal.) | E34: % | G34: 0.2
B36: Production
B37: Net AEP | E37: GWh | G37: =SUM(H37:AX37) -> 39423.81295 | H37: 0 | I37: 0 | J37: 0 | K37: 0 | L37: 0 | M37: 0 | N37: 755.6230815 | O37: 1576.952518 | P37: 1576.952518 | Q37: 1576.952518 | R37: 1576.952518 | S37: 1576.952518 | T37: 1576.952518 | U37: 1576.952518 | V37: 1576.952518 | W37: 1576.952518 | X37: 1576.952518 | Y37: 1576.952518 | Z37: 1576.952518 | AA37: 1576.952518 | AB37: 1576.952518 | AC37: 1576.952518 | AD37: 1576.952518 | AE37: 1576.952518 | AF37: 1576.952518 | AG37: 1576.952518 | AH37: 1576.952518 | AI37: 1576.952518 | AJ37: 1576.952518 | AK37: 1576.952518 | AL37: 1576.952518 | AM37: 821.3294365 | AN37: 0 | AO37: 0 | AP37: 0 | AQ37: 0 | AR37: 0 | AS37: 0 | AT37: 0 | AU37: 0 | AV37: 0 | AW37: 0 | AX37: 0
B39: Earnings (manual method)
B40: Earnings (EBITDA) | E40: =I_FX & "m" -> EURm | F40: =I_PB_Input -> N | G40: =SUM(H40:AX40) -> 0
B42: Costs (simple method)
B43: DEVEX | E43: =I_FX & "m" -> EURm | F43: =I_PB_Input -> N | G43: =SUM(H43:AX43) -> 20 | H43: 0 | I43: 6.666666667 | J43: 6.666666667 | K43: 6.666666667 | L43: 0 | M43: 0 | N43: 0 | O43: 0 | P43: 0 | Q43: 0 | R43: 0 | S43: 0 | T43: 0 | U43: 0 | V43: 0 | W43: 0 | X43: 0 | Y43: 0 | Z43: 0 | AA43: 0 | AB43: 0 | AC43: 0 | AD43: 0 | AE43: 0 | AF43: 0 | AG43: 0 | AH43: 0 | AI43: 0 | AJ43: 0 | AK43: 0 | AL43: 0 | AM43: 0 | AN43: 0 | AO43: 0 | AP43: 0 | AQ43: 0 | AR43: 0 | AS43: 0 | AT43: 0 | AU43: 0 | AV43: 0 | AW43: 0 | AX43: 0
B44: CAPEX | E44: =I_FX & "m" -> EURm | F44: =I_PB_Input -> N | G44: =SUM(H44:AX44) -> 1520 | H44: 0 | I44: 0 | J44: 0 | K44: 0 | L44: 304 | M44: 532 | N44: 684 | O44: 0 | P44: 0 | Q44: 0 | R44: 0 | S44: 0 | T44: 0 | U44: 0 | V44: 0 | W44: 0 | X44: 0 | Y44: 0 | Z44: 0 | AA44: 0 | AB44: 0 | AC44: 0 | AD44: 0 | AE44: 0 | AF44: 0 | AG44: 0 | AH44: 0 | AI44: 0 | AJ44: 0 | AK44: 0 | AL44: 0 | AM44: 0 | AN44: 0 | AO44: 0 | AP44: 0 | AQ44: 0 | AR44: 0 | AS44: 0 | AT44: 0 | AU44: 0 | AV44: 0 | AW44: 0 | AX44: 0
B45: OPEX | E45: =I_FX & "m" -> EURm | F45: =I_PB_Input -> N | G45: =SUM(H45:AX45) -> 1028.386343 | H45: 0 | I45: 0 | J45: 0 | K45: 0 | L45: 0 | M45: 0 | N45: 0 | O45: 16.73474628 | P45: 34.13888241 | Q45: 34.82166005 | R45: 35.51809326 | S45: 36.22845512 | T45: 36.95302422 | U45: 37.69208471 | V45: 38.4459264 | W45: 39.21484493 | X45: 39.99914183 | Y45: 40.79912466 | Z45: 41.61510716 | AA45: 42.4474093 | AB45: 43.29635749 | AC45: 44.16228464 | AD45: 45.04553033 | AE45: 45.94644094 | AF45: 46.86536975 | AG45: 47.80267715 | AH45: 48.75873069 | AI45: 49.73390531 | AJ45: 50.72858341 | AK45: 51.74315508 | AL45: 52.77801818 | AM45: 26.91678927 | AN45: 0 | AO45: 0 | AP45: 0 | AQ45: 0 | AR45: 0 | AS45: 0 | AT45: 0 | AU45: 0 | AV45: 0 | AW45: 0 | AX45: 0
B46: ABEX | E46: =I_FX & "m" -> EURm | F46: =I_PB_Input -> N | G46: =SUM(H46:AX46) -> 126.5663213 | H46: 0 | I46: 0 | J46: 0 | K46: 0 | L46: 0 | M46: 0 | N46: 0 | O46: 0 | P46: 0 | Q46: 0 | R46: 0 | S46: 0 | T46: 0 | U46: 0 | V46: 0 | W46: 0 | X46: 0 | Y46: 0 | Z46: 0 | AA46: 0 | AB46: 0 | AC46: 0 | AD46: 0 | AE46: 0 | AF46: 0 | AG46: 0 | AH46: 0 | AI46: 0 | AJ46: 0 | AK46: 0 | AL46: 0 | AM46: 126.5663213 | AN46: 0 | AO46: 0 | AP46: 0 | AQ46: 0 | AR46: 0 | AS46: 0 | AT46: 0 | AU46: 0 | AV46: 0 | AW46: 0 | AX46: 0
B48: Costs (detailed method)
B49: DEVEX
B50: Site development | E50: =I_FX & "m" -> EURm | F50: =I_PB_Input -> N | G50: =SUM(H50:AX50) -> 0
B51: Design/dev. - Support Structures | E51: EURm | F51: N | G51: =SUM(H51:AX51) -> 0
B52: Design/dev. - Wind turbines | E52: EURm | F52: N | G52: 0
B53: Design/dev. - Export cable | E53: EURm | F53: N | G53: 0
B54: Design/dev. - Onshore substation | E54: EURm | F54: N | G54: 0
B55: Design/dev. - Offshore substation | E55: EURm | F55: N | G55: 0
B56: Design/dev. - Array cable | E56: EURm | F56: N | G56: 0
B57: DEVEX category8 | E57: EURm | F57: N | G57: 0
B58: DEVEX category9 | E58: EURm | F58: N | G58: 0
B59: DEVEX category10 | E59: EURm | F59: N | G59: 0
B60: Total | E60: EURm | F60: N | G60: =SUM(H60:AX60) -> 0 | H60: =SUM(H50:H59) -> 0 | I60: =SUM(I50:I59) -> 0 | J60: 0 | K60: 0 | L60: 0 | M60: 0 | N60: 0 | O60: 0 | P60: 0 | Q60: 0 | R60: 0 | S60: 0 | T60: 0 | U60: 0 | V60: 0 | W60: 0 | X60: 0 | Y60: 0 | Z60: 0 | AA60: 0 | AB60: 0 | AC60: 0 | AD60: 0 | AE60: 0 | AF60: 0 | AG60: 0 | AH60: 0 | AI60: 0 | AJ60: 0 | AK60: 0 | AL60: 0 | AM60: 0 | AN60: 0 | AO60: 0 | AP60: 0 | AQ60: 0 | AR60: 0 | AS60: 0 | AT60: 0 | AU60: 0 | AV60: 0 | AW60: 0 | AX60: 0
B62: CAPEX
B63: Project management | E63: =I_FX & "m" -> EURm | F63: =I_PB_Input -> N | G63: =SUM(H63:AX63) -> 0
B64: Production - Support Structures | E64: EURm | F64: N | G64: =SUM(H64:AX64) -> 0
B65: Production - Wind turbines | E65: EURm | F65: N | G65: =SUM(H65:AX65) -> 0
B66: Production - Export cable | E66: EURm | F66: N | G66: =SUM(H66:AX66) -> 0
B67: Production - Onshore substation | E67: EURm | F67: N | G67: =SUM(H67:AX67) -> 0
B68: Production - Offshore substation | E68: EURm | F68: N | G68: =SUM(H68:AX68) -> 0
B69: Production - Array cable | E69: EURm | F69: N | G69: =SUM(H69:AX69) -> 0
B70: Installation - Support Structures | E70: EURm | F70: N | G70: 0
B71: Installation - Wind turbines | E71: EURm | F71: N | G71: 0
B72: Installation - Export cable | E72: EURm | F72: N | G72: 0
B73: Installation - Onshore substation | E73: EURm | F73: N | G73: 0
B74: Installation - Offshore substation | E74: EURm | F74: N | G74: 0
B75: Installation - Array cable | E75: EURm | F75: N | G75: 0
B76: CAPEX category14 | E76: EURm | F76: N | G76: 0
B77: CAPEX category15 | E77: EURm | F77: N | G77: 0
B78: Total | E78: EURm | F78: N | G78: 0 | H78: =SUM(H63:H77) -> 0 | I78: 0 | J78: 0 | K78: 0 | L78: 0 | M78: 0 | N78: 0 | O78: 0 | P78: 0 | Q78: 0 | R78: 0 | S78: 0 | T78: 0 | U78: 0 | V78: 0 | W78: 0 | X78: 0 | Y78: 0 | Z78: 0 | AA78: 0 | AB78: 0 | AC78: 0 | AD78: 0 | AE78: 0 | AF78: 0 | AG78: 0 | AH78: 0 | AI78: 0 | AJ78: 0 | AK78: 0 | AL78: 0 | AM78: 0 | AN78: 0 | AO78: 0 | AP78: 0 | AQ78: 0 | AR78: 0 | AS78: 0 | AT78: 0 | AU78: 0 | AV78: 0 | AW78: 0 | AX78: 0
B80: OPEX
B81: Operations management | E81: =I_FX & "m" -> EURm | F81: =I_PB_Input -> N | G81: =SUM(H81:AX81) -> 0
B82: O&M - Support Structures | E82: EURm | F82: N | G82: =SUM(H82:AX82) -> 0
B83: O&M - Wind turbines | E83: EURm | F83: N | G83: 0
B84: O&M - Export cable | E84: EURm | F84: N | G84: 0
B85: O&M - Onshore substation | E85: EURm | F85: N | G85: 0
B86: O&M - Offshore substation | E86: EURm | F86: N | G86: 0
B87: O&M - Array cable | E87: EURm | F87: N | G87: 0
B88: OPEX category8 | E88: EURm | F88: N | G88: 0
B89: OPEX category9 | E89: EURm | F89: N | G89: 0
B90: OPEX category10 | E90: EURm | F90: N | G90: 0
B91: OPEX category11 | E91: EURm | F91: N | G91: 0
B92: OPEX category12 | E92: EURm | F92: N | G92: 0
B93: OPEX category13 | E93: EURm | F93: N | G93: 0
B94: OPEX category14 | E94: EURm | F94: N | G94: 0
B95: OPEX category15 | E95: EURm | F95: N | G95: 0
B96: Total | E96: EURm | F96: N | G96: 0 | H96: =SUM(H81:H95) -> 0 | I96: 0 | J96: 0 | K96: 0 | L96: 0 | M96: 0 | N96: 0 | O96: 0 | P96: 0 | Q96: 0 | R96: 0 | S96: 0 | T96: 0 | U96: 0 | V96: 0 | W96: 0 | X96: 0 | Y96: 0 | Z96: 0 | AA96: 0 | AB96: 0 | AC96: 0 | AD96: 0 | AE96: 0 | AF96: 0 | AG96: 0 | AH96: 0 | AI96: 0 | AJ96: 0 | AK96: 0 | AL96: 0 | AM96: 0 | AN96: 0 | AO96: 0 | AP96: 0 | AQ96: 0 | AR96: 0 | AS96: 0 | AT96: 0 | AU96: 0 | AV96: 0 | AW96: 0 | AX96: 0
B98: ABEX
B99: Decommissioning | E99: =I_FX & "m" -> EURm | F99: =I_PB_Input -> N | G99: =SUM(H99:AX99) -> 0
B100: ABEX category2 | E100: EURm | F100: N | G100: 0
B101: ABEX category3 | E101: EURm | F101: N | G101: 0
B102: ABEX category4 | E102: EURm | F102: N | G102: 0
B103: ABEX category5 | E103: EURm | F103: N | G103: 0
B104: Total | E104: EURm | F104: N | G104: 0 | H104: =SUM(H99:H103) -> 0 | I104: =SUM(I99:I103) -> 0 | J104: 0 | K104: 0 | L104: 0 | M104: 0 | N104: 0 | O104: 0 | P104: 0 | Q104: 0 | R104: 0 | S104: 0 | T104: 0 | U104: 0 | V104: 0 | W104: 0 | X104: 0 | Y104: 0 | Z104: 0 | AA104: 0 | AB104: 0 | AC104: 0 | AD104: 0 | AE104: 0 | AF104: 0 | AG104: 0 | AH104: 0 | AI104: 0 | AJ104: 0 | AK104: 0 | AL104: 0 | AM104: 0 | AN104: 0 | AO104: 0 | AP104: 0 | AQ104: 0 | AR104: 0 | AS104: 0 | AT104: 0 | AU104: 0 | AV104: 0 | AW104: 0 | AX104: 0

Sheet Calculation
B1: Calculations
B3: Column descriptions for timeseries data
B4: Parameter | E4: Unit | F4: Price basis | G4: Value | H4: 2008 | I4: =H4+1 -> 2009 | J4: =I4+1 -> 2010 | K4: 2011 | L4: 2012 | M4: 2013 | N4: 2014 | O4: 2015 | P4: 2016 | Q4: 2017 | R4: 2018 | S4: 2019 | T4: 2020 | U4: 2021 | V4: 2022 | W4: 2023 | X4: 2024 | Y4: 2025 | Z4: 2026 | AA4: 2027 | AB4: 2028 | AC4: 2029 | AD4: 2030 | AE4: 2031 | AF4: 2032 | AG4: 2033 | AH4: 2034 | AI4: 2035 | AJ4: 2036 | AK4: 2037 | AL4: 2038 | AM4: 2039 | AN4: 2040 | AO4: 2041 | AP4: 2042 | AQ4: 2043 | AR4: 2044 | AS4: 2045 | AT4: 2046 | AU4: 2047 | AV4: 2048 | AW4: 2049 | AX4: 2050
B6: Multipliers
B7: Discounting
B8: WACC annual factor, nominal | H8: =1+H35 -> 1.08 | I8: 1.08 | J8: 1.08 | K8: 1.08 | L8: 1.08 | M8: 1.08 | N8: 1.08 | O8: 1.08 | P8: 1.08 | Q8: 1.08 | R8: 1.08 | S8: 1.08 | T8: 1.08 | U8: 1.08 | V8: 1.08 | W8: 1.08 | X8: 1.08 | Y8: 1.08 | Z8: 1.08 | AA8: 1.08 | AB8: 1.08 | AC8: 1.08 | AD8: 1.08 | AE8: 1.08 | AF8: 1.08 | AG8: 1.08 | AH8: 1.08 | AI8: 1.08 | AJ8: 1.08 | AK8: 1.08 | AL8: 1.08 | AM8: 1.08 | AN8: 1.08 | AO8: 1.08 | AP8: 1.08 | AQ8: 1.08 | AR8: 1.08 | AS8: 1.08 | AT8: 1.08 | AU8: 1.08 | AV8: 1.08 | AW8: 1.08 | AX8: 1.08
B9: WACC annual factor, real | H9: =1+H36 -> 1.058823529 | I9: =1+I36 -> 1.058823529 | J9: 1.058823529 | K9: 1.058823529 | L9: 1.058823529 | M9: 1.058823529 | N9: 1.058823529 | O9: 1.058823529 | P9: 1.058823529 | Q9: 1.058823529 | R9: 1.058823529 | S9: 1.058823529 | T9: 1.058823529 | U9: 1.058823529 | V9: 1.058823529 | W9: 1.058823529 | X9: 1.058823529 | Y9: 1.058823529 | Z9: 1.058823529 | AA9: 1.058823529 | AB9: 1.058823529 | AC9: 1.058823529 | AD9: 1.058823529 | AE9: 1.058823529 | AF9: 1.058823529 | AG9: 1.058823529 | AH9: 1.058823529 | AI9: 1.058823529 | AJ9: 1.058823529 | AK9: 1.058823529 | AL9: 1.058823529 | AM9: 1.058823529 | AN9: 1.058823529 | AO9: 1.058823529 | AP9: 1.058823529 | AQ9: 1.058823529 | AR9: 1.058823529 | AS9: 1.058823529 | AT9: 1.058823529 | AU9: 1.058823529 | AV9: 1.058823529 | AW9: 1.058823529 | AX9: 1.058823529
B10: Discount factor, nominal | H10: =IF(H$4=I_FIDYear,1,IF(H$4<I_FIDYear,PRODUCT(OFFSET(I$8,0,0,1,ABS(I_FIDYear-H$4))),PRODUCT(OFFSET(I$8,0,I_FIDYear-H$4,1,ABS(I_FIDYear-H$4)))^(-1))) -> 1.36048896 | I10: 1.259712 | J10: 1.1664 | K10: 1.08 | L10: 1 | M10: 0.9259259259 | N10: 0.8573388203 | O10: 0.793832241 | P10: 0.7350298528 | Q10: 0.680583197 | R10: 0.6301696269 | S10: 0.5834903953 | T10: 0.5402688845 | U10: 0.5002489671 | V10: 0.4631934881 | W10: 0.4288828593 | X10: 0.3971137586 | Y10: 0.3676979247 | Z10: 0.3404610414 | AA10: 0.315241705 | AB10: 0.2918904676 | AC10: 0.2702689514 | AD10: 0.2502490291 | AE10: 0.231712064 | AF10: 0.2145482074 | AG10: 0.1986557476 | AH10: 0.183940507 | AI10: 0.1703152843 | AJ10: 0.1576993373 | AK10: 0.1460179049 | AL10: 0.1352017638 | AM10: 0.1251868183 | AN10: 0.1159137207 | AO10: 0.1073275192 | AP10: 0.09937733255 | AQ10: 0.09201604866 | AR10: 0.08520004505 | AS10: 0.0788889306 | AT10: 0.07304530612 | AU10: 0.0676345427 | AV10: 0.06262457657 | AW10: 0.05798571905 | AX10: 0.0536904806
B11: Discount factor, real | H11: =IF(H$4=I_FIDYear,1,IF(H$4<I_FIDYear,PRODUCT(OFFSET(I$9,0,0,1,ABS(I_FIDYear-H$4))),PRODUCT(OFFSET(I$9,0,I_FIDYear-H$4,1,ABS(I_FIDYear-H$4)))^(-1))) -> 1.256881503 | I11: 1.187054753 | J11: 1.121107266 | K11: 1.058823529 | L11: 1 | M11: 0.9444444444 | N11: 0.8919753086 | O11: 0.8424211248 | P11: 0.7956199512 | Q11: 0.7514188428 | R11: 0.7096733516 | S11: 0.6702470542 | T11: 0.6330111068 | U11: 0.5978438231 | V11: 0.5646302774 | W11: 0.5332619286 | X11: 0.5036362659 | Y11: 0.4756564734 | Z11: 0.4492311137 | AA11: 0.4242738296 | AB11: 0.4007030613 | AC11: 0.3784417801 | AD11: 0.3574172368 | AE11: 0.3375607236 | AF11: 0.3188073501 | AG11: 0.3010958307 | AH11: 0.2843682845 | AI11: 0.2685700465 | AJ11: 0.2536494883 | AK11: 0.2395578501 | AL11: 0.2262490806 | AM11: 0.2136796873 | AN11: 0.2018085935 | AO11: 0.190597005 | AP11: 0.1800082825 | AQ11: 0.1700078224 | AR11: 0.1605629434 | AS11: 0.1516427798 | AT11: 0.143218181 | AU11: 0.1352616153 | AV11: 0.1277470812 | AW11: 0.1206500211 | AX11: 0.1139472421
B13: Price basis (PB)
B14: PB input | G14: =I_PB_Input -> N
B15: PB output | G15: =I_PB_Output -> R2014
B16: PB FID | G16: ="R" & I_FIDYear -> R2012
B18: Price basis conversion
B19: ="Price basis factor, PB Input --> N" -> Price basis factor, PB Input --> N | F19: =I_PB_Input -> N | G19: N | H19: =DWIA_PBC(1,H$4,$F19,$G19,$H$34:$AX$34,2008) -> 1 | I19: 1 | J19: 1 | K19: 1 | L19: 1 | M19: 1 | N19: 1 | O19: 1 | P19: 1 | Q19: 1 | R19: =DWIA_PBC(1,R$4,$F19,$G19,$H$34:$AX$34,2008) -> 1 | S19: 1 | T19: 1 | U19: 1 | V19: 1 | W19: 1 | X19: 1 | Y19: 1 | Z19: 1 | AA19: 1 | AB19: =DWIA_PBC(1,AB$4,$F19,$G19,$H$34:$AX$34,2008) -> 1 | AC19: 1 | AD19: 1 | AE19: 1 | AF19: 1 | AG19: 1 | AH19: 1 | AI19: 1 | AJ19: 1 | AK19: 1 | AL19: =DWIA_PBC(1,AL$4,$F19,$G19,$H$34:$AX$34,2008) -> 1 | AM19: 1 | AN19: 1 | AO19: 1 | AP19: 1 | AQ19: 1 | AR19: 1 | AS19: 1 | AT19: 1 | AU19: 1 | AV19: 1 | AW19: 1 | AX19: 1
B20: ="Price basis factor, PB Input --> PB Output" -> Price basis factor, PB Input --> PB Output | F20: =I_PB_Input -> N | G20: =I_PB_Output -> R2014 | H20: 1.126162419 | I20: 1.104080803 | J20: 1.08243216 | K20: 1.061208 | L20: 1.0404 | M20: 1.02 | N20: 1 | O20: 0.9803921569 | P20: 0.9611687812 | Q20: 0.9423223345 | R20: 0.923845426 | S20: 0.9057308098 | T20: 0.8879713822 | U20: 0.8705601786 | V20: 0.8534903712 | W20: 0.8367552659 | X20: 0.8203482999 | Y20: 0.8042630391 | Z20: 0.7884931756 | AA20: 0.7730325251 | AB20: 0.7578750246 | AC20: 0.74301473 | AD20: 0.7284458137 | AE20: 0.7141625625 | AF20: 0.700159375 | AG20: 0.6864307598 | AH20: 0.6729713331 | AI20: 0.6597758168 | AJ20: 0.6468390361 | AK20: 0.6341559177 | AL20: 0.6217214879 | AM20: 0.6095308705 | AN20: 0.5975792848 | AO20: 0.585862044 | AP20: 0.5743745529 | AQ20: 0.5631123068 | AR20: 0.552070889 | AS20: 0.5412459696 | AT20: 0.5306333035 | AU20: 0.5202287289 | AV20: 0.5100281656 | AW20: 0.5000276134 | AX20: 0.4902231504
B21: ="Price basis factor, PB Input --> PB FID" -> Price basis factor, PB Input --> PB FID | F21: =I_PB_Input -> N | G21: =C_PB_FID -> R2012 | H21: 1.08243216 | I21: 1.061208 | J21: 1.0404 | K21: 1.02 | L21: 1 | M21: 0.9803921569 | N21: 0.9611687812 | O21: 0.9423223345 | P21: 0.923845426 | Q21: 0.9057308098 | R21: 0.8879713822 | S21: 0.8705601786 | T21: 0.8534903712 | U21: 0.8367552659 | V21: 0.8203482999 | W21: 0.8042630391 | X21: 0.7884931756 | Y21: 0.7730325251 | Z21: 0.7578750246 | AA21: 0.74301473 | AB21: 0.7284458137 | AC21: 0.7141625625 | AD21: 0.700159375 | AE21: 0.6864307598 | AF21: 0.6729713331 | AG21: 0.6597758168 | AH21: 0.6468390361 | AI21: 0.6341559177 | AJ21: 0.6217214879 | AK21: 0.6095308705 | AL21: 0.5975792848 | AM21: 0.585862044 | AN21: 0.5743745529 | AO21: 0.5631123068 | AP21: 0.552070889 | AQ21: 0.5412459696 | AR21: 0.5306333035 | AS21: 0.5202287289 | AT21: 0.5100281656 | AU21: 0.5000276134 | AV21: 0.4902231504 | AW21: 0.4806109317 | AX21: 0.471187188
B22: ="Price basis factor, N --> PB Input" -> Price basis factor, N --> PB Input | F22: N | G22: =I_PB_Input -> N | H22: =1/H19 -> 1 | I22: =1/I19 -> 1 | J22: 1 | K22: 1 | L22: 1 | M22: 1 | N22: 1 | O22: 1 | P22: 1 | Q22: 1 | R22: 1 | S22: 1 | T22: 1 | U22: 1 | V22: 1 | W22: 1 | X22: 1 | Y22: 1 | Z22: 1 | AA22: 1 | AB22: 1 | AC22: 1 | AD22: 1 | AE22: 1 | AF22: 1 | AG22: 1 | AH22: 1 | AI22: 1 | AJ22: 1 | AK22: 1 | AL22: 1 | AM22: 1 | AN22: 1 | AO22: 1 | AP22: 1 | AQ22: 1 | AR22: 1 | AS22: 1 | AT22: 1 | AU22: 1 | AV22: 1 | AW22: 1 | AX22: 1
B23: ="Price basis factor, N --> PB Output" -> Price basis factor, N --> PB Output | F23: N | G23: =I_PB_Output -> R2014 | H23: =DWIA_PBC(1,H$4,$F23,$G23,$H$34:$AX$34,2008) -> 1.126162419 | I23: 1.104080803 | J23: 1.08243216 | K23: 1.061208 | L23: 1.0404 | M23: 1.02 | N23: 1 | O23: 0.9803921569 | P23: 0.9611687812 | Q23: 0.9423223345 | R23: =DWIA_PBC(1,R$4,$F23,$G23,$H$34:$AX$34,2008) -> 0.923845426 | S23: 0.9057308098 | T23: 0.8879713822 | U23: 0.8705601786 | V23: 0.8534903712 | W23: 0.8367552659 | X23: 0.8203482999 | Y23: 0.8042630391 | Z23: 0.7884931756 | AA23: 0.7730325251 | AB23: =DWIA_PBC(1,AB$4,$F23,$G23,$H$34:$AX$34,2008) -> 0.7578750246 | AC23: 0.74301473 | AD23: 0.7284458137 | AE23: 0.7141625625 | AF23: 0.700159375 | AG23: 0.6864307598 | AH23: 0.6729713331 | AI23: 0.6597758168 | AJ23: 0.6468390361 | AK23: 0.6341559177 | AL23: =DWIA_PBC(1,AL$4,$F23,$G23,$H$34:$AX$34,2008) -> 0.6217214879 | AM23: 0.6095308705 | AN23: 0.5975792848 | AO23: 0.585862044 | AP23: 0.5743745529 | AQ23: 0.5631123068 | AR23: 0.552070889 | AS23: 0.5412459696 | AT23: 0.5306333035 | AU23: 0.5202287289 | AV23: 0.5100281656 | AW23: 0.5000276134 | AX23: 0.4902231504
B24: ="Price basis factor, N --> PB FID" -> Price basis factor, N --> PB FID | F24: N | G24: =C_PB_FID -> R2012 | H24: 1.08243216 | I24: 1.061208 | J24: 1.0404 | K24: 1.02 | L24: 1 | M24: 0.9803921569 | N24: 0.9611687812 | O24: 0.9423223345 | P24: 0.923845426 | Q24: 0.9057308098 | R24: 0.8879713822 | S24: 0.8705601786 | T24: 0.8534903712 | U24: 0.8367552659 | V24: 0.8203482999 | W24: 0.8042630391 | X24: 0.7884931756 | Y24: 0.7730325251 | Z24: 0.7578750246 | AA24: 0.74301473 | AB24: 0.7284458137 | AC24: 0.7141625625 | AD24: 0.700159375 | AE24: 0.6864307598 | AF24: 0.6729713331 | AG24: 0.6597758168 | AH24: 0.6468390361 | AI24: 0.6341559177 | AJ24: 0.6217214879 | AK24: 0.6095308705 | AL24: 0.5975792848 | AM24: 0.585862044 | AN24: 0.5743745529 | AO24: 0.5631123068 | AP24: 0.552070889 | AQ24: 0.5412459696 | AR24: 0.5306333035 | AS24: 0.5202287289 | AT24: 0.5100281656 | AU24: 0.5000276134 | AV24: 0.4902231504 | AW24: 0.4806109317 | AX24: 0.471187188
B25: ="Price basis factor, PB Output --> N" -> Price basis factor, PB Output --> N | F25: =I_PB_Output -> R2014 | G25: N | H25: =1/H23 -> 0.8879713822 | I25: =1/I23 -> 0.9057308098 | J25: 0.923845426 | K25: 0.9423223345 | L25: 0.9611687812 | M25: 0.9803921569 | N25: 1 | O25: 1.02 | P25: 1.0404 | Q25: 1.061208 | R25: 1.08243216 | S25: 1.104080803 | T25: 1.126162419 | U25: 1.148685668 | V25: 1.171659381 | W25: 1.195092569 | X25: 1.21899442 | Y25: 1.243374308 | Z25: 1.268241795 | AA25: 1.29360663 | AB25: 1.319478763 | AC25: 1.345868338 | AD25: 1.372785705 | AE25: 1.400241419 | AF25: 1.428246248 | AG25: 1.456811173 | AH25: 1.485947396 | AI25: 1.515666344 | AJ25: 1.545979671 | AK25: 1.576899264 | AL25: 1.608437249 | AM25: 1.640605994 | AN25: 1.673418114 | AO25: 1.706886477 | AP25: 1.741024206 | AQ25: 1.77584469 | AR25: 1.811361584 | AS25: 1.847588816 | AT25: 1.884540592 | AU25: 1.922231404 | AV25: 1.960676032 | AW25: 1.999889553 | AX25: 2.039887344
B26: ="Price basis factor, PB FID --> N" -> Price basis factor, PB FID --> N | F26: =C_PB_FID -> R2012 | G26: N | H26: =1/H24 -> 0.923845426 | I26: =1/I24 -> 0.9423223345 | J26: 0.9611687812 | K26: 0.9803921569 | L26: 1 | M26: 1.02 | N26: 1.0404 | O26: 1.061208 | P26: 1.08243216 | Q26: 1.104080803 | R26: 1.126162419 | S26: 1.148685668 | T26: 1.171659381 | U26: 1.195092569 | V26: 1.21899442 | W26: 1.243374308 | X26: 1.268241795 | Y26: 1.29360663 | Z26: 1.319478763 | AA26: 1.345868338 | AB26: 1.372785705 | AC26: 1.400241419 | AD26: 1.428246248 | AE26: 1.456811173 | AF26: 1.485947396 | AG26: 1.515666344 | AH26: 1.545979671 | AI26: 1.576899264 | AJ26: 1.608437249 | AK26: 1.640605994 | AL26: 1.673418114 | AM26: 1.706886477 | AN26: 1.741024206 | AO26: 1.77584469 | AP26: 1.811361584 | AQ26: 1.847588816 | AR26: 1.884540592 | AS26: 1.922231404 | AT26: 1.960676032 | AU26: 1.999889553 | AV26: 2.039887344 | AW26: 2.080685091 | AX26: 2.122298792
B27: ="Price basis factor, PB FID --> PB Output" -> Price basis factor, PB FID --> PB Output | G27: =DWIA_PBC(1,2008,C_PB_FID,I_PB_Output,$H$34:$AX$34,2008) -> 1.0404
B29: Flags and counters
B30: Flags
B31: Operational year | G31: =SUM(H31:AX31) -> 25 | H31: =IF(H52>0,1,0) -> 0 | I31: =IF(I52>0,1,0) -> 0 | J31: 0 | K31: 0 | L31: 0 | M31: 0 | N31: 0 | O31: 1 | P31: 1 | Q31: 1 | R31: 1 | S31: 1 | T31: 1 | U31: 1 | V31: 1 | W31: 1 | X31: 1 | Y31: 1 | Z31: 1 | AA31: 1 | AB31: 1 | AC31: 1 | AD31: 1 | AE31: 1 | AF31: 1 | AG31: 1 | AH31: 1 | AI31: 1 | AJ31: 1 | AK31: 1 | AL31: 1 | AM31: 1 | AN31: 0 | AO31: 0 | AP31: 0 | AQ31: 0 | AR31: 0 | AS31: 0 | AT31: 0 | AU31: 0 | AV31: 0 | AW31: 0 | AX31: 0
B33: Financial
B34: ="Inflation " & I_FX -> Inflation EUR | E34: % | H34: =I_Inflation -> 0.02 | I34: 0.02 | J34: 0.02 | K34: 0.02 | L34: 0.02 | M34: 0.02 | N34: 0.02 | O34: 0.02 | P34: 0.02 | Q34: 0.02 | R34: 0.02 | S34: 0.02 | T34: 0.02 | U34: 0.02 | V34: 0.02 | W34: 0.02 | X34: 0.02 | Y34: 0.02 | Z34: 0.02 | AA34: 0.02 | AB34: 0.02 | AC34: 0.02 | AD34: 0.02 | AE34: 0.02 | AF34: 0.02 | AG34: 0.02 | AH34: 0.02 | AI34: 0.02 | AJ34: 0.02 | AK34: 0.02 | AL34: 0.02 | AM34: 0.02 | AN34: 0.02 | AO34: 0.02 | AP34: 0.02 | AQ34: 0.02 | AR34: 0.02 | AS34: 0.02 | AT34: 0.02 | AU34: 0.02 | AV34: 0.02 | AW34: 0.02 | AX34: 0.02
B35: WACC (nominal, after tax) | E35: % | H35: =I_WACC -> 0.08 | I35: 0.08 | J35: 0.08 | K35: 0.08 | L35: 0.08 | M35: 0.08 | N35: 0.08 | O35: 0.08 | P35: 0.08 | Q35: 0.08 | R35: 0.08 | S35: 0.08 | T35: 0.08 | U35: 0.08 | V35: 0.08 | W35: 0.08 | X35: 0.08 | Y35: 0.08 | Z35: 0.08 | AA35: 0.08 | AB35: 0.08 | AC35: 0.08 | AD35: 0.08 | AE35: 0.08 | AF35: 0.08 | AG35: 0.08 | AH35: 0.08 | AI35: 0.08 | AJ35: 0.08 | AK35: 0.08 | AL35: 0.08 | AM35: 0.08 | AN35: 0.08 | AO35: 0.08 | AP35: 0.08 | AQ35: 0.08 | AR35: 0.08 | AS35: 0.08 | AT35: 0.08 | AU35: 0.08 | AV35: 0.08 | AW35: 0.08 | AX35: 0.08
B36: WACC (real, after tax) | E36: % | H36: =(1+H35)/(1+H34)-1 -> 0.05882352941 | I36: =(1+I35)/(1+I34)-1 -> 0.05882352941 | J36: 0.05882352941 | K36: 0.05882352941 | L36: 0.05882352941 | M36: 0.05882352941 | N36: 0.05882352941 | O36: 0.05882352941 | P36: 0.05882352941 | Q36: 0.05882352941 | R36: 0.05882352941 | S36: 0.05882352941 | T36: 0.05882352941 | U36: 0.05882352941 | V36: 0.05882352941 | W36: 0.05882352941 | X36: 0.05882352941 | Y36: 0.05882352941 | Z36: 0.05882352941 | AA36: 0.05882352941 | AB36: 0.05882352941 | AC36: 0.05882352941 | AD36: 0.05882352941 | AE36: 0.05882352941 | AF36: 0.05882352941 | AG36: 0.05882352941 | AH36: 0.05882352941 | AI36: 0.05882352941 | AJ36: 0.05882352941 | AK36: 0.05882352941 | AL36: 0.05882352941 | AM36: 0.05882352941 | AN36: 0.05882352941 | AO36: 0.05882352941 | AP36: 0.05882352941 | AQ36: 0.05882352941 | AR36: 0.05882352941 | AS36: 0.05882352941 | AT36: 0.05882352941 | AU36: 0.05882352941 | AV36: 0.05882352941 | AW36: 0.05882352941 | AX36: 0.05882352941
B37: Corporate tax rate | E37: % | H37: =I_CTaxRate -> 0.245 | I37: 0.245 | J37: 0.245 | K37: 0.245 | L37: 0.245 | M37: 0.245 | N37: 0.245 | O37: 0.245 | P37: 0.245 | Q37: 0.245 | R37: 0.245 | S37: 0.245 | T37: 0.245 | U37: 0.245 | V37: 0.245 | W37: 0.245 | X37: 0.245 | Y37: 0.245 | Z37: 0.245 | AA37: 0.245 | AB37: 0.245 | AC37: 0.245 | AD37: 0.245 | AE37: 0.245 | AF37: 0.245 | AG37: 0.245 | AH37: 0.245 | AI37: 0.245 | AJ37: 0.245 | AK37: 0.245 | AL37: 0.245 | AM37: 0.245 | AN37: 0.245 | AO37: 0.245 | AP37: 0.245 | AQ37: 0.245 | AR37: 0.245 | AS37: 0.245 | AT37: 0.245 | AU37: 0.245 | AV37: 0.245 | AW37: 0.245 | AX37: 0.245
B39: Production
B40: Gross AEP | E40: GWh | G40: =SUM(H40:AX40) -> 0
B41: Net AEP | E41: GWh | G41: =SUM(H41:AX41) -> 39423.81295 | H41: =Input!H37 -> 0 | I41: =Input!I37 -> 0 | J41: =Input!J37 -> 0 | K41: =Input!K37 -> 0 | L41: =Input!L37 -> 0 | M41: =Input!M37 -> 0 | N41: =Input!N37 -> 755.6230815 | O41: =Input!O37 -> 1576.952518 | P41: =Input!P37 -> 1576.952518 | Q41: =Input!Q37 -> 1576.952518 | R41: =Input!R37 -> 1576.952518 | S41: =Input!S37 -> 1576.952518 | T41: =Input!T37 -> 1576.952518 | U41: =Input!U37 -> 1576.952518 | V41: =Input!V37 -> 1576.952518 | W41: =Input!W37 -> 1576.952518 | X41: =Input!X37 -> 1576.952518 | Y41: =Input!Y37 -> 1576.952518 | Z41: =Input!Z37 -> 1576.952518 | AA41: =Input!AA37 -> 1576.952518 | AB41: =Input!AB37 -> 1576.952518 | AC41: =Input!AC37 -> 1576.952518 | AD41: =Input!AD37 -> 1576.952518 | AE41: =Input!AE37 -> 1576.952518 | AF41: =Input!AF37 -> 1576.952518 | AG41: =Input!AG37 -> 1576.952518 | AH41: =Input!AH37 -> 1576.952518 | AI41: =Input!AI37 -> 1576.952518 | AJ41: =Input!AJ37 -> 1576.952518 | AK41: =Input!AK37 -> 1576.952518 | AL41: =Input!AL37 -> 1576.952518 | AM41: =Input!AM37 -> 821.3294365 | AN41: =Input!AN37 -> 0 | AO41: =Input!AO37 -> 0 | AP41: =Input!AP37 -> 0 | AQ41: =Input!AQ37 -> 0 | AR41: =Input!AR37 -> 0 | AS41: =Input!AS37 -> 0 | AT41: =Input!AT37 -> 0 | AU41: =Input!AU37 -> 0 | AV41: =Input!AV37 -> 0 | AW41: =Input!AW37 -> 0 | AX41: =Input!AX37 -> 0
B43: Discounted
B44: Net AEP, discounted | E44: GWh | G44: =SUM(H44:AX44) -> 18696.41562 | H44: =H$41*H$11 -> 0 | I44: 0 | J44: 0 | K44: 0 | L44: 0 | M44: 0 | N44: 673.9971314 | O44: 1328.458114 | P44: 1254.654885 | Q44: 1184.951836 | R44: 1119.121179 | S44: 1056.94778 | T44: 998.2284588 | U44: 942.7713222 | V44: 890.3951376 | W44: 840.9287411 | X44: 794.2104777 | Y44: 750.0876734 | Z44: 708.416136 | AA44: 669.059684 | AB44: 631.8897015 | AC44: 596.7847181 | AD44: 563.6300115 | AE44: 532.3172331 | AF44: 502.7440535 | AG44: 474.8138283 | AH44: 448.4352823 | AI44: 423.5222111 | AJ44: 399.9931993 | AK44: 377.7713549 | AL44: 356.7840574 | AM44: 175.5014171 | AN44: 0 | AO44: 0 | AP44: 0 | AQ44: 0 | AR44: 0 | AS44: 0 | AT44: 0 | AU44: 0 | AV44: 0 | AW44: 0 | AX44: 0
B46: Costs
B47: Cash flow
B49: Per cost item (level 1)
B50: DEVEX total | E50: =I_FX & "m" -> EURm | F50: =I_PB_Input -> N | G50: =SUM(H50:AX50) -> 20 | H50: =IF(I_CostMethod="Manual simple",Input!H43,SUM(Calculation!H57:H66)) -> 0 | I50: =IF(I_CostMethod="Manual simple",Input!I43,SUM(Calculation!I57:I66)) -> 6.666666667 | J50: =IF(I_CostMethod="Manual simple",Input!J43,SUM(Calculation!J57:J66)) -> 6.666666667 | K50: =IF(I_CostMethod="Manual simple",Input!K43,SUM(Calculation!K57:K66)) -> 6.666666667 | L50: =IF(I_CostMethod="Manual simple",Input!L43,SUM(Calculation!L57:L66)) -> 0 | M50: =IF(I_CostMethod="Manual simple",Input!M43,SUM(Calculation!M57:M66)) -> 0 | N50: =IF(I_CostMethod="Manual simple",Input!N43,SUM(Calculation!N57:N66)) -> 0 | O50: =IF(I_CostMethod="Manual simple",Input!O43,SUM(Calculation!O57:O66)) -> 0 | P50: =IF(I_CostMethod="Manual simple",Input!P43,SUM(Calculation!P57:P66)) -> 0 | Q50: =IF(I_CostMethod="Manual simple",Input!Q43,SUM(Calculation!Q57:Q66)) -> 0 | R50: =IF(I_CostMethod="Manual simple",Input!R43,SUM(Calculation!R57:R66)) -> 0 | S50: =IF(I_CostMethod="Manual simple",Input!S43,SUM(Calculation!S57:S66)) -> 0 | T50: =IF(I_CostMethod="Manual simple",Input!T43,SUM(Calculation!T57:T66)) -> 0 | U50: =IF(I_CostMethod="Manual simple",Input!U43,SUM(Calculation!U57:U66)) -> 0 | V50: =IF(I_CostMethod="Manual simple",Input!V43,SUM(Calculation!V57:V66)) -> 0 | W50: =IF(I_CostMethod="Manual simple",Input!W43,SUM(Calculation!W57:W66)) -> 0 | X50: =IF(I_CostMethod="Manual simple",Input!X43,SUM(Calculation!X57:X66)) -> 0 | Y50: =IF(I_CostMethod="Manual simple",Input!Y43,SUM(Calculation!Y57:Y66)) -> 0 | Z50: =IF(I_CostMethod="Manual simple",Input!Z43,SUM(Calculation!Z57:Z66)) -> 0 | AA50: =IF(I_CostMethod="Manual simple",Input!AA43,SUM(Calculation!AA57:AA66)) -> 0 | AB50: =IF(I_CostMethod="Manual simple",Input!AB43,SUM(Calculation!AB57:AB66)) -> 0 | AC50: =IF(I_CostMethod="Manual simple",Input!AC43,SUM(Calculation!AC57:AC66)) -> 0 | AD50: =IF(I_CostMethod="Manual simple",Input!AD43,SUM(Calculation!AD57:AD66)) -> 0 | AE50: =IF(I_CostMethod="Manual simple",Input!AE43,SUM(Calculation!AE57:AE66)) -> 0 | AF50: =IF(I_CostMethod="Manual simple",Input!AF43,SUM(Calculation!AF57:AF66)) -> 0 | AG50: =IF(I_CostMethod="Manual simple",Input!AG43,SUM(Calculation!AG57:AG66)) -> 0 | AH50: =IF(I_CostMethod="Manual simple",Input!AH43,SUM(Calculation!AH57:AH66)) -> 0 | AI50: =IF(I_CostMethod="Manual simple",Input!AI43,SUM(Calculation!AI57:AI66)) -> 0 | AJ50: =IF(I_CostMethod="Manual simple",Input!AJ43,SUM(Calculation!AJ57:AJ66)) -> 0 | AK50: =IF(I_CostMethod="Manual simple",Input!AK43,SUM(Calculation!AK57:AK66)) -> 0 | AL50: =IF(I_CostMethod="Manual simple",Input!AL43,SUM(Calculation!AL57:AL66)) -> 0 | AM50: =IF(I_CostMethod="Manual simple",Input!AM43,SUM(Calculation!AM57:AM66)) -> 0 | AN50: =IF(I_CostMethod="Manual simple",Input!AN43,SUM(Calculation!AN57:AN66)) -> 0 | AO50: =IF(I_CostMethod="Manual simple",Input!AO43,SUM(Calculation!AO57:AO66)) -> 0 | AP50: =IF(I_CostMethod="Manual simple",Input!AP43,SUM(Calculation!AP57:AP66)) -> 0 | AQ50: =IF(I_CostMethod="Manual simple",Input!AQ43,SUM(Calculation!AQ57:AQ66)) -> 0 | AR50: =IF(I_CostMethod="Manual simple",Input!AR43,SUM(Calculation!AR57:AR66)) -> 0 | AS50: =IF(I_CostMethod="Manual simple",Input!AS43,SUM(Calculation!AS57:AS66)) -> 0 | AT50: =IF(I_CostMethod="Manual simple",Input!AT43,SUM(Calculation!AT57:AT66)) -> 0 | AU50: =IF(I_CostMethod="Manual simple",Input!AU43,SUM(Calculation!AU57:AU66)) -> 0 | AV50: =IF(I_CostMethod="Manual simple",Input!AV43,SUM(Calculation!AV57:AV66)) -> 0 | AW50: =IF(I_CostMethod="Manual simple",Input!AW43,SUM(Calculation!AW57:AW66)) -> 0 | AX50: =IF(I_CostMethod="Manual simple",Input!AX43,SUM(Calculation!AX57:AX66)) -> 0
B51: CAPEX total | E51: =I_FX & "m" -> EURm | F51: =I_PB_Input -> N | G51: =SUM(H51:AX51) -> 1520 | H51: =IF(I_CostMethod="Manual simple",Input!H44,SUM(Calculation!H67:H81)) -> 0 | I51: =IF(I_CostMethod="Manual simple",Input!I44,SUM(Calculation!I67:I81)) -> 0 | J51: =IF(I_CostMethod="Manual simple",Input!J44,SUM(Calculation!J67:J81)) -> 0 | K51: =IF(I_CostMethod="Manual simple",Input!K44,SUM(Calculation!K67:K81)) -> 0 | L51: =IF(I_CostMethod="Manual simple",Input!L44,SUM(Calculation!L67:L81)) -> 304 | M51: =IF(I_CostMethod="Manual simple",Input!M44,SUM(Calculation!M67:M81)) -> 532 | N51: =IF(I_CostMethod="Manual simple",Input!N44,SUM(Calculation!N67:N81)) -> 684 | O51: =IF(I_CostMethod="Manual simple",Input!O44,SUM(Calculation!O67:O81)) -> 0 | P51: =IF(I_CostMethod="Manual simple",Input!P44,SUM(Calculation!P67:P81)) -> 0 | Q51: =IF(I_CostMethod="Manual simple",Input!Q44,SUM(Calculation!Q67:Q81)) -> 0 | R51: =IF(I_CostMethod="Manual simple",Input!R44,SUM(Calculation!R67:R81)) -> 0 | S51: =IF(I_CostMethod="Manual simple",Input!S44,SUM(Calculation!S67:S81)) -> 0 | T51: =IF(I_CostMethod="Manual simple",Input!T44,SUM(Calculation!T67:T81)) -> 0 | U51: =IF(I_CostMethod="Manual simple",Input!U44,SUM(Calculation!U67:U81)) -> 0 | V51: =IF(I_CostMethod="Manual simple",Input!V44,SUM(Calculation!V67:V81)) -> 0 | W51: =IF(I_CostMethod="Manual simple",Input!W44,SUM(Calculation!W67:W81)) -> 0 | X51: =IF(I_CostMethod="Manual simple",Input!X44,SUM(Calculation!X67:X81)) -> 0 | Y51: =IF(I_CostMethod="Manual simple",Input!Y44,SUM(Calculation!Y67:Y81)) -> 0 | Z51: =IF(I_CostMethod="Manual simple",Input!Z44,SUM(Calculation!Z67:Z81)) -> 0 | AA51: =IF(I_CostMethod="Manual simple",Input!AA44,SUM(Calculation!AA67:AA81)) -> 0 | AB51: =IF(I_CostMethod="Manual simple",Input!AB44,SUM(Calculation!AB67:AB81)) -> 0 | AC51: =IF(I_CostMethod="Manual simple",Input!AC44,SUM(Calculation!AC67:AC81)) -> 0 | AD51: =IF(I_CostMethod="Manual simple",Input!AD44,SUM(Calculation!AD67:AD81)) -> 0 | AE51: =IF(I_CostMethod="Manual simple",Input!AE44,SUM(Calculation!AE67:AE81)) -> 0 | AF51: =IF(I_CostMethod="Manual simple",Input!AF44,SUM(Calculation!AF67:AF81)) -> 0 | AG51: =IF(I_CostMethod="Manual simple",Input!AG44,SUM(Calculation!AG67:AG81)) -> 0 | AH51: =IF(I_CostMethod="Manual simple",Input!AH44,SUM(Calculation!AH67:AH81)) -> 0 | AI51: =IF(I_CostMethod="Manual simple",Input!AI44,SUM(Calculation!AI67:AI81)) -> 0 | AJ51: =IF(I_CostMethod="Manual simple",Input!AJ44,SUM(Calculation!AJ67:AJ81)) -> 0 | AK51: =IF(I_CostMethod="Manual simple",Input!AK44,SUM(Calculation!AK67:AK81)) -> 0 | AL51: =IF(I_CostMethod="Manual simple",Input!AL44,SUM(Calculation!AL67:AL81)) -> 0 | AM51: =IF(I_CostMethod="Manual simple",Input!AM44,SUM(Calculation!AM67:AM81)) -> 0 | AN51: =IF(I_CostMethod="Manual simple",Input!AN44,SUM(Calculation!AN67:AN81)) -> 0 | AO51: =IF(I_CostMethod="Manual simple",Input!AO44,SUM(Calculation!AO67:AO81)) -> 0 | AP51: =IF(I_CostMethod="Manual simple",Input!AP44,SUM(Calculation!AP67:AP81)) -> 0 | AQ51: =IF(I_CostMethod="Manual simple",Input!AQ44,SUM(Calculation!AQ67:AQ81)) -> 0 | AR51: =IF(I_CostMethod="Manual simple",Input!AR44,SUM(Calculation!AR67:AR81)) -> 0 | AS51: =IF(I_CostMethod="Manual simple",Input!AS44,SUM(Calculation!AS67:AS81)) -> 0 | AT51: =IF(I_CostMethod="Manual simple",Input!AT44,SUM(Calculation!AT67:AT81)) -> 0 | AU51: =IF(I_CostMethod="Manual simple",Input!AU44,SUM(Calculation!AU67:AU81)) -> 0 | AV51: =IF(I_CostMethod="Manual simple",Input!AV44,SUM(Calculation!AV67:AV81)) -> 0 | AW51: =IF(I_CostMethod="Manual simple",Input!AW44,SUM(Calculation!AW67:AW81)) -> 0 | AX51: =IF(I_CostMethod="Manual simple",Input!AX44,SUM(Calculation!AX67:AX81)) -> 0
B52: OPEX total | E52: =I_FX & "m" -> EURm | F52: =I_PB_Input -> N | G52: =SUM(H52:AX52) -> 1028.386343 | H52: =IF(I_CostMethod="Manual simple",Input!H45,SUM(Calculation!H82:H96)) -> 0 | I52: =IF(I_CostMethod="Manual simple",Input!I45,SUM(Calculation!I82:I96)) -> 0 | J52: =IF(I_CostMethod="Manual simple",Input!J45,SUM(Calculation!J82:J96)) -> 0 | K52: =IF(I_CostMethod="Manual simple",Input!K45,SUM(Calculation!K82:K96)) -> 0 | L52: =IF(I_CostMethod="Manual simple",Input!L45,SUM(Calculation!L82:L96)) -> 0 | M52: =IF(I_CostMethod="Manual simple",Input!M45,SUM(Calculation!M82:M96)) -> 0 | N52: =IF(I_CostMethod="Manual simple",Input!N45,SUM(Calculation!N82:N96)) -> 0 | O52: =IF(I_CostMethod="Manual simple",Input!O45,SUM(Calculation!O82:O96)) -> 16.73474628 | P52: =IF(I_CostMethod="Manual simple",Input!P45,SUM(Calculation!P82:P96)) -> 34.13888241 | Q52: =IF(I_CostMethod="Manual simple",Input!Q45,SUM(Calculation!Q82:Q96)) -> 34.82166005 | R52: =IF(I_CostMethod="Manual simple",Input!R45,SUM(Calculation!R82:R96)) -> 35.51809326 | S52: =IF(I_CostMethod="Manual simple",Input!S45,SUM(Calculation!S82:S96)) -> 36.22845512 | T52: =IF(I_CostMethod="Manual simple",Input!T45,SUM(Calculation!T82:T96)) -> 36.95302422 | U52: =IF(I_CostMethod="Manual simple",Input!U45,SUM(Calculation!U82:U96)) -> 37.69208471 | V52: =IF(I_CostMethod="Manual simple",Input!V45,SUM(Calculation!V82:V96)) -> 38.4459264 | W52: =IF(I_CostMethod="Manual simple",Input!W45,SUM(Calculation!W82:W96)) -> 39.21484493 | X52: =IF(I_CostMethod="Manual simple",Input!X45,SUM(Calculation!X82:X96)) -> 39.99914183 | Y52: =IF(I_CostMethod="Manual simple",Input!Y45,SUM(Calculation!Y82:Y96)) -> 40.79912466 | Z52: =IF(I_CostMethod="Manual simple",Input!Z45,SUM(Calculation!Z82:Z96)) -> 41.61510716 | AA52: =IF(I_CostMethod="Manual simple",Input!AA45,SUM(Calculation!AA82:AA96)) -> 42.4474093 | AB52: =IF(I_CostMethod="Manual simple",Input!AB45,SUM(Calculation!AB82:AB96)) -> 43.29635749 | AC52: =IF(I_CostMethod="Manual simple",Input!AC45,SUM(Calculation!AC82:AC96)) -> 44.16228464 | AD52: =IF(I_CostMethod="Manual simple",Input!AD45,SUM(Calculation!AD82:AD96)) -> 45.04553033 | AE52: =IF(I_CostMethod="Manual simple",Input!AE45,SUM(Calculation!AE82:AE96)) -> 45.94644094 | AF52: =IF(I_CostMethod="Manual simple",Input!AF45,SUM(Calculation!AF82:AF96)) -> 46.86536975 | AG52: =IF(I_CostMethod="Manual simple",Input!AG45,SUM(Calculation!AG82:AG96)) -> 47.80267715 | AH52: =IF(I_CostMethod="Manual simple",Input!AH45,SUM(Calculation!AH82:AH96)) -> 48.75873069 | AI52: =IF(I_CostMethod="Manual simple",Input!AI45,SUM(Calculation!AI82:AI96)) -> 49.73390531 | AJ52: =IF(I_CostMethod="Manual simple",Input!AJ45,SUM(Calculation!AJ82:AJ96)) -> 50.72858341 | AK52: =IF(I_CostMethod="Manual simple",Input!AK45,SUM(Calculation!AK82:AK96)) -> 51.74315508 | AL52: =IF(I_CostMethod="Manual simple",Input!AL45,SUM(Calculation!AL82:AL96)) -> 52.77801818 | AM52: =IF(I_CostMethod="Manual simple",Input!AM45,SUM(Calculation!AM82:AM96)) -> 26.91678927 | AN52: =IF(I_CostMethod="Manual simple",Input!AN45,SUM(Calculation!AN82:AN96)) -> 0 | AO52: =IF(I_CostMethod="Manual simple",Input!AO45,SUM(Calculation!AO82:AO96)) -> 0 | AP52: =IF(I_CostMethod="Manual simple",Input!AP45,SUM(Calculation!AP82:AP96)) -> 0 | AQ52: =IF(I_CostMethod="Manual simple",Input!AQ45,SUM(Calculation!AQ82:AQ96)) -> 0 | AR52: =IF(I_CostMethod="Manual simple",Input!AR45,SUM(Calculation!AR82:AR96)) -> 0 | AS52: =IF(I_CostMethod="Manual simple",Input!AS45,SUM(Calculation!AS82:AS96)) -> 0 | AT52: =IF(I_CostMethod="Manual simple",Input!AT45,SUM(Calculation!AT82:AT96)) -> 0 | AU52: =IF(I_CostMethod="Manual simple",Input!AU45,SUM(Calculation!AU82:AU96)) -> 0 | AV52: =IF(I_CostMethod="Manual simple",Input!AV45,SUM(Calculation!AV82:AV96)) -> 0 | AW52: =IF(I_CostMethod="Manual simple",Input!AW45,SUM(Calculation!AW82:AW96)) -> 0 | AX52: =IF(I_CostMethod="Manual simple",Input!AX45,SUM(Calculation!AX82:AX96)) -> 0
B53: ABEX total | E53: =I_FX & "m" -> EURm | F53: =I_PB_Input -> N | G53: =SUM(H53:AX53) -> 126.5663213 | H53: =IF(I_CostMethod="Manual simple",Input!H46,SUM(Calculation!H97:H101)) -> 0 | I53: =IF(I_CostMethod="Manual simple",Input!I46,SUM(Calculation!I97:I101)) -> 0 | J53: =IF(I_CostMethod="Manual simple",Input!J46,SUM(Calculation!J97:J101)) -> 0 | K53: =IF(I_CostMethod="Manual simple",Input!K46,SUM(Calculation!K97:K101)) -> 0 | L53: =IF(I_CostMethod="Manual simple",Input!L46,SUM(Calculation!L97:L101)) -> 0 | M53: =IF(I_CostMethod="Manual simple",Input!M46,SUM(Calculation!M97:M101)) -> 0 | N53: =IF(I_CostMethod="Manual simple",Input!N46,SUM(Calculation!N97:N101)) -> 0 | O53: =IF(I_CostMethod="Manual simple",Input!O46,SUM(Calculation!O97:O101)) -> 0 | P53: =IF(I_CostMethod="Manual simple",Input!P46,SUM(Calculation!P97:P101)) -> 0 | Q53: =IF(I_CostMethod="Manual simple",Input!Q46,SUM(Calculation!Q97:Q101)) -> 0 | R53: =IF(I_CostMethod="Manual simple",Input!R46,SUM(Calculation!R97:R101)) -> 0 | S53: =IF(I_CostMethod="Manual simple",Input!S46,SUM(Calculation!S97:S101)) -> 0 | T53: =IF(I_CostMethod="Manual simple",Input!T46,SUM(Calculation!T97:T101)) -> 0 | U53: =IF(I_CostMethod="Manual simple",Input!U46,SUM(Calculation!U97:U101)) -> 0 | V53: =IF(I_CostMethod="Manual simple",Input!V46,SUM(Calculation!V97:V101)) -> 0 | W53: =IF(I_CostMethod="Manual simple",Input!W46,SUM(Calculation!W97:W101)) -> 0 | X53: =IF(I_CostMethod="Manual simple",Input!X46,SUM(Calculation!X97:X101)) -> 0 | Y53: =IF(I_CostMethod="Manual simple",Input!Y46,SUM(Calculation!Y97:Y101)) -> 0 | Z53: =IF(I_CostMethod="Manual simple",Input!Z46,SUM(Calculation!Z97:Z101)) -> 0 | AA53: =IF(I_CostMethod="Manual simple",Input!AA46,SUM(Calculation!AA97:AA101)) -> 0 | AB53: =IF(I_CostMethod="Manual simple",Input!AB46,SUM(Calculation!AB97:AB101)) -> 0 | AC53: =IF(I_CostMethod="Manual simple",Input!AC46,SUM(Calculation!AC97:AC101)) -> 0 | AD53: =IF(I_CostMethod="Manual simple",Input!AD46,SUM(Calculation!AD97:AD101)) -> 0 | AE53: =IF(I_CostMethod="Manual simple",Input!AE46,SUM(Calculation!AE97:AE101)) -> 0 | AF53: =IF(I_CostMethod="Manual simple",Input!AF46,SUM(Calculation!AF97:AF101)) -> 0 | AG53: =IF(I_CostMethod="Manual simple",Input!AG46,SUM(Calculation!AG97:AG101)) -> 0 | AH53: =IF(I_CostMethod="Manual simple",Input!AH46,SUM(Calculation!AH97:AH101)) -> 0 | AI53: =IF(I_CostMethod="Manual simple",Input!AI46,SUM(Calculation!AI97:AI101)) -> 0 | AJ53: =IF(I_CostMethod="Manual simple",Input!AJ46,SUM(Calculation!AJ97:AJ101)) -> 0 | AK53: =IF(I_CostMethod="Manual simple",Input!AK46,SUM(Calculation!AK97:AK101)) -> 0 | AL53: =IF(I_CostMethod="Manual simple",Input!AL46,SUM(Calculation!AL97:AL101)) -> 0 | AM53: =IF(I_CostMethod="Manual simple",Input!AM46,SUM(Calculation!AM97:AM101)) -> 126.5663213 | AN53: =IF(I_CostMethod="Manual simple",Input!AN46,SUM(Calculation!AN97:AN101)) -> 0 | AO53: =IF(I_CostMethod="Manual simple",Input!AO46,SUM(Calculation!AO97:AO101)) -> 0 | AP53: =IF(I_CostMethod="Manual simple",Input!AP46,SUM(Calculation!AP97:AP101)) -> 0 | AQ53: =IF(I_CostMethod="Manual simple",Input!AQ46,SUM(Calculation!AQ97:AQ101)) -> 0 | AR53: =IF(I_CostMethod="Manual simple",Input!AR46,SUM(Calculation!AR97:AR101)) -> 0 | AS53: =IF(I_CostMethod="Manual simple",Input!AS46,SUM(Calculation!AS97:AS101)) -> 0 | AT53: =IF(I_CostMethod="Manual simple",Input!AT46,SUM(Calculation!AT97:AT101)) -> 0 | AU53: =IF(I_CostMethod="Manual simple",Input!AU46,SUM(Calculation!AU97:AU101)) -> 0 | AV53: =IF(I_CostMethod="Manual simple",Input!AV46,SUM(Calculation!AV97:AV101)) -> 0 | AW53: =IF(I_CostMethod="Manual simple",Input!AW46,SUM(Calculation!AW97:AW101)) -> 0 | AX53: =IF(I_CostMethod="Manual simple",Input!AX46,SUM(Calculation!AX97:AX101)) -> 0
B54: Total | E54: =I_FX & "m" -> EURm | F54: =I_PB_Input -> N | G54: =SUM(H54:AX54) -> 2694.952664 | H54: =SUM(H50:H53) -> 0 | I54: =SUM(I50:I53) -> 6.666666667 | J54: 6.666666667 | K54: 6.666666667 | L54: 304 | M54: 532 | N54: 684 | O54: 16.73474628 | P54: 34.13888241 | Q54: 34.82166005 | R54: 35.51809326 | S54: 36.22845512 | T54: 36.95302422 | U54: 37.69208471 | V54: 38.4459264 | W54: 39.21484493 | X54: 39.99914183 | Y54: 40.79912466 | Z54: 41.61510716 | AA54: 42.4474093 | AB54: 43.29635749 | AC54: 44.16228464 | AD54: 45.04553033 | AE54: 45.94644094 | AF54: 46.86536975 | AG54: 47.80267715 | AH54: 48.75873069 | AI54: 49.73390531 | AJ54: 50.72858341 | AK54: 51.74315508 | AL54: 52.77801818 | AM54: 153.4831106 | AN54: 0 | AO54: 0 | AP54: 0 | AQ54: 0 | AR54: 0 | AS54: 0 | AT54: 0 | AU54: 0 | AV54: 0 | AW54: 0 | AX54: 0
B56: Per cost item (level 2)
B57: =Input!$B$50 -> Site development | E57: =I_FX & "m" -> EURm | F57: =I_PB_Input -> N | G57: =SUM(H57:AX57) ->  | H57: =IF(I_CostMethod="Manual detailed",Input!H50,NA()) ->  | I57: =IF(I_CostMethod="Manual detailed",Input!I50,NA()) ->  | J57: =IF(I_CostMethod="Manual detailed",Input!J50,NA()) ->  | K57: =IF(I_CostMethod="Manual detailed",Input!K50,NA()) ->  | L57: =IF(I_CostMethod="Manual detailed",Input!L50,NA()) ->  | M57: =IF(I_CostMethod="Manual detailed",Input!M50,NA()) ->  | N57: =IF(I_CostMethod="Manual detailed",Input!N50,NA()) ->  | O57: =IF(I_CostMethod="Manual detailed",Input!O50,NA()) ->  | P57: =IF(I_CostMethod="Manual detailed",Input!P50,NA()) ->  | Q57: =IF(I_CostMethod="Manual detailed",Input!Q50,NA()) ->  | R57: =IF(I_CostMethod="Manual detailed",Input!R50,NA()) ->  | S57: =IF(I_CostMethod="Manual detailed",Input!S50,NA()) ->  | T57: =IF(I_CostMethod="Manual detailed",Input!T50,NA()) ->  | U57: =IF(I_CostMethod="Manual detailed",Input!U50,NA()) ->  | V57: =IF(I_CostMethod="Manual detailed",Input!V50,NA()) ->  | W57: =IF(I_CostMethod="Manual detailed",Input!W50,NA()) ->  | X57: =IF(I_CostMethod="Manual detailed",Input!X50,NA()) ->  | Y57: =IF(I_CostMethod="Manual detailed",Input!Y50,NA()) ->  | Z57: =IF(I_CostMethod="Manual detailed",Input!Z50,NA()) ->  | AA57: =IF(I_CostMethod="Manual detailed",Input!AA50,NA()) ->  | AB57: =IF(I_CostMethod="Manual detailed",Input!AB50,NA()) ->  | AC57: =IF(I_CostMethod="Manual detailed",Input!AC50,NA()) ->  | AD57: =IF(I_CostMethod="Manual detailed",Input!AD50,NA()) ->  | AE57: =IF(I_CostMethod="Manual detailed",Input!AE50,NA()) ->  | AF57: =IF(I_CostMethod="Manual detailed",Input!AF50,NA()) ->  | AG57: =IF(I_CostMethod="Manual detailed",Input!AG50,NA()) ->  | AH57: =IF(I_CostMethod="Manual detailed",Input!AH50,NA()) ->  | AI57: =IF(I_CostMethod="Manual detailed",Input!AI50,NA()) ->  | AJ57: =IF(I_CostMethod="Manual detailed",Input!AJ50,NA()) ->  | AK57: =IF(I_CostMethod="Manual detailed",Input!AK50,NA()) ->  | AL57: =IF(I_CostMethod="Manual detailed",Input!AL50,NA()) ->  | AM57: =IF(I_CostMethod="Manual detailed",Input!AM50,NA()) ->  | AN57: =IF(I_CostMethod="Manual detailed",Input!AN50,NA()) ->  | AO57: =IF(I_CostMethod="Manual detailed",Input!AO50,NA()) ->  | AP57: =IF(I_CostMethod="Manual detailed",Input!AP50,NA()) ->  | AQ57: =IF(I_CostMethod="Manual detailed",Input!AQ50,NA()) ->  | AR57: =IF(I_CostMethod="Manual detailed",Input!AR50,NA()) ->  | AS57: =IF(I_CostMethod="Manual detailed",Input!AS50,NA()) ->  | AT57: =IF(I_CostMethod="Manual detailed",Input!AT50,NA()) ->  | AU57: =IF(I_CostMethod="Manual detailed",Input!AU50,NA()) ->  | AV57: =IF(I_CostMethod="Manual detailed",Input!AV50,NA()) ->  | AW57: =IF(I_CostMethod="Manual detailed",Input!AW50,NA()) ->  | AX57: =IF(I_CostMethod="Manual detailed",Input!AX50,NA()) -> 
B58: =Input!$B$51 -> Design/dev. - Support Structures | E58: EURm | F58: N | H58: =IF(I_CostMethod="Manual detailed",Input!H51,NA()) ->  | I58: =IF(I_CostMethod="Manual detailed",Input!I51,NA()) ->  | J58: =IF(I_CostMethod="Manual detailed",Input!J51,NA()) ->  | K58: =IF(I_CostMethod="Manual detailed",Input!K51,NA()) ->  | L58: =IF(I_CostMethod="Manual detailed",Input!L51,NA()) ->  | M58: =IF(I_CostMethod="Manual detailed",Input!M51,NA()) ->  | N58: =IF(I_CostMethod="Manual detailed",Input!N51,NA()) ->  | O58: =IF(I_CostMethod="Manual detailed",Input!O51,NA()) ->  | P58: =IF(I_CostMethod="Manual detailed",Input!P51,NA()) ->  | Q58: =IF(I_CostMethod="Manual detailed",Input!Q51,NA()) ->  | R58: =IF(I_CostMethod="Manual detailed",Input!R51,NA()) ->  | S58: =IF(I_CostMethod="Manual detailed",Input!S51,NA()) ->  | T58: =IF(I_CostMethod="Manual detailed",Input!T51,NA()) ->  | U58: =IF(I_CostMethod="Manual detailed",Input!U51,NA()) ->  | V58: =IF(I_CostMethod="Manual detailed",Input!V51,NA()) ->  | W58: =IF(I_CostMethod="Manual detailed",Input!W51,NA()) ->  | X58: =IF(I_CostMethod="Manual detailed",Input!X51,NA()) ->  | Y58: =IF(I_CostMethod="Manual detailed",Input!Y51,NA()) ->  | Z58: =IF(I_CostMethod="Manual detailed",Input!Z51,NA()) ->  | AA58: =IF(I_CostMethod="Manual detailed",Input!AA51,NA()) ->  | AB58: =IF(I_CostMethod="Manual detailed",Input!AB51,NA()) ->  | AC58: =IF(I_CostMethod="Manual detailed",Input!AC51,NA()) ->  | AD58: =IF(I_CostMethod="Manual detailed",Input!AD51,NA()) ->  | AE58: =IF(I_CostMethod="Manual detailed",Input!AE51,NA()) ->  | AF58: =IF(I_CostMethod="Manual detailed",Input!AF51,NA()) ->  | AG58: =IF(I_CostMethod="Manual detailed",Input!AG51,NA()) ->  | AH58: =IF(I_CostMethod="Manual detailed",Input!AH51,NA()) ->  | AI58: =IF(I_CostMethod="Manual detailed",Input!AI51,NA()) ->  | AJ58: =IF(I_CostMethod="Manual detailed",Input!AJ51,NA()) ->  | AK58: =IF(I_CostMethod="Manual detailed",Input!AK51,NA()) ->  | AL58: =IF(I_CostMethod="Manual detailed",Input!AL51,NA()) ->  | AM58: =IF(I_CostMethod="Manual detailed",Input!AM51,NA()) ->  | AN58: =IF(I_CostMethod="Manual detailed",Input!AN51,NA()) ->  | AO58: =IF(I_CostMethod="Manual detailed",Input!AO51,NA()) ->  | AP58: =IF(I_CostMethod="Manual detailed",Input!AP51,NA()) ->  | AQ58: =IF(I_CostMethod="Manual detailed",Input!AQ51,NA()) ->  | AR58: =IF(I_CostMethod="Manual detailed",Input!AR51,NA()) ->  | AS58: =IF(I_CostMethod="Manual detailed",Input!AS51,NA()) ->  | AT58: =IF(I_CostMethod="Manual detailed",Input!AT51,NA()) ->  | AU58: =IF(I_CostMethod="Manual detailed",Input!AU51,NA()) ->  | AV58: =IF(I_CostMethod="Manual detailed",Input!AV51,NA()) ->  | AW58: =IF(I_CostMethod="Manual detailed",Input!AW51,NA()) ->  | AX58: =IF(I_CostMethod="Manual detailed",Input!AX51,NA()) -> 
B59: =Input!$B$52 -> Design/dev. - Wind turbines | E59: EURm | F59: N | H59: =IF(I_CostMethod="Manual detailed",Input!H52,NA()) ->  | I59: =IF(I_CostMethod="Manual detailed",Input!I52,NA()) ->  | J59: =IF(I_CostMethod="Manual detailed",Input!J52,NA()) ->  | K59: =IF(I_CostMethod="Manual detailed",Input!K52,NA()) ->  | L59: =IF(I_CostMethod="Manual detailed",Input!L52,NA()) ->  | M59: =IF(I_CostMethod="Manual detailed",Input!M52,NA()) ->  | N59: =IF(I_CostMethod="Manual detailed",Input!N52,NA()) ->  | O59: =IF(I_CostMethod="Manual detailed",Input!O52,NA()) ->  | P59: =IF(I_CostMethod="Manual detailed",Input!P52,NA()) ->  | Q59: =IF(I_CostMethod="Manual detailed",Input!Q52,NA()) ->  | R59: =IF(I_CostMethod="Manual detailed",Input!R52,NA()) ->  | S59: =IF(I_CostMethod="Manual detailed",Input!S52,NA()) ->  | T59: =IF(I_CostMethod="Manual detailed",Input!T52,NA()) ->  | U59: =IF(I_CostMethod="Manual detailed",Input!U52,NA()) ->  | V59: =IF(I_CostMethod="Manual detailed",Input!V52,NA()) ->  | W59: =IF(I_CostMethod="Manual detailed",Input!W52,NA()) ->  | X59: =IF(I_CostMethod="Manual detailed",Input!X52,NA()) ->  | Y59: =IF(I_CostMethod="Manual detailed",Input!Y52,NA()) ->  | Z59: =IF(I_CostMethod="Manual detailed",Input!Z52,NA()) ->  | AA59: =IF(I_CostMethod="Manual detailed",Input!AA52,NA()) ->  | AB59: =IF(I_CostMethod="Manual detailed",Input!AB52,NA()) ->  | AC59: =IF(I_CostMethod="Manual detailed",Input!AC52,NA()) ->  | AD59: =IF(I_CostMethod="Manual detailed",Input!AD52,NA()) ->  | AE59: =IF(I_CostMethod="Manual detailed",Input!AE52,NA()) ->  | AF59: =IF(I_CostMethod="Manual detailed",Input!AF52,NA()) ->  | AG59: =IF(I_CostMethod="Manual detailed",Input!AG52,NA()) ->  | AH59: =IF(I_CostMethod="Manual detailed",Input!AH52,NA()) ->  | AI59: =IF(I_CostMethod="Manual detailed",Input!AI52,NA()) ->  | AJ59: =IF(I_CostMethod="Manual detailed",Input!AJ52,NA()) ->  | AK59: =IF(I_CostMethod="Manual detailed",Input!AK52,NA()) ->  | AL59: =IF(I_CostMethod="Manual detailed",Input!AL52,NA()) ->  | AM59: =IF(I_CostMethod="Manual detailed",Input!AM52,NA()) ->  | AN59: =IF(I_CostMethod="Manual detailed",Input!AN52,NA()) ->  | AO59: =IF(I_CostMethod="Manual detailed",Input!AO52,NA()) ->  | AP59: =IF(I_CostMethod="Manual detailed",Input!AP52,NA()) ->  | AQ59: =IF(I_CostMethod="Manual detailed",Input!AQ52,NA()) ->  | AR59: =IF(I_CostMethod="Manual detailed",Input!AR52,NA()) ->  | AS59: =IF(I_CostMethod="Manual detailed",Input!AS52,NA()) ->  | AT59: =IF(I_CostMethod="Manual detailed",Input!AT52,NA()) ->  | AU59: =IF(I_CostMethod="Manual detailed",Input!AU52,NA()) ->  | AV59: =IF(I_CostMethod="Manual detailed",Input!AV52,NA()) ->  | AW59: =IF(I_CostMethod="Manual detailed",Input!AW52,NA()) ->  | AX59: =IF(I_CostMethod="Manual detailed",Input!AX52,NA()) -> 
B60: =Input!$B$53 -> Design/dev. - Export cable | E60: EURm | F60: N | H60: =IF(I_CostMethod="Manual detailed",Input!H53,NA()) ->  | I60: =IF(I_CostMethod="Manual detailed",Input!I53,NA()) ->  | J60: =IF(I_CostMethod="Manual detailed",Input!J53,NA()) ->  | K60: =IF(I_CostMethod="Manual detailed",Input!K53,NA()) ->  | L60: =IF(I_CostMethod="Manual detailed",Input!L53,NA()) ->  | M60: =IF(I_CostMethod="Manual detailed",Input!M53,NA()) ->  | N60: =IF(I_CostMethod="Manual detailed",Input!N53,NA()) ->  | O60: =IF(I_CostMethod="Manual detailed",Input!O53,NA()) ->  | P60: =IF(I_CostMethod="Manual detailed",Input!P53,NA()) ->  | Q60: =IF(I_CostMethod="Manual detailed",Input!Q53,NA()) ->  | R60: =IF(I_CostMethod="Manual detailed",Input!R53,NA()) ->  | S60: =IF(I_CostMethod="Manual detailed",Input!S53,NA()) ->  | T60: =IF(I_CostMethod="Manual detailed",Input!T53,NA()) ->  | U60: =IF(I_CostMethod="Manual detailed",Input!U53,NA()) ->  | V60: =IF(I_CostMethod="Manual detailed",Input!V53,NA()) ->  | W60: =IF(I_CostMethod="Manual detailed",Input!W53,NA()) ->  | X60: =IF(I_CostMethod="Manual detailed",Input!X53,NA()) ->  | Y60: =IF(I_CostMethod="Manual detailed",Input!Y53,NA()) ->  | Z60: =IF(I_CostMethod="Manual detailed",Input!Z53,NA()) ->  | AA60: =IF(I_CostMethod="Manual detailed",Input!AA53,NA()) ->  | AB60: =IF(I_CostMethod="Manual detailed",Input!AB53,NA()) ->  | AC60: =IF(I_CostMethod="Manual detailed",Input!AC53,NA()) ->  | AD60: =IF(I_CostMethod="Manual detailed",Input!AD53,NA()) ->  | AE60: =IF(I_CostMethod="Manual detailed",Input!AE53,NA()) ->  | AF60: =IF(I_CostMethod="Manual detailed",Input!AF53,NA()) ->  | AG60: =IF(I_CostMethod="Manual detailed",Input!AG53,NA()) ->  | AH60: =IF(I_CostMethod="Manual detailed",Input!AH53,NA()) ->  | AI60: =IF(I_CostMethod="Manual detailed",Input!AI53,NA()) ->  | AJ60: =IF(I_CostMethod="Manual detailed",Input!AJ53,NA()) ->  | AK60: =IF(I_CostMethod="Manual detailed",Input!AK53,NA()) ->  | AL60: =IF(I_CostMethod="Manual detailed",Input!AL53,NA()) ->  | AM60: =IF(I_CostMethod="Manual detailed",Input!AM53,NA()) ->  | AN60: =IF(I_CostMethod="Manual detailed",Input!AN53,NA()) ->  | AO60: =IF(I_CostMethod="Manual detailed",Input!AO53,NA()) ->  | AP60: =IF(I_CostMethod="Manual detailed",Input!AP53,NA()) ->  | AQ60: =IF(I_CostMethod="Manual detailed",Input!AQ53,NA()) ->  | AR60: =IF(I_CostMethod="Manual detailed",Input!AR53,NA()) ->  | AS60: =IF(I_CostMethod="Manual detailed",Input!AS53,NA()) ->  | AT60: =IF(I_CostMethod="Manual detailed",Input!AT53,NA()) ->  | AU60: =IF(I_CostMethod="Manual detailed",Input!AU53,NA()) ->  | AV60: =IF(I_CostMethod="Manual detailed",Input!AV53,NA()) ->  | AW60: =IF(I_CostMethod="Manual detailed",Input!AW53,NA()) ->  | AX60: =IF(I_CostMethod="Manual detailed",Input!AX53,NA()) -> 
B61: =Input!$B$54 -> Design/dev. - Onshore substation | E61: EURm | F61: N | H61: =IF(I_CostMethod="Manual detailed",Input!H54,NA()) ->  | I61: =IF(I_CostMethod="Manual detailed",Input!I54,NA()) ->  | J61: =IF(I_CostMethod="Manual detailed",Input!J54,NA()) ->  | K61: =IF(I_CostMethod="Manual detailed",Input!K54,NA()) ->  | L61: =IF(I_CostMethod="Manual detailed",Input!L54,NA()) ->  | M61: =IF(I_CostMethod="Manual detailed",Input!M54,NA()) ->  | N61: =IF(I_CostMethod="Manual detailed",Input!N54,NA()) ->  | O61: =IF(I_CostMethod="Manual detailed",Input!O54,NA()) ->  | P61: =IF(I_CostMethod="Manual detailed",Input!P54,NA()) ->  | Q61: =IF(I_CostMethod="Manual detailed",Input!Q54,NA()) ->  | R61: =IF(I_CostMethod="Manual detailed",Input!R54,NA()) ->  | S61: =IF(I_CostMethod="Manual detailed",Input!S54,NA()) ->  | T61: =IF(I_CostMethod="Manual detailed",Input!T54,NA()) ->  | U61: =IF(I_CostMethod="Manual detailed",Input!U54,NA()) ->  | V61: =IF(I_CostMethod="Manual detailed",Input!V54,NA()) ->  | W61: =IF(I_CostMethod="Manual detailed",Input!W54,NA()) ->  | X61: =IF(I_CostMethod="Manual detailed",Input!X54,NA()) ->  | Y61: =IF(I_CostMethod="Manual detailed",Input!Y54,NA()) ->  | Z61: =IF(I_CostMethod="Manual detailed",Input!Z54,NA()) ->  | AA61: =IF(I_CostMethod="Manual detailed",Input!AA54,NA()) ->  | AB61: =IF(I_CostMethod="Manual detailed",Input!AB54,NA()) ->  | AC61: =IF(I_CostMethod="Manual detailed",Input!AC54,NA()) ->  | AD61: =IF(I_CostMethod="Manual detailed",Input!AD54,NA()) ->  | AE61: =IF(I_CostMethod="Manual detailed",Input!AE54,NA()) ->  | AF61: =IF(I_CostMethod="Manual detailed",Input!AF54,NA()) ->  | AG61: =IF(I_CostMethod="Manual detailed",Input!AG54,NA()) ->  | AH61: =IF(I_CostMethod="Manual detailed",Input!AH54,NA()) ->  | AI61: =IF(I_CostMethod="Manual detailed",Input!AI54,NA()) ->  | AJ61: =IF(I_CostMethod="Manual detailed",Input!AJ54,NA()) ->  | AK61: =IF(I_CostMethod="Manual detailed",Input!AK54,NA()) ->  | AL61: =IF(I_CostMethod="Manual detailed",Input!AL54,NA()) ->  | AM61: =IF(I_CostMethod="Manual detailed",Input!AM54,NA()) ->  | AN61: =IF(I_CostMethod="Manual detailed",Input!AN54,NA()) ->  | AO61: =IF(I_CostMethod="Manual detailed",Input!AO54,NA()) ->  | AP61: =IF(I_CostMethod="Manual detailed",Input!AP54,NA()) ->  | AQ61: =IF(I_CostMethod="Manual detailed",Input!AQ54,NA()) ->  | AR61: =IF(I_CostMethod="Manual detailed",Input!AR54,NA()) ->  | AS61: =IF(I_CostMethod="Manual detailed",Input!AS54,NA()) ->  | AT61: =IF(I_CostMethod="Manual detailed",Input!AT54,NA()) ->  | AU61: =IF(I_CostMethod="Manual detailed",Input!AU54,NA()) ->  | AV61: =IF(I_CostMethod="Manual detailed",Input!AV54,NA()) ->  | AW61: =IF(I_CostMethod="Manual detailed",Input!AW54,NA()) ->  | AX61: =IF(I_CostMethod="Manual detailed",Input!AX54,NA()) -> 
B62: =Input!$B$55 -> Design/dev. - Offshore substation | E62: EURm | F62: N | H62: =IF(I_CostMethod="Manual detailed",Input!H55,NA()) ->  | I62: =IF(I_CostMethod="Manual detailed",Input!I55,NA()) ->  | J62: =IF(I_CostMethod="Manual detailed",Input!J55,NA()) ->  | K62: =IF(I_CostMethod="Manual detailed",Input!K55,NA()) ->  | L62: =IF(I_CostMethod="Manual detailed",Input!L55,NA()) ->  | M62: =IF(I_CostMethod="Manual detailed",Input!M55,NA()) ->  | N62: =IF(I_CostMethod="Manual detailed",Input!N55,NA()) ->  | O62: =IF(I_CostMethod="Manual detailed",Input!O55,NA()) ->  | P62: =IF(I_CostMethod="Manual detailed",Input!P55,NA()) ->  | Q62: =IF(I_CostMethod="Manual detailed",Input!Q55,NA()) ->  | R62: =IF(I_CostMethod="Manual detailed",Input!R55,NA()) ->  | S62: =IF(I_CostMethod="Manual detailed",Input!S55,NA()) ->  | T62: =IF(I_CostMethod="Manual detailed",Input!T55,NA()) ->  | U62: =IF(I_CostMethod="Manual detailed",Input!U55,NA()) ->  | V62: =IF(I_CostMethod="Manual detailed",Input!V55,NA()) ->  | W62: =IF(I_CostMethod="Manual detailed",Input!W55,NA()) ->  | X62: =IF(I_CostMethod="Manual detailed",Input!X55,NA()) ->  | Y62: =IF(I_CostMethod="Manual detailed",Input!Y55,NA()) ->  | Z62: =IF(I_CostMethod="Manual detailed",Input!Z55,NA()) ->  | AA62: =IF(I_CostMethod="Manual detailed",Input!AA55,NA()) ->  | AB62: =IF(I_CostMethod="Manual detailed",Input!AB55,NA()) ->  | AC62: =IF(I_CostMethod="Manual detailed",Input!AC55,NA()) ->  | AD62: =IF(I_CostMethod="Manual detailed",Input!AD55,NA()) ->  | AE62: =IF(I_CostMethod="Manual detailed",Input!AE55,NA()) ->  | AF62: =IF(I_CostMethod="Manual detailed",Input!AF55,NA()) ->  | AG62: =IF(I_CostMethod="Manual detailed",Input!AG55,NA()) ->  | AH62: =IF(I_CostMethod="Manual detailed",Input!AH55,NA()) ->  | AI62: =IF(I_CostMethod="Manual detailed",Input!AI55,NA()) ->  | AJ62: =IF(I_CostMethod="Manual detailed",Input!AJ55,NA()) ->  | AK62: =IF(I_CostMethod="Manual detailed",Input!AK55,NA()) ->  | AL62: =IF(I_CostMethod="Manual detailed",Input!AL55,NA()) ->  | AM62: =IF(I_CostMethod="Manual detailed",Input!AM55,NA()) ->  | AN62: =IF(I_CostMethod="Manual detailed",Input!AN55,NA()) ->  | AO62: =IF(I_CostMethod="Manual detailed",Input!AO55,NA()) ->  | AP62: =IF(I_CostMethod="Manual detailed",Input!AP55,NA()) ->  | AQ62: =IF(I_CostMethod="Manual detailed",Input!AQ55,NA()) ->  | AR62: =IF(I_CostMethod="Manual detailed",Input!AR55,NA()) ->  | AS62: =IF(I_CostMethod="Manual detailed",Input!AS55,NA()) ->  | AT62: =IF(I_CostMethod="Manual detailed",Input!AT55,NA()) ->  | AU62: =IF(I_CostMethod="Manual detailed",Input!AU55,NA()) ->  | AV62: =IF(I_CostMethod="Manual detailed",Input!AV55,NA()) ->  | AW62: =IF(I_CostMethod="Manual detailed",Input!AW55,NA()) ->  | AX62: =IF(I_CostMethod="Manual detailed",Input!AX55,NA()) -> 
B63: =Input!$B$56 -> Design/dev. - Array cable | E63: EURm | F63: N | H63: =IF(I_CostMethod="Manual detailed",Input!H56,NA()) ->  | I63: =IF(I_CostMethod="Manual detailed",Input!I56,NA()) ->  | J63: =IF(I_CostMethod="Manual detailed",Input!J56,NA()) ->  | K63: =IF(I_CostMethod="Manual detailed",Input!K56,NA()) ->  | L63: =IF(I_CostMethod="Manual detailed",Input!L56,NA()) ->  | M63: =IF(I_CostMethod="Manual detailed",Input!M56,NA()) ->  | N63: =IF(I_CostMethod="Manual detailed",Input!N56,NA()) ->  | O63: =IF(I_CostMethod="Manual detailed",Input!O56,NA()) ->  | P63: =IF(I_CostMethod="Manual detailed",Input!P56,NA()) ->  | Q63: =IF(I_CostMethod="Manual detailed",Input!Q56,NA()) ->  | R63: =IF(I_CostMethod="Manual detailed",Input!R56,NA()) ->  | S63: =IF(I_CostMethod="Manual detailed",Input!S56,NA()) ->  | T63: =IF(I_CostMethod="Manual detailed",Input!T56,NA()) ->  | U63: =IF(I_CostMethod="Manual detailed",Input!U56,NA()) ->  | V63: =IF(I_CostMethod="Manual detailed",Input!V56,NA()) ->  | W63: =IF(I_CostMethod="Manual detailed",Input!W56,NA()) ->  | X63: =IF(I_CostMethod="Manual detailed",Input!X56,NA()) ->  | Y63: =IF(I_CostMethod="Manual detailed",Input!Y56,NA()) ->  | Z63: =IF(I_CostMethod="Manual detailed",Input!Z56,NA()) ->  | AA63: =IF(I_CostMethod="Manual detailed",Input!AA56,NA()) ->  | AB63: =IF(I_CostMethod="Manual detailed",Input!AB56,NA()) ->  | AC63: =IF(I_CostMethod="Manual detailed",Input!AC56,NA()) ->  | AD63: =IF(I_CostMethod="Manual detailed",Input!AD56,NA()) ->  | AE63: =IF(I_CostMethod="Manual detailed",Input!AE56,NA()) ->  | AF63: =IF(I_CostMethod="Manual detailed",Input!AF56,NA()) ->  | AG63: =IF(I_CostMethod="Manual detailed",Input!AG56,NA()) ->  | AH63: =IF(I_CostMethod="Manual detailed",Input!AH56,NA()) ->  | AI63: =IF(I_CostMethod="Manual detailed",Input!AI56,NA()) ->  | AJ63: =IF(I_CostMethod="Manual detailed",Input!AJ56,NA()) ->  | AK63: =IF(I_CostMethod="Manual detailed",Input!AK56,NA()) ->  | AL63: =IF(I_CostMethod="Manual detailed",Input!AL56,NA()) ->  | AM63: =IF(I_CostMethod="Manual detailed",Input!AM56,NA()) ->  | AN63: =IF(I_CostMethod="Manual detailed",Input!AN56,NA()) ->  | AO63: =IF(I_CostMethod="Manual detailed",Input!AO56,NA()) ->  | AP63: =IF(I_CostMethod="Manual detailed",Input!AP56,NA()) ->  | AQ63: =IF(I_CostMethod="Manual detailed",Input!AQ56,NA()) ->  | AR63: =IF(I_CostMethod="Manual detailed",Input!AR56,NA()) ->  | AS63: =IF(I_CostMethod="Manual detailed",Input!AS56,NA()) ->  | AT63: =IF(I_CostMethod="Manual detailed",Input!AT56,NA()) ->  | AU63: =IF(I_CostMethod="Manual detailed",Input!AU56,NA()) ->  | AV63: =IF(I_CostMethod="Manual detailed",Input!AV56,NA()) ->  | AW63: =IF(I_CostMethod="Manual detailed",Input!AW56,NA()) ->  | AX63: =IF(I_CostMethod="Manual detailed",Input!AX56,NA()) -> 
B64: =Input!$B$57 -> DEVEX category8 | E64: EURm | F64: N | H64: =IF(I_CostMethod="Manual detailed",Input!H57,NA()) ->  | I64: =IF(I_CostMethod="Manual detailed",Input!I57,NA()) ->  | J64: =IF(I_CostMethod="Manual detailed",Input!J57,NA()) ->  | K64: =IF(I_CostMethod="Manual detailed",Input!K57,NA()) ->  | L64: =IF(I_CostMethod="Manual detailed",Input!L57,NA()) ->  | M64: =IF(I_CostMethod="Manual detailed",Input!M57,NA()) ->  | N64: =IF(I_CostMethod="Manual detailed",Input!N57,NA()) ->  | O64: =IF(I_CostMethod="Manual detailed",Input!O57,NA()) ->  | P64: =IF(I_CostMethod="Manual detailed",Input!P57,NA()) ->  | Q64: =IF(I_CostMethod="Manual detailed",Input!Q57,NA()) ->  | R64: =IF(I_CostMethod="Manual detailed",Input!R57,NA()) ->  | S64: =IF(I_CostMethod="Manual detailed",Input!S57,NA()) ->  | T64: =IF(I_CostMethod="Manual detailed",Input!T57,NA()) ->  | U64: =IF(I_CostMethod="Manual detailed",Input!U57,NA()) ->  | V64: =IF(I_CostMethod="Manual detailed",Input!V57,NA()) ->  | W64: =IF(I_CostMethod="Manual detailed",Input!W57,NA()) ->  | X64: =IF(I_CostMethod="Manual detailed",Input!X57,NA()) ->  | Y64: =IF(I_CostMethod="Manual detailed",Input!Y57,NA()) ->  | Z64: =IF(I_CostMethod="Manual detailed",Input!Z57,NA()) ->  | AA64: =IF(I_CostMethod="Manual detailed",Input!AA57,NA()) ->  | AB64: =IF(I_CostMethod="Manual detailed",Input!AB57,NA()) ->  | AC64: =IF(I_CostMethod="Manual detailed",Input!AC57,NA()) ->  | AD64: =IF(I_CostMethod="Manual detailed",Input!AD57,NA()) ->  | AE64: =IF(I_CostMethod="Manual detailed",Input!AE57,NA()) ->  | AF64: =IF(I_CostMethod="Manual detailed",Input!AF57,NA()) ->  | AG64: =IF(I_CostMethod="Manual detailed",Input!AG57,NA()) ->  | AH64: =IF(I_CostMethod="Manual detailed",Input!AH57,NA()) ->  | AI64: =IF(I_CostMethod="Manual detailed",Input!AI57,NA()) ->  | AJ64: =IF(I_CostMethod="Manual detailed",Input!AJ57,NA()) ->  | AK64: =IF(I_CostMethod="Manual detailed",Input!AK57,NA()) ->  | AL64: =IF(I_CostMethod="Manual detailed",Input!AL57,NA()) ->  | AM64: =IF(I_CostMethod="Manual detailed",Input!AM57,NA()) ->  | AN64: =IF(I_CostMethod="Manual detailed",Input!AN57,NA()) ->  | AO64: =IF(I_CostMethod="Manual detailed",Input!AO57,NA()) ->  | AP64: =IF(I_CostMethod="Manual detailed",Input!AP57,NA()) ->  | AQ64: =IF(I_CostMethod="Manual detailed",Input!AQ57,NA()) ->  | AR64: =IF(I_CostMethod="Manual detailed",Input!AR57,NA()) ->  | AS64: =IF(I_CostMethod="Manual detailed",Input!AS57,NA()) ->  | AT64: =IF(I_CostMethod="Manual detailed",Input!AT57,NA()) ->  | AU64: =IF(I_CostMethod="Manual detailed",Input!AU57,NA()) ->  | AV64: =IF(I_CostMethod="Manual detailed",Input!AV57,NA()) ->  | AW64: =IF(I_CostMethod="Manual detailed",Input!AW57,NA()) ->  | AX64: =IF(I_CostMethod="Manual detailed",Input!AX57,NA()) -> 
B65: =Input!$B$58 -> DEVEX category9 | E65: EURm | F65: N | H65: =IF(I_CostMethod="Manual detailed",Input!H58,NA()) ->  | I65: =IF(I_CostMethod="Manual detailed",Input!I58,NA()) ->  | J65: =IF(I_CostMethod="Manual detailed",Input!J58,NA()) ->  | K65: =IF(I_CostMethod="Manual detailed",Input!K58,NA()) ->  | L65: =IF(I_CostMethod="Manual detailed",Input!L58,NA()) ->  | M65: =IF(I_CostMethod="Manual detailed",Input!M58,NA()) ->  | N65: =IF(I_CostMethod="Manual detailed",Input!N58,NA()) ->  | O65: =IF(I_CostMethod="Manual detailed",Input!O58,NA()) ->  | P65: =IF(I_CostMethod="Manual detailed",Input!P58,NA()) ->  | Q65: =IF(I_CostMethod="Manual detailed",Input!Q58,NA()) ->  | R65: =IF(I_CostMethod="Manual detailed",Input!R58,NA()) ->  | S65: =IF(I_CostMethod="Manual detailed",Input!S58,NA()) ->  | T65: =IF(I_CostMethod="Manual detailed",Input!T58,NA()) ->  | U65: =IF(I_CostMethod="Manual detailed",Input!U58,NA()) ->  | V65: =IF(I_CostMethod="Manual detailed",Input!V58,NA()) ->  | W65: =IF(I_CostMethod="Manual detailed",Input!W58,NA()) ->  | X65: =IF(I_CostMethod="Manual detailed",Input!X58,NA()) ->  | Y65: =IF(I_CostMethod="Manual detailed",Input!Y58,NA()) ->  | Z65: =IF(I_CostMethod="Manual detailed",Input!Z58,NA()) ->  | AA65: =IF(I_CostMethod="Manual detailed",Input!AA58,NA()) ->  | AB65: =IF(I_CostMethod="Manual detailed",Input!AB58,NA()) ->  | AC65: =IF(I_CostMethod="Manual detailed",Input!AC58,NA()) ->  | AD65: =IF(I_CostMethod="Manual detailed",Input!AD58,NA()) ->  | AE65: =IF(I_CostMethod="Manual detailed",Input!AE58,NA()) ->  | AF65: =IF(I_CostMethod="Manual detailed",Input!AF58,NA()) ->  | AG65: =IF(I_CostMethod="Manual detailed",Input!AG58,NA()) ->  | AH65: =IF(I_CostMethod="Manual detailed",Input!AH58,NA()) ->  | AI65: =IF(I_CostMethod="Manual detailed",Input!AI58,NA()) ->  | AJ65: =IF(I_CostMethod="Manual detailed",Input!AJ58,NA()) ->  | AK65: =IF(I_CostMethod="Manual detailed",Input!AK58,NA()) ->  | AL65: =IF(I_CostMethod="Manual detailed",Input!AL58,NA()) ->  | AM65: =IF(I_CostMethod="Manual detailed",Input!AM58,NA()) ->  | AN65: =IF(I_CostMethod="Manual detailed",Input!AN58,NA()) ->  | AO65: =IF(I_CostMethod="Manual detailed",Input!AO58,NA()) ->  | AP65: =IF(I_CostMethod="Manual detailed",Input!AP58,NA()) ->  | AQ65: =IF(I_CostMethod="Manual detailed",Input!AQ58,NA()) ->  | AR65: =IF(I_CostMethod="Manual detailed",Input!AR58,NA()) ->  | AS65: =IF(I_CostMethod="Manual detailed",Input!AS58,NA()) ->  | AT65: =IF(I_CostMethod="Manual detailed",Input!AT58,NA()) ->  | AU65: =IF(I_CostMethod="Manual detailed",Input!AU58,NA()) ->  | AV65: =IF(I_CostMethod="Manual detailed",Input!AV58,NA()) ->  | AW65: =IF(I_CostMethod="Manual detailed",Input!AW58,NA()) ->  | AX65: =IF(I_CostMethod="Manual detailed",Input!AX58,NA()) -> 
B66: =Input!$B$59 -> DEVEX category10 | E66: EURm | F66: N | H66: =IF(I_CostMethod="Manual detailed",Input!H59,NA()) ->  | I66: =IF(I_CostMethod="Manual detailed",Input!I59,NA()) ->  | J66: =IF(I_CostMethod="Manual detailed",Input!J59,NA()) ->  | K66: =IF(I_CostMethod="Manual detailed",Input!K59,NA()) ->  | L66: =IF(I_CostMethod="Manual detailed",Input!L59,NA()) ->  | M66: =IF(I_CostMethod="Manual detailed",Input!M59,NA()) ->  | N66: =IF(I_CostMethod="Manual detailed",Input!N59,NA()) ->  | O66: =IF(I_CostMethod="Manual detailed",Input!O59,NA()) ->  | P66: =IF(I_CostMethod="Manual detailed",Input!P59,NA()) ->  | Q66: =IF(I_CostMethod="Manual detailed",Input!Q59,NA()) ->  | R66: =IF(I_CostMethod="Manual detailed",Input!R59,NA()) ->  | S66: =IF(I_CostMethod="Manual detailed",Input!S59,NA()) ->  | T66: =IF(I_CostMethod="Manual detailed",Input!T59,NA()) ->  | U66: =IF(I_CostMethod="Manual detailed",Input!U59,NA()) ->  | V66: =IF(I_CostMethod="Manual detailed",Input!V59,NA()) ->  | W66: =IF(I_CostMethod="Manual detailed",Input!W59,NA()) ->  | X66: =IF(I_CostMethod="Manual detailed",Input!X59,NA()) ->  | Y66: =IF(I_CostMethod="Manual detailed",Input!Y59,NA()) ->  | Z66: =IF(I_CostMethod="Manual detailed",Input!Z59,NA()) ->  | AA66: =IF(I_CostMethod="Manual detailed",Input!AA59,NA()) ->  | AB66: =IF(I_CostMethod="Manual detailed",Input!AB59,NA()) ->  | AC66: =IF(I_CostMethod="Manual detailed",Input!AC59,NA()) ->  | AD66: =IF(I_CostMethod="Manual detailed",Input!AD59,NA()) ->  | AE66: =IF(I_CostMethod="Manual detailed",Input!AE59,NA()) ->  | AF66: =IF(I_CostMethod="Manual detailed",Input!AF59,NA()) ->  | AG66: =IF(I_CostMethod="Manual detailed",Input!AG59,NA()) ->  | AH66: =IF(I_CostMethod="Manual detailed",Input!AH59,NA()) ->  | AI66: =IF(I_CostMethod="Manual detailed",Input!AI59,NA()) ->  | AJ66: =IF(I_CostMethod="Manual detailed",Input!AJ59,NA()) ->  | AK66: =IF(I_CostMethod="Manual detailed",Input!AK59,NA()) ->  | AL66: =IF(I_CostMethod="Manual detailed",Input!AL59,NA()) ->  | AM66: =IF(I_CostMethod="Manual detailed",Input!AM59,NA()) ->  | AN66: =IF(I_CostMethod="Manual detailed",Input!AN59,NA()) ->  | AO66: =IF(I_CostMethod="Manual detailed",Input!AO59,NA()) ->  | AP66: =IF(I_CostMethod="Manual detailed",Input!AP59,NA()) ->  | AQ66: =IF(I_CostMethod="Manual detailed",Input!AQ59,NA()) ->  | AR66: =IF(I_CostMethod="Manual detailed",Input!AR59,NA()) ->  | AS66: =IF(I_CostMethod="Manual detailed",Input!AS59,NA()) ->  | AT66: =IF(I_CostMethod="Manual detailed",Input!AT59,NA()) ->  | AU66: =IF(I_CostMethod="Manual detailed",Input!AU59,NA()) ->  | AV66: =IF(I_CostMethod="Manual detailed",Input!AV59,NA()) ->  | AW66: =IF(I_CostMethod="Manual detailed",Input!AW59,NA()) ->  | AX66: =IF(I_CostMethod="Manual detailed",Input!AX59,NA()) -> 
B67: =Input!$B$63 -> Project management | E67: EURm | F67: N | G67: =SUM(H67:AX67) ->  | H67: =IF(I_CostMethod="Manual detailed",Input!H63,NA()) ->  | I67: =IF(I_CostMethod="Manual detailed",Input!I63,NA()) ->  | J67: =IF(I_CostMethod="Manual detailed",Input!J63,NA()) ->  | K67: =IF(I_CostMethod="Manual detailed",Input!K63,NA()) ->  | L67: =IF(I_CostMethod="Manual detailed",Input!L63,NA()) ->  | M67: =IF(I_CostMethod="Manual detailed",Input!M63,NA()) ->  | N67: =IF(I_CostMethod="Manual detailed",Input!N63,NA()) ->  | O67: =IF(I_CostMethod="Manual detailed",Input!O63,NA()) ->  | P67: =IF(I_CostMethod="Manual detailed",Input!P63,NA()) ->  | Q67: =IF(I_CostMethod="Manual detailed",Input!Q63,NA()) ->  | R67: =IF(I_CostMethod="Manual detailed",Input!R63,NA()) ->  | S67: =IF(I_CostMethod="Manual detailed",Input!S63,NA()) ->  | T67: =IF(I_CostMethod="Manual detailed",Input!T63,NA()) ->  | U67: =IF(I_CostMethod="Manual detailed",Input!U63,NA()) ->  | V67: =IF(I_CostMethod="Manual detailed",Input!V63,NA()) ->  | W67: =IF(I_CostMethod="Manual detailed",Input!W63,NA()) ->  | X67: =IF(I_CostMethod="Manual detailed",Input!X63,NA()) ->  | Y67: =IF(I_CostMethod="Manual detailed",Input!Y63,NA()) ->  | Z67: =IF(I_CostMethod="Manual detailed",Input!Z63,NA()) ->  | AA67: =IF(I_CostMethod="Manual detailed",Input!AA63,NA()) ->  | AB67: =IF(I_CostMethod="Manual detailed",Input!AB63,NA()) ->  | AC67: =IF(I_CostMethod="Manual detailed",Input!AC63,NA()) ->  | AD67: =IF(I_CostMethod="Manual detailed",Input!AD63,NA()) ->  | AE67: =IF(I_CostMethod="Manual detailed",Input!AE63,NA()) ->  | AF67: =IF(I_CostMethod="Manual detailed",Input!AF63,NA()) ->  | AG67: =IF(I_CostMethod="Manual detailed",Input!AG63,NA()) ->  | AH67: =IF(I_CostMethod="Manual detailed",Input!AH63,NA()) ->  | AI67: =IF(I_CostMethod="Manual detailed",Input!AI63,NA()) ->  | AJ67: =IF(I_CostMethod="Manual detailed",Input!AJ63,NA()) ->  | AK67: =IF(I_CostMethod="Manual detailed",Input!AK63,NA()) ->  | AL67: =IF(I_CostMethod="Manual detailed",Input!AL63,NA()) ->  | AM67: =IF(I_CostMethod="Manual detailed",Input!AM63,NA()) ->  | AN67: =IF(I_CostMethod="Manual detailed",Input!AN63,NA()) ->  | AO67: =IF(I_CostMethod="Manual detailed",Input!AO63,NA()) ->  | AP67: =IF(I_CostMethod="Manual detailed",Input!AP63,NA()) ->  | AQ67: =IF(I_CostMethod="Manual detailed",Input!AQ63,NA()) ->  | AR67: =IF(I_CostMethod="Manual detailed",Input!AR63,NA()) ->  | AS67: =IF(I_CostMethod="Manual detailed",Input!AS63,NA()) ->  | AT67: =IF(I_CostMethod="Manual detailed",Input!AT63,NA()) ->  | AU67: =IF(I_CostMethod="Manual detailed",Input!AU63,NA()) ->  | AV67: =IF(I_CostMethod="Manual detailed",Input!AV63,NA()) ->  | AW67: =IF(I_CostMethod="Manual detailed",Input!AW63,NA()) ->  | AX67: =IF(I_CostMethod="Manual detailed",Input!AX63,NA()) -> 
B68: =Input!$B$64 -> Production - Support Structures | E68: EURm | F68: N | H68: =IF(I_CostMethod="Manual detailed",Input!H64,NA()) ->  | I68: =IF(I_CostMethod="Manual detailed",Input!I64,NA()) ->  | J68: =IF(I_CostMethod="Manual detailed",Input!J64,NA()) ->  | K68: =IF(I_CostMethod="Manual detailed",Input!K64,NA()) ->  | L68: =IF(I_CostMethod="Manual detailed",Input!L64,NA()) ->  | M68: =IF(I_CostMethod="Manual detailed",Input!M64,NA()) ->  | N68: =IF(I_CostMethod="Manual detailed",Input!N64,NA()) ->  | O68: =IF(I_CostMethod="Manual detailed",Input!O64,NA()) ->  | P68: =IF(I_CostMethod="Manual detailed",Input!P64,NA()) ->  | Q68: =IF(I_CostMethod="Manual detailed",Input!Q64,NA()) ->  | R68: =IF(I_CostMethod="Manual detailed",Input!R64,NA()) ->  | S68: =IF(I_CostMethod="Manual detailed",Input!S64,NA()) ->  | T68: =IF(I_CostMethod="Manual detailed",Input!T64,NA()) ->  | U68: =IF(I_CostMethod="Manual detailed",Input!U64,NA()) ->  | V68: =IF(I_CostMethod="Manual detailed",Input!V64,NA()) ->  | W68: =IF(I_CostMethod="Manual detailed",Input!W64,NA()) ->  | X68: =IF(I_CostMethod="Manual detailed",Input!X64,NA()) ->  | Y68: =IF(I_CostMethod="Manual detailed",Input!Y64,NA()) ->  | Z68: =IF(I_CostMethod="Manual detailed",Input!Z64,NA()) ->  | AA68: =IF(I_CostMethod="Manual detailed",Input!AA64,NA()) ->  | AB68: =IF(I_CostMethod="Manual detailed",Input!AB64,NA()) ->  | AC68: =IF(I_CostMethod="Manual detailed",Input!AC64,NA()) ->  | AD68: =IF(I_CostMethod="Manual detailed",Input!AD64,NA()) ->  | AE68: =IF(I_CostMethod="Manual detailed",Input!AE64,NA()) ->  | AF68: =IF(I_CostMethod="Manual detailed",Input!AF64,NA()) ->  | AG68: =IF(I_CostMethod="Manual detailed",Input!AG64,NA()) ->  | AH68: =IF(I_CostMethod="Manual detailed",Input!AH64,NA()) ->  | AI68: =IF(I_CostMethod="Manual detailed",Input!AI64,NA()) ->  | AJ68: =IF(I_CostMethod="Manual detailed",Input!AJ64,NA()) ->  | AK68: =IF(I_CostMethod="Manual detailed",Input!AK64,NA()) ->  | AL68: =IF(I_CostMethod="Manual detailed",Input!AL64,NA()) ->  | AM68: =IF(I_CostMethod="Manual detailed",Input!AM64,NA()) ->  | AN68: =IF(I_CostMethod="Manual detailed",Input!AN64,NA()) ->  | AO68: =IF(I_CostMethod="Manual detailed",Input!AO64,NA()) ->  | AP68: =IF(I_CostMethod="Manual detailed",Input!AP64,NA()) ->  | AQ68: =IF(I_CostMethod="Manual detailed",Input!AQ64,NA()) ->  | AR68: =IF(I_CostMethod="Manual detailed",Input!AR64,NA()) ->  | AS68: =IF(I_CostMethod="Manual detailed",Input!AS64,NA()) ->  | AT68: =IF(I_CostMethod="Manual detailed",Input!AT64,NA()) ->  | AU68: =IF(I_CostMethod="Manual detailed",Input!AU64,NA()) ->  | AV68: =IF(I_CostMethod="Manual detailed",Input!AV64,NA()) ->  | AW68: =IF(I_CostMethod="Manual detailed",Input!AW64,NA()) ->  | AX68: =IF(I_CostMethod="Manual detailed",Input!AX64,NA()) -> 
B69: =Input!$B$65 -> Production - Wind turbines | E69: EURm | F69: N | H69: =IF(I_CostMethod="Manual detailed",Input!H65,NA()) ->  | I69: =IF(I_CostMethod="Manual detailed",Input!I65,NA()) ->  | J69: =IF(I_CostMethod="Manual detailed",Input!J65,NA()) ->  | K69: =IF(I_CostMethod="Manual detailed",Input!K65,NA()) ->  | L69: =IF(I_CostMethod="Manual detailed",Input!L65,NA()) ->  | M69: =IF(I_CostMethod="Manual detailed",Input!M65,NA()) ->  | N69: =IF(I_CostMethod="Manual detailed",Input!N65,NA()) ->  | O69: =IF(I_CostMethod="Manual detailed",Input!O65,NA()) ->  | P69: =IF(I_CostMethod="Manual detailed",Input!P65,NA()) ->  | Q69: =IF(I_CostMethod="Manual detailed",Input!Q65,NA()) ->  | R69: =IF(I_CostMethod="Manual detailed",Input!R65,NA()) ->  | S69: =IF(I_CostMethod="Manual detailed",Input!S65,NA()) ->  | T69: =IF(I_CostMethod="Manual detailed",Input!T65,NA()) ->  | U69: =IF(I_CostMethod="Manual detailed",Input!U65,NA()) ->  | V69: =IF(I_CostMethod="Manual detailed",Input!V65,NA()) ->  | W69: =IF(I_CostMethod="Manual detailed",Input!W65,NA()) ->  | X69: =IF(I_CostMethod="Manual detailed",Input!X65,NA()) ->  | Y69: =IF(I_CostMethod="Manual detailed",Input!Y65,NA()) ->  | Z69: =IF(I_CostMethod="Manual detailed",Input!Z65,NA()) ->  | AA69: =IF(I_CostMethod="Manual detailed",Input!AA65,NA()) ->  | AB69: =IF(I_CostMethod="Manual detailed",Input!AB65,NA()) ->  | AC69: =IF(I_CostMethod="Manual detailed",Input!AC65,NA()) ->  | AD69: =IF(I_CostMethod="Manual detailed",Input!AD65,NA()) ->  | AE69: =IF(I_CostMethod="Manual detailed",Input!AE65,NA()) ->  | AF69: =IF(I_CostMethod="Manual detailed",Input!AF65,NA()) ->  | AG69: =IF(I_CostMethod="Manual detailed",Input!AG65,NA()) ->  | AH69: =IF(I_CostMethod="Manual detailed",Input!AH65,NA()) ->  | AI69: =IF(I_CostMethod="Manual detailed",Input!AI65,NA()) ->  | AJ69: =IF(I_CostMethod="Manual detailed",Input!AJ65,NA()) ->  | AK69: =IF(I_CostMethod="Manual detailed",Input!AK65,NA()) ->  | AL69: =IF(I_CostMethod="Manual detailed",Input!AL65,NA()) ->  | AM69: =IF(I_CostMethod="Manual detailed",Input!AM65,NA()) ->  | AN69: =IF(I_CostMethod="Manual detailed",Input!AN65,NA()) ->  | AO69: =IF(I_CostMethod="Manual detailed",Input!AO65,NA()) ->  | AP69: =IF(I_CostMethod="Manual detailed",Input!AP65,NA()) ->  | AQ69: =IF(I_CostMethod="Manual detailed",Input!AQ65,NA()) ->  | AR69: =IF(I_CostMethod="Manual detailed",Input!AR65,NA()) ->  | AS69: =IF(I_CostMethod="Manual detailed",Input!AS65,NA()) ->  | AT69: =IF(I_CostMethod="Manual detailed",Input!AT65,NA()) ->  | AU69: =IF(I_CostMethod="Manual detailed",Input!AU65,NA()) ->  | AV69: =IF(I_CostMethod="Manual detailed",Input!AV65,NA()) ->  | AW69: =IF(I_CostMethod="Manual detailed",Input!AW65,NA()) ->  | AX69: =IF(I_CostMethod="Manual detailed",Input!AX65,NA()) -> 
B70: =Input!$B$66 -> Production - Export cable | E70: EURm | F70: N | H70: =IF(I_CostMethod="Manual detailed",Input!H66,NA()) ->  | I70: =IF(I_CostMethod="Manual detailed",Input!I66,NA()) ->  | J70: =IF(I_CostMethod="Manual detailed",Input!J66,NA()) ->  | K70: =IF(I_CostMethod="Manual detailed",Input!K66,NA()) ->  | L70: =IF(I_CostMethod="Manual detailed",Input!L66,NA()) ->  | M70: =IF(I_CostMethod="Manual detailed",Input!M66,NA()) ->  | N70: =IF(I_CostMethod="Manual detailed",Input!N66,NA()) ->  | O70: =IF(I_CostMethod="Manual detailed",Input!O66,NA()) ->  | P70: =IF(I_CostMethod="Manual detailed",Input!P66,NA()) ->  | Q70: =IF(I_CostMethod="Manual detailed",Input!Q66,NA()) ->  | R70: =IF(I_CostMethod="Manual detailed",Input!R66,NA()) ->  | S70: =IF(I_CostMethod="Manual detailed",Input!S66,NA()) ->  | T70: =IF(I_CostMethod="Manual detailed",Input!T66,NA()) ->  | U70: =IF(I_CostMethod="Manual detailed",Input!U66,NA()) ->  | V70: =IF(I_CostMethod="Manual detailed",Input!V66,NA()) ->  | W70: =IF(I_CostMethod="Manual detailed",Input!W66,NA()) ->  | X70: =IF(I_CostMethod="Manual detailed",Input!X66,NA()) ->  | Y70: =IF(I_CostMethod="Manual detailed",Input!Y66,NA()) ->  | Z70: =IF(I_CostMethod="Manual detailed",Input!Z66,NA()) ->  | AA70: =IF(I_CostMethod="Manual detailed",Input!AA66,NA()) ->  | AB70: =IF(I_CostMethod="Manual detailed",Input!AB66,NA()) ->  | AC70: =IF(I_CostMethod="Manual detailed",Input!AC66,NA()) ->  | AD70: =IF(I_CostMethod="Manual detailed",Input!AD66,NA()) ->  | AE70: =IF(I_CostMethod="Manual detailed",Input!AE66,NA()) ->  | AF70: =IF(I_CostMethod="Manual detailed",Input!AF66,NA()) ->  | AG70: =IF(I_CostMethod="Manual detailed",Input!AG66,NA()) ->  | AH70: =IF(I_CostMethod="Manual detailed",Input!AH66,NA()) ->  | AI70: =IF(I_CostMethod="Manual detailed",Input!AI66,NA()) ->  | AJ70: =IF(I_CostMethod="Manual detailed",Input!AJ66,NA()) ->  | AK70: =IF(I_CostMethod="Manual detailed",Input!AK66,NA()) ->  | AL70: =IF(I_CostMethod="Manual detailed",Input!AL66,NA()) ->  | AM70: =IF(I_CostMethod="Manual detailed",Input!AM66,NA()) ->  | AN70: =IF(I_CostMethod="Manual detailed",Input!AN66,NA()) ->  | AO70: =IF(I_CostMethod="Manual detailed",Input!AO66,NA()) ->  | AP70: =IF(I_CostMethod="Manual detailed",Input!AP66,NA()) ->  | AQ70: =IF(I_CostMethod="Manual detailed",Input!AQ66,NA()) ->  | AR70: =IF(I_CostMethod="Manual detailed",Input!AR66,NA()) ->  | AS70: =IF(I_CostMethod="Manual detailed",Input!AS66,NA()) ->  | AT70: =IF(I_CostMethod="Manual detailed",Input!AT66,NA()) ->  | AU70: =IF(I_CostMethod="Manual detailed",Input!AU66,NA()) ->  | AV70: =IF(I_CostMethod="Manual detailed",Input!AV66,NA()) ->  | AW70: =IF(I_CostMethod="Manual detailed",Input!AW66,NA()) ->  | AX70: =IF(I_CostMethod="Manual detailed",Input!AX66,NA()) -> 
B71: =Input!$B$67 -> Production - Onshore substation | E71: EURm | F71: N | H71: =IF(I_CostMethod="Manual detailed",Input!H67,NA()) ->  | I71: =IF(I_CostMethod="Manual detailed",Input!I67,NA()) ->  | J71: =IF(I_CostMethod="Manual detailed",Input!J67,NA()) ->  | K71: =IF(I_CostMethod="Manual detailed",Input!K67,NA()) ->  | L71: =IF(I_CostMethod="Manual detailed",Input!L67,NA()) ->  | M71: =IF(I_CostMethod="Manual detailed",Input!M67,NA()) ->  | N71: =IF(I_CostMethod="Manual detailed",Input!N67,NA()) ->  | O71: =IF(I_CostMethod="Manual detailed",Input!O67,NA()) ->  | P71: =IF(I_CostMethod="Manual detailed",Input!P67,NA()) ->  | Q71: =IF(I_CostMethod="Manual detailed",Input!Q67,NA()) ->  | R71: =IF(I_CostMethod="Manual detailed",Input!R67,NA()) ->  | S71: =IF(I_CostMethod="Manual detailed",Input!S67,NA()) ->  | T71: =IF(I_CostMethod="Manual detailed",Input!T67,NA()) ->  | U71: =IF(I_CostMethod="Manual detailed",Input!U67,NA()) ->  | V71: =IF(I_CostMethod="Manual detailed",Input!V67,NA()) ->  | W71: =IF(I_CostMethod="Manual detailed",Input!W67,NA()) ->  | X71: =IF(I_CostMethod="Manual detailed",Input!X67,NA()) ->  | Y71: =IF(I_CostMethod="Manual detailed",Input!Y67,NA()) ->  | Z71: =IF(I_CostMethod="Manual detailed",Input!Z67,NA()) ->  | AA71: =IF(I_CostMethod="Manual detailed",Input!AA67,NA()) ->  | AB71: =IF(I_CostMethod="Manual detailed",Input!AB67,NA()) ->  | AC71: =IF(I_CostMethod="Manual detailed",Input!AC67,NA()) ->  | AD71: =IF(I_CostMethod="Manual detailed",Input!AD67,NA()) ->  | AE71: =IF(I_CostMethod="Manual detailed",Input!AE67,NA()) ->  | AF71: =IF(I_CostMethod="Manual detailed",Input!AF67,NA()) ->  | AG71: =IF(I_CostMethod="Manual detailed",Input!AG67,NA()) ->  | AH71: =IF(I_CostMethod="Manual detailed",Input!AH67,NA()) ->  | AI71: =IF(I_CostMethod="Manual detailed",Input!AI67,NA()) ->  | AJ71: =IF(I_CostMethod="Manual detailed",Input!AJ67,NA()) ->  | AK71: =IF(I_CostMethod="Manual detailed",Input!AK67,NA()) ->  | AL71: =IF(I_CostMethod="Manual detailed",Input!AL67,NA()) ->  | AM71: =IF(I_CostMethod="Manual detailed",Input!AM67,NA()) ->  | AN71: =IF(I_CostMethod="Manual detailed",Input!AN67,NA()) ->  | AO71: =IF(I_CostMethod="Manual detailed",Input!AO67,NA()) ->  | AP71: =IF(I_CostMethod="Manual detailed",Input!AP67,NA()) ->  | AQ71: =IF(I_CostMethod="Manual detailed",Input!AQ67,NA()) ->  | AR71: =IF(I_CostMethod="Manual detailed",Input!AR67,NA()) ->  | AS71: =IF(I_CostMethod="Manual detailed",Input!AS67,NA()) ->  | AT71: =IF(I_CostMethod="Manual detailed",Input!AT67,NA()) ->  | AU71: =IF(I_CostMethod="Manual detailed",Input!AU67,NA()) ->  | AV71: =IF(I_CostMethod="Manual detailed",Input!AV67,NA()) ->  | AW71: =IF(I_CostMethod="Manual detailed",Input!AW67,NA()) ->  | AX71: =IF(I_CostMethod="Manual detailed",Input!AX67,NA()) -> 
B72: =Input!$B$68 -> Production - Offshore substation | E72: EURm | F72: N | H72: =IF(I_CostMethod="Manual detailed",Input!H68,NA()) ->  | I72: =IF(I_CostMethod="Manual detailed",Input!I68,NA()) ->  | J72: =IF(I_CostMethod="Manual detailed",Input!J68,NA()) ->  | K72: =IF(I_CostMethod="Manual detailed",Input!K68,NA()) ->  | L72: =IF(I_CostMethod="Manual detailed",Input!L68,NA()) ->  | M72: =IF(I_CostMethod="Manual detailed",Input!M68,NA()) ->  | N72: =IF(I_CostMethod="Manual detailed",Input!N68,NA()) ->  | O72: =IF(I_CostMethod="Manual detailed",Input!O68,NA()) ->  | P72: =IF(I_CostMethod="Manual detailed",Input!P68,NA()) ->  | Q72: =IF(I_CostMethod="Manual detailed",Input!Q68,NA()) ->  | R72: =IF(I_CostMethod="Manual detailed",Input!R68,NA()) ->  | S72: =IF(I_CostMethod="Manual detailed",Input!S68,NA()) ->  | T72: =IF(I_CostMethod="Manual detailed",Input!T68,NA()) ->  | U72: =IF(I_CostMethod="Manual detailed",Input!U68,NA()) ->  | V72: =IF(I_CostMethod="Manual detailed",Input!V68,NA()) ->  | W72: =IF(I_CostMethod="Manual detailed",Input!W68,NA()) ->  | X72: =IF(I_CostMethod="Manual detailed",Input!X68,NA()) ->  | Y72: =IF(I_CostMethod="Manual detailed",Input!Y68,NA()) ->  | Z72: =IF(I_CostMethod="Manual detailed",Input!Z68,NA()) ->  | AA72: =IF(I_CostMethod="Manual detailed",Input!AA68,NA()) ->  | AB72: =IF(I_CostMethod="Manual detailed",Input!AB68,NA()) ->  | AC72: =IF(I_CostMethod="Manual detailed",Input!AC68,NA()) ->  | AD72: =IF(I_CostMethod="Manual detailed",Input!AD68,NA()) ->  | AE72: =IF(I_CostMethod="Manual detailed",Input!AE68,NA()) ->  | AF72: =IF(I_CostMethod="Manual detailed",Input!AF68,NA()) ->  | AG72: =IF(I_CostMethod="Manual detailed",Input!AG68,NA()) ->  | AH72: =IF(I_CostMethod="Manual detailed",Input!AH68,NA()) ->  | AI72: =IF(I_CostMethod="Manual detailed",Input!AI68,NA()) ->  | AJ72: =IF(I_CostMethod="Manual detailed",Input!AJ68,NA()) ->  | AK72: =IF(I_CostMethod="Manual detailed",Input!AK68,NA()) ->  | AL72: =IF(I_CostMethod="Manual detailed",Input!AL68,NA()) ->  | AM72: =IF(I_CostMethod="Manual detailed",Input!AM68,NA()) ->  | AN72: =IF(I_CostMethod="Manual detailed",Input!AN68,NA()) ->  | AO72: =IF(I_CostMethod="Manual detailed",Input!AO68,NA()) ->  | AP72: =IF(I_CostMethod="Manual detailed",Input!AP68,NA()) ->  | AQ72: =IF(I_CostMethod="Manual detailed",Input!AQ68,NA()) ->  | AR72: =IF(I_CostMethod="Manual detailed",Input!AR68,NA()) ->  | AS72: =IF(I_CostMethod="Manual detailed",Input!AS68,NA()) ->  | AT72: =IF(I_CostMethod="Manual detailed",Input!AT68,NA()) ->  | AU72: =IF(I_CostMethod="Manual detailed",Input!AU68,NA()) ->  | AV72: =IF(I_CostMethod="Manual detailed",Input!AV68,NA()) ->  | AW72: =IF(I_CostMethod="Manual detailed",Input!AW68,NA()) ->  | AX72: =IF(I_CostMethod="Manual detailed",Input!AX68,NA()) -> 
B73: =Input!$B$69 -> Production - Array cable | E73: EURm | F73: N | H73: =IF(I_CostMethod="Manual detailed",Input!H69,NA()) ->  | I73: =IF(I_CostMethod="Manual detailed",Input!I69,NA()) ->  | J73: =IF(I_CostMethod="Manual detailed",Input!J69,NA()) ->  | K73: =IF(I_CostMethod="Manual detailed",Input!K69,NA()) ->  | L73: =IF(I_CostMethod="Manual detailed",Input!L69,NA()) ->  | M73: =IF(I_CostMethod="Manual detailed",Input!M69,NA()) ->  | N73: =IF(I_CostMethod="Manual detailed",Input!N69,NA()) ->  | O73: =IF(I_CostMethod="Manual detailed",Input!O69,NA()) ->  | P73: =IF(I_CostMethod="Manual detailed",Input!P69,NA()) ->  | Q73: =IF(I_CostMethod="Manual detailed",Input!Q69,NA()) ->  | R73: =IF(I_CostMethod="Manual detailed",Input!R69,NA()) ->  | S73: =IF(I_CostMethod="Manual detailed",Input!S69,NA()) ->  | T73: =IF(I_CostMethod="Manual detailed",Input!T69,NA()) ->  | U73: =IF(I_CostMethod="Manual detailed",Input!U69,NA()) ->  | V73: =IF(I_CostMethod="Manual detailed",Input!V69,NA()) ->  | W73: =IF(I_CostMethod="Manual detailed",Input!W69,NA()) ->  | X73: =IF(I_CostMethod="Manual detailed",Input!X69,NA()) ->  | Y73: =IF(I_CostMethod="Manual detailed",Input!Y69,NA()) ->  | Z73: =IF(I_CostMethod="Manual detailed",Input!Z69,NA()) ->  | AA73: =IF(I_CostMethod="Manual detailed",Input!AA69,NA()) ->  | AB73: =IF(I_CostMethod="Manual detailed",Input!AB69,NA()) ->  | AC73: =IF(I_CostMethod="Manual detailed",Input!AC69,NA()) ->  | AD73: =IF(I_CostMethod="Manual detailed",Input!AD69,NA()) ->  | AE73: =IF(I_CostMethod="Manual detailed",Input!AE69,NA()) ->  | AF73: =IF(I_CostMethod="Manual detailed",Input!AF69,NA()) ->  | AG73: =IF(I_CostMethod="Manual detailed",Input!AG69,NA()) ->  | AH73: =IF(I_CostMethod="Manual detailed",Input!AH69,NA()) ->  | AI73: =IF(I_CostMethod="Manual detailed",Input!AI69,NA()) ->  | AJ73: =IF(I_CostMethod="Manual detailed",Input!AJ69,NA()) ->  | AK73: =IF(I_CostMethod="Manual detailed",Input!AK69,NA()) ->  | AL73: =IF(I_CostMethod="Manual detailed",Input!AL69,NA()) ->  | AM73: =IF(I_CostMethod="Manual detailed",Input!AM69,NA()) ->  | AN73: =IF(I_CostMethod="Manual detailed",Input!AN69,NA()) ->  | AO73: =IF(I_CostMethod="Manual detailed",Input!AO69,NA()) ->  | AP73: =IF(I_CostMethod="Manual detailed",Input!AP69,NA()) ->  | AQ73: =IF(I_CostMethod="Manual detailed",Input!AQ69,NA()) ->  | AR73: =IF(I_CostMethod="Manual detailed",Input!AR69,NA()) ->  | AS73: =IF(I_CostMethod="Manual detailed",Input!AS69,NA()) ->  | AT73: =IF(I_CostMethod="Manual detailed",Input!AT69,NA()) ->  | AU73: =IF(I_CostMethod="Manual detailed",Input!AU69,NA()) ->  | AV73: =IF(I_CostMethod="Manual detailed",Input!AV69,NA()) ->  | AW73: =IF(I_CostMethod="Manual detailed",Input!AW69,NA()) ->  | AX73: =IF(I_CostMethod="Manual detailed",Input!AX69,NA()) -> 
B74: =Input!$B$70 -> Installation - Support Structures | E74: EURm | F74: N | H74: =IF(I_CostMethod="Manual detailed",Input!H70,NA()) ->  | I74: =IF(I_CostMethod="Manual detailed",Input!I70,NA()) ->  | J74: =IF(I_CostMethod="Manual detailed",Input!J70,NA()) ->  | K74: =IF(I_CostMethod="Manual detailed",Input!K70,NA()) ->  | L74: =IF(I_CostMethod="Manual detailed",Input!L70,NA()) ->  | M74: =IF(I_CostMethod="Manual detailed",Input!M70,NA()) ->  | N74: =IF(I_CostMethod="Manual detailed",Input!N70,NA()) ->  | O74: =IF(I_CostMethod="Manual detailed",Input!O70,NA()) ->  | P74: =IF(I_CostMethod="Manual detailed",Input!P70,NA()) ->  | Q74: =IF(I_CostMethod="Manual detailed",Input!Q70,NA()) ->  | R74: =IF(I_CostMethod="Manual detailed",Input!R70,NA()) ->  | S74: =IF(I_CostMethod="Manual detailed",Input!S70,NA()) ->  | T74: =IF(I_CostMethod="Manual detailed",Input!T70,NA()) ->  | U74: =IF(I_CostMethod="Manual detailed",Input!U70,NA()) ->  | V74: =IF(I_CostMethod="Manual detailed",Input!V70,NA()) ->  | W74: =IF(I_CostMethod="Manual detailed",Input!W70,NA()) ->  | X74: =IF(I_CostMethod="Manual detailed",Input!X70,NA()) ->  | Y74: =IF(I_CostMethod="Manual detailed",Input!Y70,NA()) ->  | Z74: =IF(I_CostMethod="Manual detailed",Input!Z70,NA()) ->  | AA74: =IF(I_CostMethod="Manual detailed",Input!AA70,NA()) ->  | AB74: =IF(I_CostMethod="Manual detailed",Input!AB70,NA()) ->  | AC74: =IF(I_CostMethod="Manual detailed",Input!AC70,NA()) ->  | AD74: =IF(I_CostMethod="Manual detailed",Input!AD70,NA()) ->  | AE74: =IF(I_CostMethod="Manual detailed",Input!AE70,NA()) ->  | AF74: =IF(I_CostMethod="Manual detailed",Input!AF70,NA()) ->  | AG74: =IF(I_CostMethod="Manual detailed",Input!AG70,NA()) ->  | AH74: =IF(I_CostMethod="Manual detailed",Input!AH70,NA()) ->  | AI74: =IF(I_CostMethod="Manual detailed",Input!AI70,NA()) ->  | AJ74: =IF(I_CostMethod="Manual detailed",Input!AJ70,NA()) ->  | AK74: =IF(I_CostMethod="Manual detailed",Input!AK70,NA()) ->  | AL74: =IF(I_CostMethod="Manual detailed",Input!AL70,NA()) ->  | AM74: =IF(I_CostMethod="Manual detailed",Input!AM70,NA()) ->  | AN74: =IF(I_CostMethod="Manual detailed",Input!AN70,NA()) ->  | AO74: =IF(I_CostMethod="Manual detailed",Input!AO70,NA()) ->  | AP74: =IF(I_CostMethod="Manual detailed",Input!AP70,NA()) ->  | AQ74: =IF(I_CostMethod="Manual detailed",Input!AQ70,NA()) ->  | AR74: =IF(I_CostMethod="Manual detailed",Input!AR70,NA()) ->  | AS74: =IF(I_CostMethod="Manual detailed",Input!AS70,NA()) ->  | AT74: =IF(I_CostMethod="Manual detailed",Input!AT70,NA()) ->  | AU74: =IF(I_CostMethod="Manual detailed",Input!AU70,NA()) ->  | AV74: =IF(I_CostMethod="Manual detailed",Input!AV70,NA()) ->  | AW74: =IF(I_CostMethod="Manual detailed",Input!AW70,NA()) ->  | AX74: =IF(I_CostMethod="Manual detailed",Input!AX70,NA()) -> 
B75: =Input!$B$71 -> Installation - Wind turbines | E75: EURm | F75: N | H75: =IF(I_CostMethod="Manual detailed",Input!H71,NA()) ->  | I75: =IF(I_CostMethod="Manual detailed",Input!I71,NA()) ->  | J75: =IF(I_CostMethod="Manual detailed",Input!J71,NA()) ->  | K75: =IF(I_CostMethod="Manual detailed",Input!K71,NA()) ->  | L75: =IF(I_CostMethod="Manual detailed",Input!L71,NA()) ->  | M75: =IF(I_CostMethod="Manual detailed",Input!M71,NA()) ->  | N75: =IF(I_CostMethod="Manual detailed",Input!N71,NA()) ->  | O75: =IF(I_CostMethod="Manual detailed",Input!O71,NA()) ->  | P75: =IF(I_CostMethod="Manual detailed",Input!P71,NA()) ->  | Q75: =IF(I_CostMethod="Manual detailed",Input!Q71,NA()) ->  | R75: =IF(I_CostMethod="Manual detailed",Input!R71,NA()) ->  | S75: =IF(I_CostMethod="Manual detailed",Input!S71,NA()) ->  | T75: =IF(I_CostMethod="Manual detailed",Input!T71,NA()) ->  | U75: =IF(I_CostMethod="Manual detailed",Input!U71,NA()) ->  | V75: =IF(I_CostMethod="Manual detailed",Input!V71,NA()) ->  | W75: =IF(I_CostMethod="Manual detailed",Input!W71,NA()) ->  | X75: =IF(I_CostMethod="Manual detailed",Input!X71,NA()) ->  | Y75: =IF(I_CostMethod="Manual detailed",Input!Y71,NA()) ->  | Z75: =IF(I_CostMethod="Manual detailed",Input!Z71,NA()) ->  | AA75: =IF(I_CostMethod="Manual detailed",Input!AA71,NA()) ->  | AB75: =IF(I_CostMethod="Manual detailed",Input!AB71,NA()) ->  | AC75: =IF(I_CostMethod="Manual detailed",Input!AC71,NA()) ->  | AD75: =IF(I_CostMethod="Manual detailed",Input!AD71,NA()) ->  | AE75: =IF(I_CostMethod="Manual detailed",Input!AE71,NA()) ->  | AF75: =IF(I_CostMethod="Manual detailed",Input!AF71,NA()) ->  | AG75: =IF(I_CostMethod="Manual detailed",Input!AG71,NA()) ->  | AH75: =IF(I_CostMethod="Manual detailed",Input!AH71,NA()) ->  | AI75: =IF(I_CostMethod="Manual detailed",Input!AI71,NA()) ->  | AJ75: =IF(I_CostMethod="Manual detailed",Input!AJ71,NA()) ->  | AK75: =IF(I_CostMethod="Manual detailed",Input!AK71,NA()) ->  | AL75: =IF(I_CostMethod="Manual detailed",Input!AL71,NA()) ->  | AM75: =IF(I_CostMethod="Manual detailed",Input!AM71,NA()) ->  | AN75: =IF(I_CostMethod="Manual detailed",Input!AN71,NA()) ->  | AO75: =IF(I_CostMethod="Manual detailed",Input!AO71,NA()) ->  | AP75: =IF(I_CostMethod="Manual detailed",Input!AP71,NA()) ->  | AQ75: =IF(I_CostMethod="Manual detailed",Input!AQ71,NA()) ->  | AR75: =IF(I_CostMethod="Manual detailed",Input!AR71,NA()) ->  | AS75: =IF(I_CostMethod="Manual detailed",Input!AS71,NA()) ->  | AT75: =IF(I_CostMethod="Manual detailed",Input!AT71,NA()) ->  | AU75: =IF(I_CostMethod="Manual detailed",Input!AU71,NA()) ->  | AV75: =IF(I_CostMethod="Manual detailed",Input!AV71,NA()) ->  | AW75: =IF(I_CostMethod="Manual detailed",Input!AW71,NA()) ->  | AX75: =IF(I_CostMethod="Manual detailed",Input!AX71,NA()) -> 
B76: =Input!$B$72 -> Installation - Export cable | E76: EURm | F76: N | H76: =IF(I_CostMethod="Manual detailed",Input!H72,NA()) ->  | I76: =IF(I_CostMethod="Manual detailed",Input!I72,NA()) ->  | J76: =IF(I_CostMethod="Manual detailed",Input!J72,NA()) ->  | K76: =IF(I_CostMethod="Manual detailed",Input!K72,NA()) ->  | L76: =IF(I_CostMethod="Manual detailed",Input!L72,NA()) ->  | M76: =IF(I_CostMethod="Manual detailed",Input!M72,NA()) ->  | N76: =IF(I_CostMethod="Manual detailed",Input!N72,NA()) ->  | O76: =IF(I_CostMethod="Manual detailed",Input!O72,NA()) ->  | P76: =IF(I_CostMethod="Manual detailed",Input!P72,NA()) ->  | Q76: =IF(I_CostMethod="Manual detailed",Input!Q72,NA()) ->  | R76: =IF(I_CostMethod="Manual detailed",Input!R72,NA()) ->  | S76: =IF(I_CostMethod="Manual detailed",Input!S72,NA()) ->  | T76: =IF(I_CostMethod="Manual detailed",Input!T72,NA()) ->  | U76: =IF(I_CostMethod="Manual detailed",Input!U72,NA()) ->  | V76: =IF(I_CostMethod="Manual detailed",Input!V72,NA()) ->  | W76: =IF(I_CostMethod="Manual detailed",Input!W72,NA()) ->  | X76: =IF(I_CostMethod="Manual detailed",Input!X72,NA()) ->  | Y76: =IF(I_CostMethod="Manual detailed",Input!Y72,NA()) ->  | Z76: =IF(I_CostMethod="Manual detailed",Input!Z72,NA()) ->  | AA76: =IF(I_CostMethod="Manual detailed",Input!AA72,NA()) ->  | AB76: =IF(I_CostMethod="Manual detailed",Input!AB72,NA()) ->  | AC76: =IF(I_CostMethod="Manual detailed",Input!AC72,NA()) ->  | AD76: =IF(I_CostMethod="Manual detailed",Input!AD72,NA()) ->  | AE76: =IF(I_CostMethod="Manual detailed",Input!AE72,NA()) ->  | AF76: =IF(I_CostMethod="Manual detailed",Input!AF72,NA()) ->  | AG76: =IF(I_CostMethod="Manual detailed",Input!AG72,NA()) ->  | AH76: =IF(I_CostMethod="Manual detailed",Input!AH72,NA()) ->  | AI76: =IF(I_CostMethod="Manual detailed",Input!AI72,NA()) ->  | AJ76: =IF(I_CostMethod="Manual detailed",Input!AJ72,NA()) ->  | AK76: =IF(I_CostMethod="Manual detailed",Input!AK72,NA()) ->  | AL76: =IF(I_CostMethod="Manual detailed",Input!AL72,NA()) ->  | AM76: =IF(I_CostMethod="Manual detailed",Input!AM72,NA()) ->  | AN76: =IF(I_CostMethod="Manual detailed",Input!AN72,NA()) ->  | AO76: =IF(I_CostMethod="Manual detailed",Input!AO72,NA()) ->  | AP76: =IF(I_CostMethod="Manual detailed",Input!AP72,NA()) ->  | AQ76: =IF(I_CostMethod="Manual detailed",Input!AQ72,NA()) ->  | AR76: =IF(I_CostMethod="Manual detailed",Input!AR72,NA()) ->  | AS76: =IF(I_CostMethod="Manual detailed",Input!AS72,NA()) ->  | AT76: =IF(I_CostMethod="Manual detailed",Input!AT72,NA()) ->  | AU76: =IF(I_CostMethod="Manual detailed",Input!AU72,NA()) ->  | AV76: =IF(I_CostMethod="Manual detailed",Input!AV72,NA()) ->  | AW76: =IF(I_CostMethod="Manual detailed",Input!AW72,NA()) ->  | AX76: =IF(I_CostMethod="Manual detailed",Input!AX72,NA()) -> 
B77: =Input!$B$73 -> Installation - Onshore substation | E77: EURm | F77: N | H77: =IF(I_CostMethod="Manual detailed",Input!H73,NA()) ->  | I77: =IF(I_CostMethod="Manual detailed",Input!I73,NA()) ->  | J77: =IF(I_CostMethod="Manual detailed",Input!J73,NA()) ->  | K77: =IF(I_CostMethod="Manual detailed",Input!K73,NA()) ->  | L77: =IF(I_CostMethod="Manual detailed",Input!L73,NA()) ->  | M77: =IF(I_CostMethod="Manual detailed",Input!M73,NA()) ->  | N77: =IF(I_CostMethod="Manual detailed",Input!N73,NA()) ->  | O77: =IF(I_CostMethod="Manual detailed",Input!O73,NA()) ->  | P77: =IF(I_CostMethod="Manual detailed",Input!P73,NA()) ->  | Q77: =IF(I_CostMethod="Manual detailed",Input!Q73,NA()) ->  | R77: =IF(I_CostMethod="Manual detailed",Input!R73,NA()) ->  | S77: =IF(I_CostMethod="Manual detailed",Input!S73,NA()) ->  | T77: =IF(I_CostMethod="Manual detailed",Input!T73,NA()) ->  | U77: =IF(I_CostMethod="Manual detailed",Input!U73,NA()) ->  | V77: =IF(I_CostMethod="Manual detailed",Input!V73,NA()) ->  | W77: =IF(I_CostMethod="Manual detailed",Input!W73,NA()) ->  | X77: =IF(I_CostMethod="Manual detailed",Input!X73,NA()) ->  | Y77: =IF(I_CostMethod="Manual detailed",Input!Y73,NA()) ->  | Z77: =IF(I_CostMethod="Manual detailed",Input!Z73,NA()) ->  | AA77: =IF(I_CostMethod="Manual detailed",Input!AA73,NA()) ->  | AB77: =IF(I_CostMethod="Manual detailed",Input!AB73,NA()) ->  | AC77: =IF(I_CostMethod="Manual detailed",Input!AC73,NA()) ->  | AD77: =IF(I_CostMethod="Manual detailed",Input!AD73,NA()) ->  | AE77: =IF(I_CostMethod="Manual detailed",Input!AE73,NA()) ->  | AF77: =IF(I_CostMethod="Manual detailed",Input!AF73,NA()) ->  | AG77: =IF(I_CostMethod="Manual detailed",Input!AG73,NA()) ->  | AH77: =IF(I_CostMethod="Manual detailed",Input!AH73,NA()) ->  | AI77: =IF(I_CostMethod="Manual detailed",Input!AI73,NA()) ->  | AJ77: =IF(I_CostMethod="Manual detailed",Input!AJ73,NA()) ->  | AK77: =IF(I_CostMethod="Manual detailed",Input!AK73,NA()) ->  | AL77: =IF(I_CostMethod="Manual detailed",Input!AL73,NA()) ->  | AM77: =IF(I_CostMethod="Manual detailed",Input!AM73,NA()) ->  | AN77: =IF(I_CostMethod="Manual detailed",Input!AN73,NA()) ->  | AO77: =IF(I_CostMethod="Manual detailed",Input!AO73,NA()) ->  | AP77: =IF(I_CostMethod="Manual detailed",Input!AP73,NA()) ->  | AQ77: =IF(I_CostMethod="Manual detailed",Input!AQ73,NA()) ->  | AR77: =IF(I_CostMethod="Manual detailed",Input!AR73,NA()) ->  | AS77: =IF(I_CostMethod="Manual detailed",Input!AS73,NA()) ->  | AT77: =IF(I_CostMethod="Manual detailed",Input!AT73,NA()) ->  | AU77: =IF(I_CostMethod="Manual detailed",Input!AU73,NA()) ->  | AV77: =IF(I_CostMethod="Manual detailed",Input!AV73,NA()) ->  | AW77: =IF(I_CostMethod="Manual detailed",Input!AW73,NA()) ->  | AX77: =IF(I_CostMethod="Manual detailed",Input!AX73,NA()) -> 
B78: =Input!$B$74 -> Installation - Offshore substation | E78: EURm | F78: N | H78: =IF(I_CostMethod="Manual detailed",Input!H74,NA()) ->  | I78: =IF(I_CostMethod="Manual detailed",Input!I74,NA()) ->  | J78: =IF(I_CostMethod="Manual detailed",Input!J74,NA()) ->  | K78: =IF(I_CostMethod="Manual detailed",Input!K74,NA()) ->  | L78: =IF(I_CostMethod="Manual detailed",Input!L74,NA()) ->  | M78: =IF(I_CostMethod="Manual detailed",Input!M74,NA()) ->  | N78: =IF(I_CostMethod="Manual detailed",Input!N74,NA()) ->  | O78: =IF(I_CostMethod="Manual detailed",Input!O74,NA()) ->  | P78: =IF(I_CostMethod="Manual detailed",Input!P74,NA()) ->  | Q78: =IF(I_CostMethod="Manual detailed",Input!Q74,NA()) ->  | R78: =IF(I_CostMethod="Manual detailed",Input!R74,NA()) ->  | S78: =IF(I_CostMethod="Manual detailed",Input!S74,NA()) ->  | T78: =IF(I_CostMethod="Manual detailed",Input!T74,NA()) ->  | U78: =IF(I_CostMethod="Manual detailed",Input!U74,NA()) ->  | V78: =IF(I_CostMethod="Manual detailed",Input!V74,NA()) ->  | W78: =IF(I_CostMethod="Manual detailed",Input!W74,NA()) ->  | X78: =IF(I_CostMethod="Manual detailed",Input!X74,NA()) ->  | Y78: =IF(I_CostMethod="Manual detailed",Input!Y74,NA()) ->  | Z78: =IF(I_CostMethod="Manual detailed",Input!Z74,NA()) ->  | AA78: =IF(I_CostMethod="Manual detailed",Input!AA74,NA()) ->  | AB78: =IF(I_CostMethod="Manual detailed",Input!AB74,NA()) ->  | AC78: =IF(I_CostMethod="Manual detailed",Input!AC74,NA()) ->  | AD78: =IF(I_CostMethod="Manual detailed",Input!AD74,NA()) ->  | AE78: =IF(I_CostMethod="Manual detailed",Input!AE74,NA()) ->  | AF78: =IF(I_CostMethod="Manual detailed",Input!AF74,NA()) ->  | AG78: =IF(I_CostMethod="Manual detailed",Input!AG74,NA()) ->  | AH78: =IF(I_CostMethod="Manual detailed",Input!AH74,NA()) ->  | AI78: =IF(I_CostMethod="Manual detailed",Input!AI74,NA()) ->  | AJ78: =IF(I_CostMethod="Manual detailed",Input!AJ74,NA()) ->  | AK78: =IF(I_CostMethod="Manual detailed",Input!AK74,NA()) ->  | AL78: =IF(I_CostMethod="Manual detailed",Input!AL74,NA()) ->  | AM78: =IF(I_CostMethod="Manual detailed",Input!AM74,NA()) ->  | AN78: =IF(I_CostMethod="Manual detailed",Input!AN74,NA()) ->  | AO78: =IF(I_CostMethod="Manual detailed",Input!AO74,NA()) ->  | AP78: =IF(I_CostMethod="Manual detailed",Input!AP74,NA()) ->  | AQ78: =IF(I_CostMethod="Manual detailed",Input!AQ74,NA()) ->  | AR78: =IF(I_CostMethod="Manual detailed",Input!AR74,NA()) ->  | AS78: =IF(I_CostMethod="Manual detailed",Input!AS74,NA()) ->  | AT78: =IF(I_CostMethod="Manual detailed",Input!AT74,NA()) ->  | AU78: =IF(I_CostMethod="Manual detailed",Input!AU74,NA()) ->  | AV78: =IF(I_CostMethod="Manual detailed",Input!AV74,NA()) ->  | AW78: =IF(I_CostMethod="Manual detailed",Input!AW74,NA()) ->  | AX78: =IF(I_CostMethod="Manual detailed",Input!AX74,NA()) -> 
B79: =Input!$B$75 -> Installation - Array cable | E79: EURm | F79: N | H79: =IF(I_CostMethod="Manual detailed",Input!H75,NA()) ->  | I79: =IF(I_CostMethod="Manual detailed",Input!I75,NA()) ->  | J79: =IF(I_CostMethod="Manual detailed",Input!J75,NA()) ->  | K79: =IF(I_CostMethod="Manual detailed",Input!K75,NA()) ->  | L79: =IF(I_CostMethod="Manual detailed",Input!L75,NA()) ->  | M79: =IF(I_CostMethod="Manual detailed",Input!M75,NA()) ->  | N79: =IF(I_CostMethod="Manual detailed",Input!N75,NA()) ->  | O79: =IF(I_CostMethod="Manual detailed",Input!O75,NA()) ->  | P79: =IF(I_CostMethod="Manual detailed",Input!P75,NA()) ->  | Q79: =IF(I_CostMethod="Manual detailed",Input!Q75,NA()) ->  | R79: =IF(I_CostMethod="Manual detailed",Input!R75,NA()) ->  | S79: =IF(I_CostMethod="Manual detailed",Input!S75,NA()) ->  | T79: =IF(I_CostMethod="Manual detailed",Input!T75,NA()) ->  | U79: =IF(I_CostMethod="Manual detailed",Input!U75,NA()) ->  | V79: =IF(I_CostMethod="Manual detailed",Input!V75,NA()) ->  | W79: =IF(I_CostMethod="Manual detailed",Input!W75,NA()) ->  | X79: =IF(I_CostMethod="Manual detailed",Input!X75,NA()) ->  | Y79: =IF(I_CostMethod="Manual detailed",Input!Y75,NA()) ->  | Z79: =IF(I_CostMethod="Manual detailed",Input!Z75,NA()) ->  | AA79: =IF(I_CostMethod="Manual detailed",Input!AA75,NA()) ->  | AB79: =IF(I_CostMethod="Manual detailed",Input!AB75,NA()) ->  | AC79: =IF(I_CostMethod="Manual detailed",Input!AC75,NA()) ->  | AD79: =IF(I_CostMethod="Manual detailed",Input!AD75,NA()) ->  | AE79: =IF(I_CostMethod="Manual detailed",Input!AE75,NA()) ->  | AF79: =IF(I_CostMethod="Manual detailed",Input!AF75,NA()) ->  | AG79: =IF(I_CostMethod="Manual detailed",Input!AG75,NA()) ->  | AH79: =IF(I_CostMethod="Manual detailed",Input!AH75,NA()) ->  | AI79: =IF(I_CostMethod="Manual detailed",Input!AI75,NA()) ->  | AJ79: =IF(I_CostMethod="Manual detailed",Input!AJ75,NA()) ->  | AK79: =IF(I_CostMethod="Manual detailed",Input!AK75,NA()) ->  | AL79: =IF(I_CostMethod="Manual detailed",Input!AL75,NA()) ->  | AM79: =IF(I_CostMethod="Manual detailed",Input!AM75,NA()) ->  | AN79: =IF(I_CostMethod="Manual detailed",Input!AN75,NA()) ->  | AO79: =IF(I_CostMethod="Manual detailed",Input!AO75,NA()) ->  | AP79: =IF(I_CostMethod="Manual detailed",Input!AP75,NA()) ->  | AQ79: =IF(I_CostMethod="Manual detailed",Input!AQ75,NA()) ->  | AR79: =IF(I_CostMethod="Manual detailed",Input!AR75,NA()) ->  | AS79: =IF(I_CostMethod="Manual detailed",Input!AS75,NA()) ->  | AT79: =IF(I_CostMethod="Manual detailed",Input!AT75,NA()) ->  | AU79: =IF(I_CostMethod="Manual detailed",Input!AU75,NA()) ->  | AV79: =IF(I_CostMethod="Manual detailed",Input!AV75,NA()) ->  | AW79: =IF(I_CostMethod="Manual detailed",Input!AW75,NA()) ->  | AX79: =IF(I_CostMethod="Manual detailed",Input!AX75,NA()) -> 
B80: =Input!$B$76 -> CAPEX category14 | E80: EURm | F80: N | H80: =IF(I_CostMethod="Manual detailed",Input!H76,NA()) ->  | I80: =IF(I_CostMethod="Manual detailed",Input!I76,NA()) ->  | J80: =IF(I_CostMethod="Manual detailed",Input!J76,NA()) ->  | K80: =IF(I_CostMethod="Manual detailed",Input!K76,NA()) ->  | L80: =IF(I_CostMethod="Manual detailed",Input!L76,NA()) ->  | M80: =IF(I_CostMethod="Manual detailed",Input!M76,NA()) ->  | N80: =IF(I_CostMethod="Manual detailed",Input!N76,NA()) ->  | O80: =IF(I_CostMethod="Manual detailed",Input!O76,NA()) ->  | P80: =IF(I_CostMethod="Manual detailed",Input!P76,NA()) ->  | Q80: =IF(I_CostMethod="Manual detailed",Input!Q76,NA()) ->  | R80: =IF(I_CostMethod="Manual detailed",Input!R76,NA()) ->  | S80: =IF(I_CostMethod="Manual detailed",Input!S76,NA()) ->  | T80: =IF(I_CostMethod="Manual detailed",Input!T76,NA()) ->  | U80: =IF(I_CostMethod="Manual detailed",Input!U76,NA()) ->  | V80: =IF(I_CostMethod="Manual detailed",Input!V76,NA()) ->  | W80: =IF(I_CostMethod="Manual detailed",Input!W76,NA()) ->  | X80: =IF(I_CostMethod="Manual detailed",Input!X76,NA()) ->  | Y80: =IF(I_CostMethod="Manual detailed",Input!Y76,NA()) ->  | Z80: =IF(I_CostMethod="Manual detailed",Input!Z76,NA()) ->  | AA80: =IF(I_CostMethod="Manual detailed",Input!AA76,NA()) ->  | AB80: =IF(I_CostMethod="Manual detailed",Input!AB76,NA()) ->  | AC80: =IF(I_CostMethod="Manual detailed",Input!AC76,NA()) ->  | AD80: =IF(I_CostMethod="Manual detailed",Input!AD76,NA()) ->  | AE80: =IF(I_CostMethod="Manual detailed",Input!AE76,NA()) ->  | AF80: =IF(I_CostMethod="Manual detailed",Input!AF76,NA()) ->  | AG80: =IF(I_CostMethod="Manual detailed",Input!AG76,NA()) ->  | AH80: =IF(I_CostMethod="Manual detailed",Input!AH76,NA()) ->  | AI80: =IF(I_CostMethod="Manual detailed",Input!AI76,NA()) ->  | AJ80: =IF(I_CostMethod="Manual detailed",Input!AJ76,NA()) ->  | AK80: =IF(I_CostMethod="Manual detailed",Input!AK76,NA()) ->  | AL80: =IF(I_CostMethod="Manual detailed",Input!AL76,NA()) ->  | AM80: =IF(I_CostMethod="Manual detailed",Input!AM76,NA()) ->  | AN80: =IF(I_CostMethod="Manual detailed",Input!AN76,NA()) ->  | AO80: =IF(I_CostMethod="Manual detailed",Input!AO76,NA()) ->  | AP80: =IF(I_CostMethod="Manual detailed",Input!AP76,NA()) ->  | AQ80: =IF(I_CostMethod="Manual detailed",Input!AQ76,NA()) ->  | AR80: =IF(I_CostMethod="Manual detailed",Input!AR76,NA()) ->  | AS80: =IF(I_CostMethod="Manual detailed",Input!AS76,NA()) ->  | AT80: =IF(I_CostMethod="Manual detailed",Input!AT76,NA()) ->  | AU80: =IF(I_CostMethod="Manual detailed",Input!AU76,NA()) ->  | AV80: =IF(I_CostMethod="Manual detailed",Input!AV76,NA()) ->  | AW80: =IF(I_CostMethod="Manual detailed",Input!AW76,NA()) ->  | AX80: =IF(I_CostMethod="Manual detailed",Input!AX76,NA()) -> 
B81: =Input!$B$77 -> CAPEX category15 | E81: EURm | F81: N | H81: =IF(I_CostMethod="Manual detailed",Input!H77,NA()) ->  | I81: =IF(I_CostMethod="Manual detailed",Input!I77,NA()) ->  | J81: =IF(I_CostMethod="Manual detailed",Input!J77,NA()) ->  | K81: =IF(I_CostMethod="Manual detailed",Input!K77,NA()) ->  | L81: =IF(I_CostMethod="Manual detailed",Input!L77,NA()) ->  | M81: =IF(I_CostMethod="Manual detailed",Input!M77,NA()) ->  | N81: =IF(I_CostMethod="Manual detailed",Input!N77,NA()) ->  | O81: =IF(I_CostMethod="Manual detailed",Input!O77,NA()) ->  | P81: =IF(I_CostMethod="Manual detailed",Input!P77,NA()) ->  | Q81: =IF(I_CostMethod="Manual detailed",Input!Q77,NA()) ->  | R81: =IF(I_CostMethod="Manual detailed",Input!R77,NA()) ->  | S81: =IF(I_CostMethod="Manual detailed",Input!S77,NA()) ->  | T81: =IF(I_CostMethod="Manual detailed",Input!T77,NA()) ->  | U81: =IF(I_CostMethod="Manual detailed",Input!U77,NA()) ->  | V81: =IF(I_CostMethod="Manual detailed",Input!V77,NA()) ->  | W81: =IF(I_CostMethod="Manual detailed",Input!W77,NA()) ->  | X81: =IF(I_CostMethod="Manual detailed",Input!X77,NA()) ->  | Y81: =IF(I_CostMethod="Manual detailed",Input!Y77,NA()) ->  | Z81: =IF(I_CostMethod="Manual detailed",Input!Z77,NA()) ->  | AA81: =IF(I_CostMethod="Manual detailed",Input!AA77,NA()) ->  | AB81: =IF(I_CostMethod="Manual detailed",Input!AB77,NA()) ->  | AC81: =IF(I_CostMethod="Manual detailed",Input!AC77,NA()) ->  | AD81: =IF(I_CostMethod="Manual detailed",Input!AD77,NA()) ->  | AE81: =IF(I_CostMethod="Manual detailed",Input!AE77,NA()) ->  | AF81: =IF(I_CostMethod="Manual detailed",Input!AF77,NA()) ->  | AG81: =IF(I_CostMethod="Manual detailed",Input!AG77,NA()) ->  | AH81: =IF(I_CostMethod="Manual detailed",Input!AH77,NA()) ->  | AI81: =IF(I_CostMethod="Manual detailed",Input!AI77,NA()) ->  | AJ81: =IF(I_CostMethod="Manual detailed",Input!AJ77,NA()) ->  | AK81: =IF(I_CostMethod="Manual detailed",Input!AK77,NA()) ->  | AL81: =IF(I_CostMethod="Manual detailed",Input!AL77,NA()) ->  | AM81: =IF(I_CostMethod="Manual detailed",Input!AM77,NA()) ->  | AN81: =IF(I_CostMethod="Manual detailed",Input!AN77,NA()) ->  | AO81: =IF(I_CostMethod="Manual detailed",Input!AO77,NA()) ->  | AP81: =IF(I_CostMethod="Manual detailed",Input!AP77,NA()) ->  | AQ81: =IF(I_CostMethod="Manual detailed",Input!AQ77,NA()) ->  | AR81: =IF(I_CostMethod="Manual detailed",Input!AR77,NA()) ->  | AS81: =IF(I_CostMethod="Manual detailed",Input!AS77,NA()) ->  | AT81: =IF(I_CostMethod="Manual detailed",Input!AT77,NA()) ->  | AU81: =IF(I_CostMethod="Manual detailed",Input!AU77,NA()) ->  | AV81: =IF(I_CostMethod="Manual detailed",Input!AV77,NA()) ->  | AW81: =IF(I_CostMethod="Manual detailed",Input!AW77,NA()) ->  | AX81: =IF(I_CostMethod="Manual detailed",Input!AX77,NA()) -> 
B82: =Input!$B$81 -> Operations management | E82: EURm | F82: N | H82: =IF(I_CostMethod="Manual detailed",Input!H81,NA()) ->  | I82: =IF(I_CostMethod="Manual detailed",Input!I81,NA()) ->  | J82: =IF(I_CostMethod="Manual detailed",Input!J81,NA()) ->  | K82: =IF(I_CostMethod="Manual detailed",Input!K81,NA()) ->  | L82: =IF(I_CostMethod="Manual detailed",Input!L81,NA()) ->  | M82: =IF(I_CostMethod="Manual detailed",Input!M81,NA()) ->  | N82: =IF(I_CostMethod="Manual detailed",Input!N81,NA()) ->  | O82: =IF(I_CostMethod="Manual detailed",Input!O81,NA()) ->  | P82: =IF(I_CostMethod="Manual detailed",Input!P81,NA()) ->  | Q82: =IF(I_CostMethod="Manual detailed",Input!Q81,NA()) ->  | R82: =IF(I_CostMethod="Manual detailed",Input!R81,NA()) ->  | S82: =IF(I_CostMethod="Manual detailed",Input!S81,NA()) ->  | T82: =IF(I_CostMethod="Manual detailed",Input!T81,NA()) ->  | U82: =IF(I_CostMethod="Manual detailed",Input!U81,NA()) ->  | V82: =IF(I_CostMethod="Manual detailed",Input!V81,NA()) ->  | W82: =IF(I_CostMethod="Manual detailed",Input!W81,NA()) ->  | X82: =IF(I_CostMethod="Manual detailed",Input!X81,NA()) ->  | Y82: =IF(I_CostMethod="Manual detailed",Input!Y81,NA()) ->  | Z82: =IF(I_CostMethod="Manual detailed",Input!Z81,NA()) ->  | AA82: =IF(I_CostMethod="Manual detailed",Input!AA81,NA()) ->  | AB82: =IF(I_CostMethod="Manual detailed",Input!AB81,NA()) ->  | AC82: =IF(I_CostMethod="Manual detailed",Input!AC81,NA()) ->  | AD82: =IF(I_CostMethod="Manual detailed",Input!AD81,NA()) ->  | AE82: =IF(I_CostMethod="Manual detailed",Input!AE81,NA()) ->  | AF82: =IF(I_CostMethod="Manual detailed",Input!AF81,NA()) ->  | AG82: =IF(I_CostMethod="Manual detailed",Input!AG81,NA()) ->  | AH82: =IF(I_CostMethod="Manual detailed",Input!AH81,NA()) ->  | AI82: =IF(I_CostMethod="Manual detailed",Input!AI81,NA()) ->  | AJ82: =IF(I_CostMethod="Manual detailed",Input!AJ81,NA()) ->  | AK82: =IF(I_CostMethod="Manual detailed",Input!AK81,NA()) ->  | AL82: =IF(I_CostMethod="Manual detailed",Input!AL81,NA()) ->  | AM82: =IF(I_CostMethod="Manual detailed",Input!AM81,NA()) ->  | AN82: =IF(I_CostMethod="Manual detailed",Input!AN81,NA()) ->  | AO82: =IF(I_CostMethod="Manual detailed",Input!AO81,NA()) ->  | AP82: =IF(I_CostMethod="Manual detailed",Input!AP81,NA()) ->  | AQ82: =IF(I_CostMethod="Manual detailed",Input!AQ81,NA()) ->  | AR82: =IF(I_CostMethod="Manual detailed",Input!AR81,NA()) ->  | AS82: =IF(I_CostMethod="Manual detailed",Input!AS81,NA()) ->  | AT82: =IF(I_CostMethod="Manual detailed",Input!AT81,NA()) ->  | AU82: =IF(I_CostMethod="Manual detailed",Input!AU81,NA()) ->  | AV82: =IF(I_CostMethod="Manual detailed",Input!AV81,NA()) ->  | AW82: =IF(I_CostMethod="Manual detailed",Input!AW81,NA()) ->  | AX82: =IF(I_CostMethod="Manual detailed",Input!AX81,NA()) -> 
B83: =Input!$B$82 -> O&M - Support Structures | E83: EURm | F83: N | H83: =IF(I_CostMethod="Manual detailed",Input!H82,NA()) ->  | I83: =IF(I_CostMethod="Manual detailed",Input!I82,NA()) ->  | J83: =IF(I_CostMethod="Manual detailed",Input!J82,NA()) ->  | K83: =IF(I_CostMethod="Manual detailed",Input!K82,NA()) ->  | L83: =IF(I_CostMethod="Manual detailed",Input!L82,NA()) ->  | M83: =IF(I_CostMethod="Manual detailed",Input!M82,NA()) ->  | N83: =IF(I_CostMethod="Manual detailed",Input!N82,NA()) ->  | O83: =IF(I_CostMethod="Manual detailed",Input!O82,NA()) ->  | P83: =IF(I_CostMethod="Manual detailed",Input!P82,NA()) ->  | Q83: =IF(I_CostMethod="Manual detailed",Input!Q82,NA()) ->  | R83: =IF(I_CostMethod="Manual detailed",Input!R82,NA()) ->  | S83: =IF(I_CostMethod="Manual detailed",Input!S82,NA()) ->  | T83: =IF(I_CostMethod="Manual detailed",Input!T82,NA()) ->  | U83: =IF(I_CostMethod="Manual detailed",Input!U82,NA()) ->  | V83: =IF(I_CostMethod="Manual detailed",Input!V82,NA()) ->  | W83: =IF(I_CostMethod="Manual detailed",Input!W82,NA()) ->  | X83: =IF(I_CostMethod="Manual detailed",Input!X82,NA()) ->  | Y83: =IF(I_CostMethod="Manual detailed",Input!Y82,NA()) ->  | Z83: =IF(I_CostMethod="Manual detailed",Input!Z82,NA()) ->  | AA83: =IF(I_CostMethod="Manual detailed",Input!AA82,NA()) ->  | AB83: =IF(I_CostMethod="Manual detailed",Input!AB82,NA()) ->  | AC83: =IF(I_CostMethod="Manual detailed",Input!AC82,NA()) ->  | AD83: =IF(I_CostMethod="Manual detailed",Input!AD82,NA()) ->  | AE83: =IF(I_CostMethod="Manual detailed",Input!AE82,NA()) ->  | AF83: =IF(I_CostMethod="Manual detailed",Input!AF82,NA()) ->  | AG83: =IF(I_CostMethod="Manual detailed",Input!AG82,NA()) ->  | AH83: =IF(I_CostMethod="Manual detailed",Input!AH82,NA()) ->  | AI83: =IF(I_CostMethod="Manual detailed",Input!AI82,NA()) ->  | AJ83: =IF(I_CostMethod="Manual detailed",Input!AJ82,NA()) ->  | AK83: =IF(I_CostMethod="Manual detailed",Input!AK82,NA()) ->  | AL83: =IF(I_CostMethod="Manual detailed",Input!AL82,NA()) ->  | AM83: =IF(I_CostMethod="Manual detailed",Input!AM82,NA()) ->  | AN83: =IF(I_CostMethod="Manual detailed",Input!AN82,NA()) ->  | AO83: =IF(I_CostMethod="Manual detailed",Input!AO82,NA()) ->  | AP83: =IF(I_CostMethod="Manual detailed",Input!AP82,NA()) ->  | AQ83: =IF(I_CostMethod="Manual detailed",Input!AQ82,NA()) ->  | AR83: =IF(I_CostMethod="Manual detailed",Input!AR82,NA()) ->  | AS83: =IF(I_CostMethod="Manual detailed",Input!AS82,NA()) ->  | AT83: =IF(I_CostMethod="Manual detailed",Input!AT82,NA()) ->  | AU83: =IF(I_CostMethod="Manual detailed",Input!AU82,NA()) ->  | AV83: =IF(I_CostMethod="Manual detailed",Input!AV82,NA()) ->  | AW83: =IF(I_CostMethod="Manual detailed",Input!AW82,NA()) ->  | AX83: =IF(I_CostMethod="Manual detailed",Input!AX82,NA()) -> 
B84: =Input!$B$83 -> O&M - Wind turbines | E84: EURm | F84: N | H84: =IF(I_CostMethod="Manual detailed",Input!H83,NA()) ->  | I84: =IF(I_CostMethod="Manual detailed",Input!I83,NA()) ->  | J84: =IF(I_CostMethod="Manual detailed",Input!J83,NA()) ->  | K84: =IF(I_CostMethod="Manual detailed",Input!K83,NA()) ->  | L84: =IF(I_CostMethod="Manual detailed",Input!L83,NA()) ->  | M84: =IF(I_CostMethod="Manual detailed",Input!M83,NA()) ->  | N84: =IF(I_CostMethod="Manual detailed",Input!N83,NA()) ->  | O84: =IF(I_CostMethod="Manual detailed",Input!O83,NA()) ->  | P84: =IF(I_CostMethod="Manual detailed",Input!P83,NA()) ->  | Q84: =IF(I_CostMethod="Manual detailed",Input!Q83,NA()) ->  | R84: =IF(I_CostMethod="Manual detailed",Input!R83,NA()) ->  | S84: =IF(I_CostMethod="Manual detailed",Input!S83,NA()) ->  | T84: =IF(I_CostMethod="Manual detailed",Input!T83,NA()) ->  | U84: =IF(I_CostMethod="Manual detailed",Input!U83,NA()) ->  | V84: =IF(I_CostMethod="Manual detailed",Input!V83,NA()) ->  | W84: =IF(I_CostMethod="Manual detailed",Input!W83,NA()) ->  | X84: =IF(I_CostMethod="Manual detailed",Input!X83,NA()) ->  | Y84: =IF(I_CostMethod="Manual detailed",Input!Y83,NA()) ->  | Z84: =IF(I_CostMethod="Manual detailed",Input!Z83,NA()) ->  | AA84: =IF(I_CostMethod="Manual detailed",Input!AA83,NA()) ->  | AB84: =IF(I_CostMethod="Manual detailed",Input!AB83,NA()) ->  | AC84: =IF(I_CostMethod="Manual detailed",Input!AC83,NA()) ->  | AD84: =IF(I_CostMethod="Manual detailed",Input!AD83,NA()) ->  | AE84: =IF(I_CostMethod="Manual detailed",Input!AE83,NA()) ->  | AF84: =IF(I_CostMethod="Manual detailed",Input!AF83,NA()) ->  | AG84: =IF(I_CostMethod="Manual detailed",Input!AG83,NA()) ->  | AH84: =IF(I_CostMethod="Manual detailed",Input!AH83,NA()) ->  | AI84: =IF(I_CostMethod="Manual detailed",Input!AI83,NA()) ->  | AJ84: =IF(I_CostMethod="Manual detailed",Input!AJ83,NA()) ->  | AK84: =IF(I_CostMethod="Manual detailed",Input!AK83,NA()) ->  | AL84: =IF(I_CostMethod="Manual detailed",Input!AL83,NA()) ->  | AM84: =IF(I_CostMethod="Manual detailed",Input!AM83,NA()) ->  | AN84: =IF(I_CostMethod="Manual detailed",Input!AN83,NA()) ->  | AO84: =IF(I_CostMethod="Manual detailed",Input!AO83,NA()) ->  | AP84: =IF(I_CostMethod="Manual detailed",Input!AP83,NA()) ->  | AQ84: =IF(I_CostMethod="Manual detailed",Input!AQ83,NA()) ->  | AR84: =IF(I_CostMethod="Manual detailed",Input!AR83,NA()) ->  | AS84: =IF(I_CostMethod="Manual detailed",Input!AS83,NA()) ->  | AT84: =IF(I_CostMethod="Manual detailed",Input!AT83,NA()) ->  | AU84: =IF(I_CostMethod="Manual detailed",Input!AU83,NA()) ->  | AV84: =IF(I_CostMethod="Manual detailed",Input!AV83,NA()) ->  | AW84: =IF(I_CostMethod="Manual detailed",Input!AW83,NA()) ->  | AX84: =IF(I_CostMethod="Manual detailed",Input!AX83,NA()) -> 
B85: =Input!$B$84 -> O&M - Export cable | E85: EURm | F85: N | H85: =IF(I_CostMethod="Manual detailed",Input!H84,NA()) ->  | I85: =IF(I_CostMethod="Manual detailed",Input!I84,NA()) ->  | J85: =IF(I_CostMethod="Manual detailed",Input!J84,NA()) ->  | K85: =IF(I_CostMethod="Manual detailed",Input!K84,NA()) ->  | L85: =IF(I_CostMethod="Manual detailed",Input!L84,NA()) ->  | M85: =IF(I_CostMethod="Manual detailed",Input!M84,NA()) ->  | N85: =IF(I_CostMethod="Manual detailed",Input!N84,NA()) ->  | O85: =IF(I_CostMethod="Manual detailed",Input!O84,NA()) ->  | P85: =IF(I_CostMethod="Manual detailed",Input!P84,NA()) ->  | Q85: =IF(I_CostMethod="Manual detailed",Input!Q84,NA()) ->  | R85: =IF(I_CostMethod="Manual detailed",Input!R84,NA()) ->  | S85: =IF(I_CostMethod="Manual detailed",Input!S84,NA()) ->  | T85: =IF(I_CostMethod="Manual detailed",Input!T84,NA()) ->  | U85: =IF(I_CostMethod="Manual detailed",Input!U84,NA()) ->  | V85: =IF(I_CostMethod="Manual detailed",Input!V84,NA()) ->  | W85: =IF(I_CostMethod="Manual detailed",Input!W84,NA()) ->  | X85: =IF(I_CostMethod="Manual detailed",Input!X84,NA()) ->  | Y85: =IF(I_CostMethod="Manual detailed",Input!Y84,NA()) ->  | Z85: =IF(I_CostMethod="Manual detailed",Input!Z84,NA()) ->  | AA85: =IF(I_CostMethod="Manual detailed",Input!AA84,NA()) ->  | AB85: =IF(I_CostMethod="Manual detailed",Input!AB84,NA()) ->  | AC85: =IF(I_CostMethod="Manual detailed",Input!AC84,NA()) ->  | AD85: =IF(I_CostMethod="Manual detailed",Input!AD84,NA()) ->  | AE85: =IF(I_CostMethod="Manual detailed",Input!AE84,NA()) ->  | AF85: =IF(I_CostMethod="Manual detailed",Input!AF84,NA()) ->  | AG85: =IF(I_CostMethod="Manual detailed",Input!AG84,NA()) ->  | AH85: =IF(I_CostMethod="Manual detailed",Input!AH84,NA()) ->  | AI85: =IF(I_CostMethod="Manual detailed",Input!AI84,NA()) ->  | AJ85: =IF(I_CostMethod="Manual detailed",Input!AJ84,NA()) ->  | AK85: =IF(I_CostMethod="Manual detailed",Input!AK84,NA()) ->  | AL85: =IF(I_CostMethod="Manual detailed",Input!AL84,NA()) ->  | AM85: =IF(I_CostMethod="Manual detailed",Input!AM84,NA()) ->  | AN85: =IF(I_CostMethod="Manual detailed",Input!AN84,NA()) ->  | AO85: =IF(I_CostMethod="Manual detailed",Input!AO84,NA()) ->  | AP85: =IF(I_CostMethod="Manual detailed",Input!AP84,NA()) ->  | AQ85: =IF(I_CostMethod="Manual detailed",Input!AQ84,NA()) ->  | AR85: =IF(I_CostMethod="Manual detailed",Input!AR84,NA()) ->  | AS85: =IF(I_CostMethod="Manual detailed",Input!AS84,NA()) ->  | AT85: =IF(I_CostMethod="Manual detailed",Input!AT84,NA()) ->  | AU85: =IF(I_CostMethod="Manual detailed",Input!AU84,NA()) ->  | AV85: =IF(I_CostMethod="Manual detailed",Input!AV84,NA()) ->  | AW85: =IF(I_CostMethod="Manual detailed",Input!AW84,NA()) ->  | AX85: =IF(I_CostMethod="Manual detailed",Input!AX84,NA()) -> 
B86: =Input!$B$85 -> O&M - Onshore substation | E86: EURm | F86: N | H86: =IF(I_CostMethod="Manual detailed",Input!H85,NA()) ->  | I86: =IF(I_CostMethod="Manual detailed",Input!I85,NA()) ->  | J86: =IF(I_CostMethod="Manual detailed",Input!J85,NA()) ->  | K86: =IF(I_CostMethod="Manual detailed",Input!K85,NA()) ->  | L86: =IF(I_CostMethod="Manual detailed",Input!L85,NA()) ->  | M86: =IF(I_CostMethod="Manual detailed",Input!M85,NA()) ->  | N86: =IF(I_CostMethod="Manual detailed",Input!N85,NA()) ->  | O86: =IF(I_CostMethod="Manual detailed",Input!O85,NA()) ->  | P86: =IF(I_CostMethod="Manual detailed",Input!P85,NA()) ->  | Q86: =IF(I_CostMethod="Manual detailed",Input!Q85,NA()) ->  | R86: =IF(I_CostMethod="Manual detailed",Input!R85,NA()) ->  | S86: =IF(I_CostMethod="Manual detailed",Input!S85,NA()) ->  | T86: =IF(I_CostMethod="Manual detailed",Input!T85,NA()) ->  | U86: =IF(I_CostMethod="Manual detailed",Input!U85,NA()) ->  | V86: =IF(I_CostMethod="Manual detailed",Input!V85,NA()) ->  | W86: =IF(I_CostMethod="Manual detailed",Input!W85,NA()) ->  | X86: =IF(I_CostMethod="Manual detailed",Input!X85,NA()) ->  | Y86: =IF(I_CostMethod="Manual detailed",Input!Y85,NA()) ->  | Z86: =IF(I_CostMethod="Manual detailed",Input!Z85,NA()) ->  | AA86: =IF(I_CostMethod="Manual detailed",Input!AA85,NA()) ->  | AB86: =IF(I_CostMethod="Manual detailed",Input!AB85,NA()) ->  | AC86: =IF(I_CostMethod="Manual detailed",Input!AC85,NA()) ->  | AD86: =IF(I_CostMethod="Manual detailed",Input!AD85,NA()) ->  | AE86: =IF(I_CostMethod="Manual detailed",Input!AE85,NA()) ->  | AF86: =IF(I_CostMethod="Manual detailed",Input!AF85,NA()) ->  | AG86: =IF(I_CostMethod="Manual detailed",Input!AG85,NA()) ->  | AH86: =IF(I_CostMethod="Manual detailed",Input!AH85,NA()) ->  | AI86: =IF(I_CostMethod="Manual detailed",Input!AI85,NA()) ->  | AJ86: =IF(I_CostMethod="Manual detailed",Input!AJ85,NA()) ->  | AK86: =IF(I_CostMethod="Manual detailed",Input!AK85,NA()) ->  | AL86: =IF(I_CostMethod="Manual detailed",Input!AL85,NA()) ->  | AM86: =IF(I_CostMethod="Manual detailed",Input!AM85,NA()) ->  | AN86: =IF(I_CostMethod="Manual detailed",Input!AN85,NA()) ->  | AO86: =IF(I_CostMethod="Manual detailed",Input!AO85,NA()) ->  | AP86: =IF(I_CostMethod="Manual detailed",Input!AP85,NA()) ->  | AQ86: =IF(I_CostMethod="Manual detailed",Input!AQ85,NA()) ->  | AR86: =IF(I_CostMethod="Manual detailed",Input!AR85,NA()) ->  | AS86: =IF(I_CostMethod="Manual detailed",Input!AS85,NA()) ->  | AT86: =IF(I_CostMethod="Manual detailed",Input!AT85,NA()) ->  | AU86: =IF(I_CostMethod="Manual detailed",Input!AU85,NA()) ->  | AV86: =IF(I_CostMethod="Manual detailed",Input!AV85,NA()) ->  | AW86: =IF(I_CostMethod="Manual detailed",Input!AW85,NA()) ->  | AX86: =IF(I_CostMethod="Manual detailed",Input!AX85,NA()) -> 
B87: =Input!$B$86 -> O&M - Offshore substation | E87: EURm | F87: N | H87: =IF(I_CostMethod="Manual detailed",Input!H86,NA()) ->  | I87: =IF(I_CostMethod="Manual detailed",Input!I86,NA()) ->  | J87: =IF(I_CostMethod="Manual detailed",Input!J86,NA()) ->  | K87: =IF(I_CostMethod="Manual detailed",Input!K86,NA()) ->  | L87: =IF(I_CostMethod="Manual detailed",Input!L86,NA()) ->  | M87: =IF(I_CostMethod="Manual detailed",Input!M86,NA()) ->  | N87: =IF(I_CostMethod="Manual detailed",Input!N86,NA()) ->  | O87: =IF(I_CostMethod="Manual detailed",Input!O86,NA()) ->  | P87: =IF(I_CostMethod="Manual detailed",Input!P86,NA()) ->  | Q87: =IF(I_CostMethod="Manual detailed",Input!Q86,NA()) ->  | R87: =IF(I_CostMethod="Manual detailed",Input!R86,NA()) ->  | S87: =IF(I_CostMethod="Manual detailed",Input!S86,NA()) ->  | T87: =IF(I_CostMethod="Manual detailed",Input!T86,NA()) ->  | U87: =IF(I_CostMethod="Manual detailed",Input!U86,NA()) ->  | V87: =IF(I_CostMethod="Manual detailed",Input!V86,NA()) ->  | W87: =IF(I_CostMethod="Manual detailed",Input!W86,NA()) ->  | X87: =IF(I_CostMethod="Manual detailed",Input!X86,NA()) ->  | Y87: =IF(I_CostMethod="Manual detailed",Input!Y86,NA()) ->  | Z87: =IF(I_CostMethod="Manual detailed",Input!Z86,NA()) ->  | AA87: =IF(I_CostMethod="Manual detailed",Input!AA86,NA()) ->  | AB87: =IF(I_CostMethod="Manual detailed",Input!AB86,NA()) ->  | AC87: =IF(I_CostMethod="Manual detailed",Input!AC86,NA()) ->  | AD87: =IF(I_CostMethod="Manual detailed",Input!AD86,NA()) ->  | AE87: =IF(I_CostMethod="Manual detailed",Input!AE86,NA()) ->  | AF87: =IF(I_CostMethod="Manual detailed",Input!AF86,NA()) ->  | AG87: =IF(I_CostMethod="Manual detailed",Input!AG86,NA()) ->  | AH87: =IF(I_CostMethod="Manual detailed",Input!AH86,NA()) ->  | AI87: =IF(I_CostMethod="Manual detailed",Input!AI86,NA()) ->  | AJ87: =IF(I_CostMethod="Manual detailed",Input!AJ86,NA()) ->  | AK87: =IF(I_CostMethod="Manual detailed",Input!AK86,NA()) ->  | AL87: =IF(I_CostMethod="Manual detailed",Input!AL86,NA()) ->  | AM87: =IF(I_CostMethod="Manual detailed",Input!AM86,NA()) ->  | AN87: =IF(I_CostMethod="Manual detailed",Input!AN86,NA()) ->  | AO87: =IF(I_CostMethod="Manual detailed",Input!AO86,NA()) ->  | AP87: =IF(I_CostMethod="Manual detailed",Input!AP86,NA()) ->  | AQ87: =IF(I_CostMethod="Manual detailed",Input!AQ86,NA()) ->  | AR87: =IF(I_CostMethod="Manual detailed",Input!AR86,NA()) ->  | AS87: =IF(I_CostMethod="Manual detailed",Input!AS86,NA()) ->  | AT87: =IF(I_CostMethod="Manual detailed",Input!AT86,NA()) ->  | AU87: =IF(I_CostMethod="Manual detailed",Input!AU86,NA()) ->  | AV87: =IF(I_CostMethod="Manual detailed",Input!AV86,NA()) ->  | AW87: =IF(I_CostMethod="Manual detailed",Input!AW86,NA()) ->  | AX87: =IF(I_CostMethod="Manual detailed",Input!AX86,NA()) -> 
B88: =Input!$B$87 -> O&M - Array cable | E88: EURm | F88: N | H88: =IF(I_CostMethod="Manual detailed",Input!H87,NA()) ->  | I88: =IF(I_CostMethod="Manual detailed",Input!I87,NA()) ->  | J88: =IF(I_CostMethod="Manual detailed",Input!J87,NA()) ->  | K88: =IF(I_CostMethod="Manual detailed",Input!K87,NA()) ->  | L88: =IF(I_CostMethod="Manual detailed",Input!L87,NA()) ->  | M88: =IF(I_CostMethod="Manual detailed",Input!M87,NA()) ->  | N88: =IF(I_CostMethod="Manual detailed",Input!N87,NA()) ->  | O88: =IF(I_CostMethod="Manual detailed",Input!O87,NA()) ->  | P88: =IF(I_CostMethod="Manual detailed",Input!P87,NA()) ->  | Q88: =IF(I_CostMethod="Manual detailed",Input!Q87,NA()) ->  | R88: =IF(I_CostMethod="Manual detailed",Input!R87,NA()) ->  | S88: =IF(I_CostMethod="Manual detailed",Input!S87,NA()) ->  | T88: =IF(I_CostMethod="Manual detailed",Input!T87,NA()) ->  | U88: =IF(I_CostMethod="Manual detailed",Input!U87,NA()) ->  | V88: =IF(I_CostMethod="Manual detailed",Input!V87,NA()) ->  | W88: =IF(I_CostMethod="Manual detailed",Input!W87,NA()) ->  | X88: =IF(I_CostMethod="Manual detailed",Input!X87,NA()) ->  | Y88: =IF(I_CostMethod="Manual detailed",Input!Y87,NA()) ->  | Z88: =IF(I_CostMethod="Manual detailed",Input!Z87,NA()) ->  | AA88: =IF(I_CostMethod="Manual detailed",Input!AA87,NA()) ->  | AB88: =IF(I_CostMethod="Manual detailed",Input!AB87,NA()) ->  | AC88: =IF(I_CostMethod="Manual detailed",Input!AC87,NA()) ->  | AD88: =IF(I_CostMethod="Manual detailed",Input!AD87,NA()) ->  | AE88: =IF(I_CostMethod="Manual detailed",Input!AE87,NA()) ->  | AF88: =IF(I_CostMethod="Manual detailed",Input!AF87,NA()) ->  | AG88: =IF(I_CostMethod="Manual detailed",Input!AG87,NA()) ->  | AH88: =IF(I_CostMethod="Manual detailed",Input!AH87,NA()) ->  | AI88: =IF(I_CostMethod="Manual detailed",Input!AI87,NA()) ->  | AJ88: =IF(I_CostMethod="Manual detailed",Input!AJ87,NA()) ->  | AK88: =IF(I_CostMethod="Manual detailed",Input!AK87,NA()) ->  | AL88: =IF(I_CostMethod="Manual detailed",Input!AL87,NA()) ->  | AM88: =IF(I_CostMethod="Manual detailed",Input!AM87,NA()) ->  | AN88: =IF(I_CostMethod="Manual detailed",Input!AN87,NA()) ->  | AO88: =IF(I_CostMethod="Manual detailed",Input!AO87,NA()) ->  | AP88: =IF(I_CostMethod="Manual detailed",Input!AP87,NA()) ->  | AQ88: =IF(I_CostMethod="Manual detailed",Input!AQ87,NA()) ->  | AR88: =IF(I_CostMethod="Manual detailed",Input!AR87,NA()) ->  | AS88: =IF(I_CostMethod="Manual detailed",Input!AS87,NA()) ->  | AT88: =IF(I_CostMethod="Manual detailed",Input!AT87,NA()) ->  | AU88: =IF(I_CostMethod="Manual detailed",Input!AU87,NA()) ->  | AV88: =IF(I_CostMethod="Manual detailed",Input!AV87,NA()) ->  | AW88: =IF(I_CostMethod="Manual detailed",Input!AW87,NA()) ->  | AX88: =IF(I_CostMethod="Manual detailed",Input!AX87,NA()) -> 
B89: =Input!$B$88 -> OPEX category8 | E89: EURm | F89: N | H89: =IF(I_CostMethod="Manual detailed",Input!H88,NA()) ->  | I89: =IF(I_CostMethod="Manual detailed",Input!I88,NA()) ->  | J89: =IF(I_CostMethod="Manual detailed",Input!J88,NA()) ->  | K89: =IF(I_CostMethod="Manual detailed",Input!K88,NA()) ->  | L89: =IF(I_CostMethod="Manual detailed",Input!L88,NA()) ->  | M89: =IF(I_CostMethod="Manual detailed",Input!M88,NA()) ->  | N89: =IF(I_CostMethod="Manual detailed",Input!N88,NA()) ->  | O89: =IF(I_CostMethod="Manual detailed",Input!O88,NA()) ->  | P89: =IF(I_CostMethod="Manual detailed",Input!P88,NA()) ->  | Q89: =IF(I_CostMethod="Manual detailed",Input!Q88,NA()) ->  | R89: =IF(I_CostMethod="Manual detailed",Input!R88,NA()) ->  | S89: =IF(I_CostMethod="Manual detailed",Input!S88,NA()) ->  | T89: =IF(I_CostMethod="Manual detailed",Input!T88,NA()) ->  | U89: =IF(I_CostMethod="Manual detailed",Input!U88,NA()) ->  | V89: =IF(I_CostMethod="Manual detailed",Input!V88,NA()) ->  | W89: =IF(I_CostMethod="Manual detailed",Input!W88,NA()) ->  | X89: =IF(I_CostMethod="Manual detailed",Input!X88,NA()) ->  | Y89: =IF(I_CostMethod="Manual detailed",Input!Y88,NA()) ->  | Z89: =IF(I_CostMethod="Manual detailed",Input!Z88,NA()) ->  | AA89: =IF(I_CostMethod="Manual detailed",Input!AA88,NA()) ->  | AB89: =IF(I_CostMethod="Manual detailed",Input!AB88,NA()) ->  | AC89: =IF(I_CostMethod="Manual detailed",Input!AC88,NA()) ->  | AD89: =IF(I_CostMethod="Manual detailed",Input!AD88,NA()) ->  | AE89: =IF(I_CostMethod="Manual detailed",Input!AE88,NA()) ->  | AF89: =IF(I_CostMethod="Manual detailed",Input!AF88,NA()) ->  | AG89: =IF(I_CostMethod="Manual detailed",Input!AG88,NA()) ->  | AH89: =IF(I_CostMethod="Manual detailed",Input!AH88,NA()) ->  | AI89: =IF(I_CostMethod="Manual detailed",Input!AI88,NA()) ->  | AJ89: =IF(I_CostMethod="Manual detailed",Input!AJ88,NA()) ->  | AK89: =IF(I_CostMethod="Manual detailed",Input!AK88,NA()) ->  | AL89: =IF(I_CostMethod="Manual detailed",Input!AL88,NA()) ->  | AM89: =IF(I_CostMethod="Manual detailed",Input!AM88,NA()) ->  | AN89: =IF(I_CostMethod="Manual detailed",Input!AN88,NA()) ->  | AO89: =IF(I_CostMethod="Manual detailed",Input!AO88,NA()) ->  | AP89: =IF(I_CostMethod="Manual detailed",Input!AP88,NA()) ->  | AQ89: =IF(I_CostMethod="Manual detailed",Input!AQ88,NA()) ->  | AR89: =IF(I_CostMethod="Manual detailed",Input!AR88,NA()) ->  | AS89: =IF(I_CostMethod="Manual detailed",Input!AS88,NA()) ->  | AT89: =IF(I_CostMethod="Manual detailed",Input!AT88,NA()) ->  | AU89: =IF(I_CostMethod="Manual detailed",Input!AU88,NA()) ->  | AV89: =IF(I_CostMethod="Manual detailed",Input!AV88,NA()) ->  | AW89: =IF(I_CostMethod="Manual detailed",Input!AW88,NA()) ->  | AX89: =IF(I_CostMethod="Manual detailed",Input!AX88,NA()) -> 
B90: =Input!$B$89 -> OPEX category9 | E90: EURm | F90: N | H90: =IF(I_CostMethod="Manual detailed",Input!H89,NA()) ->  | I90: =IF(I_CostMethod="Manual detailed",Input!I89,NA()) ->  | J90: =IF(I_CostMethod="Manual detailed",Input!J89,NA()) ->  | K90: =IF(I_CostMethod="Manual detailed",Input!K89,NA()) ->  | L90: =IF(I_CostMethod="Manual detailed",Input!L89,NA()) ->  | M90: =IF(I_CostMethod="Manual detailed",Input!M89,NA()) ->  | N90: =IF(I_CostMethod="Manual detailed",Input!N89,NA()) ->  | O90: =IF(I_CostMethod="Manual detailed",Input!O89,NA()) ->  | P90: =IF(I_CostMethod="Manual detailed",Input!P89,NA()) ->  | Q90: =IF(I_CostMethod="Manual detailed",Input!Q89,NA()) ->  | R90: =IF(I_CostMethod="Manual detailed",Input!R89,NA()) ->  | S90: =IF(I_CostMethod="Manual detailed",Input!S89,NA()) ->  | T90: =IF(I_CostMethod="Manual detailed",Input!T89,NA()) ->  | U90: =IF(I_CostMethod="Manual detailed",Input!U89,NA()) ->  | V90: =IF(I_CostMethod="Manual detailed",Input!V89,NA()) ->  | W90: =IF(I_CostMethod="Manual detailed",Input!W89,NA()) ->  | X90: =IF(I_CostMethod="Manual detailed",Input!X89,NA()) ->  | Y90: =IF(I_CostMethod="Manual detailed",Input!Y89,NA()) ->  | Z90: =IF(I_CostMethod="Manual detailed",Input!Z89,NA()) ->  | AA90: =IF(I_CostMethod="Manual detailed",Input!AA89,NA()) ->  | AB90: =IF(I_CostMethod="Manual detailed",Input!AB89,NA()) ->  | AC90: =IF(I_CostMethod="Manual detailed",Input!AC89,NA()) ->  | AD90: =IF(I_CostMethod="Manual detailed",Input!AD89,NA()) ->  | AE90: =IF(I_CostMethod="Manual detailed",Input!AE89,NA()) ->  | AF90: =IF(I_CostMethod="Manual detailed",Input!AF89,NA()) ->  | AG90: =IF(I_CostMethod="Manual detailed",Input!AG89,NA()) ->  | AH90: =IF(I_CostMethod="Manual detailed",Input!AH89,NA()) ->  | AI90: =IF(I_CostMethod="Manual detailed",Input!AI89,NA()) ->  | AJ90: =IF(I_CostMethod="Manual detailed",Input!AJ89,NA()) ->  | AK90: =IF(I_CostMethod="Manual detailed",Input!AK89,NA()) ->  | AL90: =IF(I_CostMethod="Manual detailed",Input!AL89,NA()) ->  | AM90: =IF(I_CostMethod="Manual detailed",Input!AM89,NA()) ->  | AN90: =IF(I_CostMethod="Manual detailed",Input!AN89,NA()) ->  | AO90: =IF(I_CostMethod="Manual detailed",Input!AO89,NA()) ->  | AP90: =IF(I_CostMethod="Manual detailed",Input!AP89,NA()) ->  | AQ90: =IF(I_CostMethod="Manual detailed",Input!AQ89,NA()) ->  | AR90: =IF(I_CostMethod="Manual detailed",Input!AR89,NA()) ->  | AS90: =IF(I_CostMethod="Manual detailed",Input!AS89,NA()) ->  | AT90: =IF(I_CostMethod="Manual detailed",Input!AT89,NA()) ->  | AU90: =IF(I_CostMethod="Manual detailed",Input!AU89,NA()) ->  | AV90: =IF(I_CostMethod="Manual detailed",Input!AV89,NA()) ->  | AW90: =IF(I_CostMethod="Manual detailed",Input!AW89,NA()) ->  | AX90: =IF(I_CostMethod="Manual detailed",Input!AX89,NA()) -> 
B91: =Input!$B$90 -> OPEX category10 | E91: EURm | F91: N | H91: =IF(I_CostMethod="Manual detailed",Input!H90,NA()) ->  | I91: =IF(I_CostMethod="Manual detailed",Input!I90,NA()) ->  | J91: =IF(I_CostMethod="Manual detailed",Input!J90,NA()) ->  | K91: =IF(I_CostMethod="Manual detailed",Input!K90,NA()) ->  | L91: =IF(I_CostMethod="Manual detailed",Input!L90,NA()) ->  | M91: =IF(I_CostMethod="Manual detailed",Input!M90,NA()) ->  | N91: =IF(I_CostMethod="Manual detailed",Input!N90,NA()) ->  | O91: =IF(I_CostMethod="Manual detailed",Input!O90,NA()) ->  | P91: =IF(I_CostMethod="Manual detailed",Input!P90,NA()) ->  | Q91: =IF(I_CostMethod="Manual detailed",Input!Q90,NA()) ->  | R91: =IF(I_CostMethod="Manual detailed",Input!R90,NA()) ->  | S91: =IF(I_CostMethod="Manual detailed",Input!S90,NA()) ->  | T91: =IF(I_CostMethod="Manual detailed",Input!T90,NA()) ->  | U91: =IF(I_CostMethod="Manual detailed",Input!U90,NA()) ->  | V91: =IF(I_CostMethod="Manual detailed",Input!V90,NA()) ->  | W91: =IF(I_CostMethod="Manual detailed",Input!W90,NA()) ->  | X91: =IF(I_CostMethod="Manual detailed",Input!X90,NA()) ->  | Y91: =IF(I_CostMethod="Manual detailed",Input!Y90,NA()) ->  | Z91: =IF(I_CostMethod="Manual detailed",Input!Z90,NA()) ->  | AA91: =IF(I_CostMethod="Manual detailed",Input!AA90,NA()) ->  | AB91: =IF(I_CostMethod="Manual detailed",Input!AB90,NA()) ->  | AC91: =IF(I_CostMethod="Manual detailed",Input!AC90,NA()) ->  | AD91: =IF(I_CostMethod="Manual detailed",Input!AD90,NA()) ->  | AE91: =IF(I_CostMethod="Manual detailed",Input!AE90,NA()) ->  | AF91: =IF(I_CostMethod="Manual detailed",Input!AF90,NA()) ->  | AG91: =IF(I_CostMethod="Manual detailed",Input!AG90,NA()) ->  | AH91: =IF(I_CostMethod="Manual detailed",Input!AH90,NA()) ->  | AI91: =IF(I_CostMethod="Manual detailed",Input!AI90,NA()) ->  | AJ91: =IF(I_CostMethod="Manual detailed",Input!AJ90,NA()) ->  | AK91: =IF(I_CostMethod="Manual detailed",Input!AK90,NA()) ->  | AL91: =IF(I_CostMethod="Manual detailed",Input!AL90,NA()) ->  | AM91: =IF(I_CostMethod="Manual detailed",Input!AM90,NA()) ->  | AN91: =IF(I_CostMethod="Manual detailed",Input!AN90,NA()) ->  | AO91: =IF(I_CostMethod="Manual detailed",Input!AO90,NA()) ->  | AP91: =IF(I_CostMethod="Manual detailed",Input!AP90,NA()) ->  | AQ91: =IF(I_CostMethod="Manual detailed",Input!AQ90,NA()) ->  | AR91: =IF(I_CostMethod="Manual detailed",Input!AR90,NA()) ->  | AS91: =IF(I_CostMethod="Manual detailed",Input!AS90,NA()) ->  | AT91: =IF(I_CostMethod="Manual detailed",Input!AT90,NA()) ->  | AU91: =IF(I_CostMethod="Manual detailed",Input!AU90,NA()) ->  | AV91: =IF(I_CostMethod="Manual detailed",Input!AV90,NA()) ->  | AW91: =IF(I_CostMethod="Manual detailed",Input!AW90,NA()) ->  | AX91: =IF(I_CostMethod="Manual detailed",Input!AX90,NA()) -> 
B92: =Input!$B$91 -> OPEX category11 | E92: EURm | F92: N | H92: =IF(I_CostMethod="Manual detailed",Input!H91,NA()) ->  | I92: =IF(I_CostMethod="Manual detailed",Input!I91,NA()) ->  | J92: =IF(I_CostMethod="Manual detailed",Input!J91,NA()) ->  | K92: =IF(I_CostMethod="Manual detailed",Input!K91,NA()) ->  | L92: =IF(I_CostMethod="Manual detailed",Input!L91,NA()) ->  | M92: =IF(I_CostMethod="Manual detailed",Input!M91,NA()) ->  | N92: =IF(I_CostMethod="Manual detailed",Input!N91,NA()) ->  | O92: =IF(I_CostMethod="Manual detailed",Input!O91,NA()) ->  | P92: =IF(I_CostMethod="Manual detailed",Input!P91,NA()) ->  | Q92: =IF(I_CostMethod="Manual detailed",Input!Q91,NA()) ->  | R92: =IF(I_CostMethod="Manual detailed",Input!R91,NA()) ->  | S92: =IF(I_CostMethod="Manual detailed",Input!S91,NA()) ->  | T92: =IF(I_CostMethod="Manual detailed",Input!T91,NA()) ->  | U92: =IF(I_CostMethod="Manual detailed",Input!U91,NA()) ->  | V92: =IF(I_CostMethod="Manual detailed",Input!V91,NA()) ->  | W92: =IF(I_CostMethod="Manual detailed",Input!W91,NA()) ->  | X92: =IF(I_CostMethod="Manual detailed",Input!X91,NA()) ->  | Y92: =IF(I_CostMethod="Manual detailed",Input!Y91,NA()) ->  | Z92: =IF(I_CostMethod="Manual detailed",Input!Z91,NA()) ->  | AA92: =IF(I_CostMethod="Manual detailed",Input!AA91,NA()) ->  | AB92: =IF(I_CostMethod="Manual detailed",Input!AB91,NA()) ->  | AC92: =IF(I_CostMethod="Manual detailed",Input!AC91,NA()) ->  | AD92: =IF(I_CostMethod="Manual detailed",Input!AD91,NA()) ->  | AE92: =IF(I_CostMethod="Manual detailed",Input!AE91,NA()) ->  | AF92: =IF(I_CostMethod="Manual detailed",Input!AF91,NA()) ->  | AG92: =IF(I_CostMethod="Manual detailed",Input!AG91,NA()) ->  | AH92: =IF(I_CostMethod="Manual detailed",Input!AH91,NA()) ->  | AI92: =IF(I_CostMethod="Manual detailed",Input!AI91,NA()) ->  | AJ92: =IF(I_CostMethod="Manual detailed",Input!AJ91,NA()) ->  | AK92: =IF(I_CostMethod="Manual detailed",Input!AK91,NA()) ->  | AL92: =IF(I_CostMethod="Manual detailed",Input!AL91,NA()) ->  | AM92: =IF(I_CostMethod="Manual detailed",Input!AM91,NA()) ->  | AN92: =IF(I_CostMethod="Manual detailed",Input!AN91,NA()) ->  | AO92: =IF(I_CostMethod="Manual detailed",Input!AO91,NA()) ->  | AP92: =IF(I_CostMethod="Manual detailed",Input!AP91,NA()) ->  | AQ92: =IF(I_CostMethod="Manual detailed",Input!AQ91,NA()) ->  | AR92: =IF(I_CostMethod="Manual detailed",Input!AR91,NA()) ->  | AS92: =IF(I_CostMethod="Manual detailed",Input!AS91,NA()) ->  | AT92: =IF(I_CostMethod="Manual detailed",Input!AT91,NA()) ->  | AU92: =IF(I_CostMethod="Manual detailed",Input!AU91,NA()) ->  | AV92: =IF(I_CostMethod="Manual detailed",Input!AV91,NA()) ->  | AW92: =IF(I_CostMethod="Manual detailed",Input!AW91,NA()) ->  | AX92: =IF(I_CostMethod="Manual detailed",Input!AX91,NA()) -> 
B93: =Input!$B$92 -> OPEX category12 | E93: EURm | F93: N | H93: =IF(I_CostMethod="Manual detailed",Input!H92,NA()) ->  | I93: =IF(I_CostMethod="Manual detailed",Input!I92,NA()) ->  | J93: =IF(I_CostMethod="Manual detailed",Input!J92,NA()) ->  | K93: =IF(I_CostMethod="Manual detailed",Input!K92,NA()) ->  | L93: =IF(I_CostMethod="Manual detailed",Input!L92,NA()) ->  | M93: =IF(I_CostMethod="Manual detailed",Input!M92,NA()) ->  | N93: =IF(I_CostMethod="Manual detailed",Input!N92,NA()) ->  | O93: =IF(I_CostMethod="Manual detailed",Input!O92,NA()) ->  | P93: =IF(I_CostMethod="Manual detailed",Input!P92,NA()) ->  | Q93: =IF(I_CostMethod="Manual detailed",Input!Q92,NA()) ->  | R93: =IF(I_CostMethod="Manual detailed",Input!R92,NA()) ->  | S93: =IF(I_CostMethod="Manual detailed",Input!S92,NA()) ->  | T93: =IF(I_CostMethod="Manual detailed",Input!T92,NA()) ->  | U93: =IF(I_CostMethod="Manual detailed",Input!U92,NA()) ->  | V93: =IF(I_CostMethod="Manual detailed",Input!V92,NA()) ->  | W93: =IF(I_CostMethod="Manual detailed",Input!W92,NA()) ->  | X93: =IF(I_CostMethod="Manual detailed",Input!X92,NA()) ->  | Y93: =IF(I_CostMethod="Manual detailed",Input!Y92,NA()) ->  | Z93: =IF(I_CostMethod="Manual detailed",Input!Z92,NA()) ->  | AA93: =IF(I_CostMethod="Manual detailed",Input!AA92,NA()) ->  | AB93: =IF(I_CostMethod="Manual detailed",Input!AB92,NA()) ->  | AC93: =IF(I_CostMethod="Manual detailed",Input!AC92,NA()) ->  | AD93: =IF(I_CostMethod="Manual detailed",Input!AD92,NA()) ->  | AE93: =IF(I_CostMethod="Manual detailed",Input!AE92,NA()) ->  | AF93: =IF(I_CostMethod="Manual detailed",Input!AF92,NA()) ->  | AG93: =IF(I_CostMethod="Manual detailed",Input!AG92,NA()) ->  | AH93: =IF(I_CostMethod="Manual detailed",Input!AH92,NA()) ->  | AI93: =IF(I_CostMethod="Manual detailed",Input!AI92,NA()) ->  | AJ93: =IF(I_CostMethod="Manual detailed",Input!AJ92,NA()) ->  | AK93: =IF(I_CostMethod="Manual detailed",Input!AK92,NA()) ->  | AL93: =IF(I_CostMethod="Manual detailed",Input!AL92,NA()) ->  | AM93: =IF(I_CostMethod="Manual detailed",Input!AM92,NA()) ->  | AN93: =IF(I_CostMethod="Manual detailed",Input!AN92,NA()) ->  | AO93: =IF(I_CostMethod="Manual detailed",Input!AO92,NA()) ->  | AP93: =IF(I_CostMethod="Manual detailed",Input!AP92,NA()) ->  | AQ93: =IF(I_CostMethod="Manual detailed",Input!AQ92,NA()) ->  | AR93: =IF(I_CostMethod="Manual detailed",Input!AR92,NA()) ->  | AS93: =IF(I_CostMethod="Manual detailed",Input!AS92,NA()) ->  | AT93: =IF(I_CostMethod="Manual detailed",Input!AT92,NA()) ->  | AU93: =IF(I_CostMethod="Manual detailed",Input!AU92,NA()) ->  | AV93: =IF(I_CostMethod="Manual detailed",Input!AV92,NA()) ->  | AW93: =IF(I_CostMethod="Manual detailed",Input!AW92,NA()) ->  | AX93: =IF(I_CostMethod="Manual detailed",Input!AX92,NA()) -> 
B94: =Input!$B$93 -> OPEX category13 | E94: EURm | F94: N | H94: =IF(I_CostMethod="Manual detailed",Input!H93,NA()) ->  | I94: =IF(I_CostMethod="Manual detailed",Input!I93,NA()) ->  | J94: =IF(I_CostMethod="Manual detailed",Input!J93,NA()) ->  | K94: =IF(I_CostMethod="Manual detailed",Input!K93,NA()) ->  | L94: =IF(I_CostMethod="Manual detailed",Input!L93,NA()) ->  | M94: =IF(I_CostMethod="Manual detailed",Input!M93,NA()) ->  | N94: =IF(I_CostMethod="Manual detailed",Input!N93,NA()) ->  | O94: =IF(I_CostMethod="Manual detailed",Input!O93,NA()) ->  | P94: =IF(I_CostMethod="Manual detailed",Input!P93,NA()) ->  | Q94: =IF(I_CostMethod="Manual detailed",Input!Q93,NA()) ->  | R94: =IF(I_CostMethod="Manual detailed",Input!R93,NA()) ->  | S94: =IF(I_CostMethod="Manual detailed",Input!S93,NA()) ->  | T94: =IF(I_CostMethod="Manual detailed",Input!T93,NA()) ->  | U94: =IF(I_CostMethod="Manual detailed",Input!U93,NA()) ->  | V94: =IF(I_CostMethod="Manual detailed",Input!V93,NA()) ->  | W94: =IF(I_CostMethod="Manual detailed",Input!W93,NA()) ->  | X94: =IF(I_CostMethod="Manual detailed",Input!X93,NA()) ->  | Y94: =IF(I_CostMethod="Manual detailed",Input!Y93,NA()) ->  | Z94: =IF(I_CostMethod="Manual detailed",Input!Z93,NA()) ->  | AA94: =IF(I_CostMethod="Manual detailed",Input!AA93,NA()) ->  | AB94: =IF(I_CostMethod="Manual detailed",Input!AB93,NA()) ->  | AC94: =IF(I_CostMethod="Manual detailed",Input!AC93,NA()) ->  | AD94: =IF(I_CostMethod="Manual detailed",Input!AD93,NA()) ->  | AE94: =IF(I_CostMethod="Manual detailed",Input!AE93,NA()) ->  | AF94: =IF(I_CostMethod="Manual detailed",Input!AF93,NA()) ->  | AG94: =IF(I_CostMethod="Manual detailed",Input!AG93,NA()) ->  | AH94: =IF(I_CostMethod="Manual detailed",Input!AH93,NA()) ->  | AI94: =IF(I_CostMethod="Manual detailed",Input!AI93,NA()) ->  | AJ94: =IF(I_CostMethod="Manual detailed",Input!AJ93,NA()) ->  | AK94: =IF(I_CostMethod="Manual detailed",Input!AK93,NA()) ->  | AL94: =IF(I_CostMethod="Manual detailed",Input!AL93,NA()) ->  | AM94: =IF(I_CostMethod="Manual detailed",Input!AM93,NA()) ->  | AN94: =IF(I_CostMethod="Manual detailed",Input!AN93,NA()) ->  | AO94: =IF(I_CostMethod="Manual detailed",Input!AO93,NA()) ->  | AP94: =IF(I_CostMethod="Manual detailed",Input!AP93,NA()) ->  | AQ94: =IF(I_CostMethod="Manual detailed",Input!AQ93,NA()) ->  | AR94: =IF(I_CostMethod="Manual detailed",Input!AR93,NA()) ->  | AS94: =IF(I_CostMethod="Manual detailed",Input!AS93,NA()) ->  | AT94: =IF(I_CostMethod="Manual detailed",Input!AT93,NA()) ->  | AU94: =IF(I_CostMethod="Manual detailed",Input!AU93,NA()) ->  | AV94: =IF(I_CostMethod="Manual detailed",Input!AV93,NA()) ->  | AW94: =IF(I_CostMethod="Manual detailed",Input!AW93,NA()) ->  | AX94: =IF(I_CostMethod="Manual detailed",Input!AX93,NA()) -> 
B95: =Input!$B$94 -> OPEX category14 | E95: EURm | F95: N | H95: =IF(I_CostMethod="Manual detailed",Input!H94,NA()) ->  | I95: =IF(I_CostMethod="Manual detailed",Input!I94,NA()) ->  | J95: =IF(I_CostMethod="Manual detailed",Input!J94,NA()) ->  | K95: =IF(I_CostMethod="Manual detailed",Input!K94,NA()) ->  | L95: =IF(I_CostMethod="Manual detailed",Input!L94,NA()) ->  | M95: =IF(I_CostMethod="Manual detailed",Input!M94,NA()) ->  | N95: =IF(I_CostMethod="Manual detailed",Input!N94,NA()) ->  | O95: =IF(I_CostMethod="Manual detailed",Input!O94,NA()) ->  | P95: =IF(I_CostMethod="Manual detailed",Input!P94,NA()) ->  | Q95: =IF(I_CostMethod="Manual detailed",Input!Q94,NA()) ->  | R95: =IF(I_CostMethod="Manual detailed",Input!R94,NA()) ->  | S95: =IF(I_CostMethod="Manual detailed",Input!S94,NA()) ->  | T95: =IF(I_CostMethod="Manual detailed",Input!T94,NA()) ->  | U95: =IF(I_CostMethod="Manual detailed",Input!U94,NA()) ->  | V95: =IF(I_CostMethod="Manual detailed",Input!V94,NA()) ->  | W95: =IF(I_CostMethod="Manual detailed",Input!W94,NA()) ->  | X95: =IF(I_CostMethod="Manual detailed",Input!X94,NA()) ->  | Y95: =IF(I_CostMethod="Manual detailed",Input!Y94,NA()) ->  | Z95: =IF(I_CostMethod="Manual detailed",Input!Z94,NA()) ->  | AA95: =IF(I_CostMethod="Manual detailed",Input!AA94,NA()) ->  | AB95: =IF(I_CostMethod="Manual detailed",Input!AB94,NA()) ->  | AC95: =IF(I_CostMethod="Manual detailed",Input!AC94,NA()) ->  | AD95: =IF(I_CostMethod="Manual detailed",Input!AD94,NA()) ->  | AE95: =IF(I_CostMethod="Manual detailed",Input!AE94,NA()) ->  | AF95: =IF(I_CostMethod="Manual detailed",Input!AF94,NA()) ->  | AG95: =IF(I_CostMethod="Manual detailed",Input!AG94,NA()) ->  | AH95: =IF(I_CostMethod="Manual detailed",Input!AH94,NA()) ->  | AI95: =IF(I_CostMethod="Manual detailed",Input!AI94,NA()) ->  | AJ95: =IF(I_CostMethod="Manual detailed",Input!AJ94,NA()) ->  | AK95: =IF(I_CostMethod="Manual detailed",Input!AK94,NA()) ->  | AL95: =IF(I_CostMethod="Manual detailed",Input!AL94,NA()) ->  | AM95: =IF(I_CostMethod="Manual detailed",Input!AM94,NA()) ->  | AN95: =IF(I_CostMethod="Manual detailed",Input!AN94,NA()) ->  | AO95: =IF(I_CostMethod="Manual detailed",Input!AO94,NA()) ->  | AP95: =IF(I_CostMethod="Manual detailed",Input!AP94,NA()) ->  | AQ95: =IF(I_CostMethod="Manual detailed",Input!AQ94,NA()) ->  | AR95: =IF(I_CostMethod="Manual detailed",Input!AR94,NA()) ->  | AS95: =IF(I_CostMethod="Manual detailed",Input!AS94,NA()) ->  | AT95: =IF(I_CostMethod="Manual detailed",Input!AT94,NA()) ->  | AU95: =IF(I_CostMethod="Manual detailed",Input!AU94,NA()) ->  | AV95: =IF(I_CostMethod="Manual detailed",Input!AV94,NA()) ->  | AW95: =IF(I_CostMethod="Manual detailed",Input!AW94,NA()) ->  | AX95: =IF(I_CostMethod="Manual detailed",Input!AX94,NA()) -> 
B96: =Input!$B$95 -> OPEX category15 | E96: EURm | F96: N | H96: =IF(I_CostMethod="Manual detailed",Input!H95,NA()) ->  | I96: =IF(I_CostMethod="Manual detailed",Input!I95,NA()) ->  | J96: =IF(I_CostMethod="Manual detailed",Input!J95,NA()) ->  | K96: =IF(I_CostMethod="Manual detailed",Input!K95,NA()) ->  | L96: =IF(I_CostMethod="Manual detailed",Input!L95,NA()) ->  | M96: =IF(I_CostMethod="Manual detailed",Input!M95,NA()) ->  | N96: =IF(I_CostMethod="Manual detailed",Input!N95,NA()) ->  | O96: =IF(I_CostMethod="Manual detailed",Input!O95,NA()) ->  | P96: =IF(I_CostMethod="Manual detailed",Input!P95,NA()) ->  | Q96: =IF(I_CostMethod="Manual detailed",Input!Q95,NA()) ->  | R96: =IF(I_CostMethod="Manual detailed",Input!R95,NA()) ->  | S96: =IF(I_CostMethod="Manual detailed",Input!S95,NA()) ->  | T96: =IF(I_CostMethod="Manual detailed",Input!T95,NA()) ->  | U96: =IF(I_CostMethod="Manual detailed",Input!U95,NA()) ->  | V96: =IF(I_CostMethod="Manual detailed",Input!V95,NA()) ->  | W96: =IF(I_CostMethod="Manual detailed",Input!W95,NA()) ->  | X96: =IF(I_CostMethod="Manual detailed",Input!X95,NA()) ->  | Y96: =IF(I_CostMethod="Manual detailed",Input!Y95,NA()) ->  | Z96: =IF(I_CostMethod="Manual detailed",Input!Z95,NA()) ->  | AA96: =IF(I_CostMethod="Manual detailed",Input!AA95,NA()) ->  | AB96: =IF(I_CostMethod="Manual detailed",Input!AB95,NA()) ->  | AC96: =IF(I_CostMethod="Manual detailed",Input!AC95,NA()) ->  | AD96: =IF(I_CostMethod="Manual detailed",Input!AD95,NA()) ->  | AE96: =IF(I_CostMethod="Manual detailed",Input!AE95,NA()) ->  | AF96: =IF(I_CostMethod="Manual detailed",Input!AF95,NA()) ->  | AG96: =IF(I_CostMethod="Manual detailed",Input!AG95,NA()) ->  | AH96: =IF(I_CostMethod="Manual detailed",Input!AH95,NA()) ->  | AI96: =IF(I_CostMethod="Manual detailed",Input!AI95,NA()) ->  | AJ96: =IF(I_CostMethod="Manual detailed",Input!AJ95,NA()) ->  | AK96: =IF(I_CostMethod="Manual detailed",Input!AK95,NA()) ->  | AL96: =IF(I_CostMethod="Manual detailed",Input!AL95,NA()) ->  | AM96: =IF(I_CostMethod="Manual detailed",Input!AM95,NA()) ->  | AN96: =IF(I_CostMethod="Manual detailed",Input!AN95,NA()) ->  | AO96: =IF(I_CostMethod="Manual detailed",Input!AO95,NA()) ->  | AP96: =IF(I_CostMethod="Manual detailed",Input!AP95,NA()) ->  | AQ96: =IF(I_CostMethod="Manual detailed",Input!AQ95,NA()) ->  | AR96: =IF(I_CostMethod="Manual detailed",Input!AR95,NA()) ->  | AS96: =IF(I_CostMethod="Manual detailed",Input!AS95,NA()) ->  | AT96: =IF(I_CostMethod="Manual detailed",Input!AT95,NA()) ->  | AU96: =IF(I_CostMethod="Manual detailed",Input!AU95,NA()) ->  | AV96: =IF(I_CostMethod="Manual detailed",Input!AV95,NA()) ->  | AW96: =IF(I_CostMethod="Manual detailed",Input!AW95,NA()) ->  | AX96: =IF(I_CostMethod="Manual detailed",Input!AX95,NA()) -> 
B97: =Input!$B$99 -> Decommissioning | E97: EURm | F97: N | G97: =SUM(H97:AX97) ->  | H97: =IF(I_CostMethod="Manual detailed",Input!H99,NA()) ->  | I97: =IF(I_CostMethod="Manual detailed",Input!I99,NA()) ->  | J97: =IF(I_CostMethod="Manual detailed",Input!J99,NA()) ->  | K97: =IF(I_CostMethod="Manual detailed",Input!K99,NA()) ->  | L97: =IF(I_CostMethod="Manual detailed",Input!L99,NA()) ->  | M97: =IF(I_CostMethod="Manual detailed",Input!M99,NA()) ->  | N97: =IF(I_CostMethod="Manual detailed",Input!N99,NA()) ->  | O97: =IF(I_CostMethod="Manual detailed",Input!O99,NA()) ->  | P97: =IF(I_CostMethod="Manual detailed",Input!P99,NA()) ->  | Q97: =IF(I_CostMethod="Manual detailed",Input!Q99,NA()) ->  | R97: =IF(I_CostMethod="Manual detailed",Input!R99,NA()) ->  | S97: =IF(I_CostMethod="Manual detailed",Input!S99,NA()) ->  | T97: =IF(I_CostMethod="Manual detailed",Input!T99,NA()) ->  | U97: =IF(I_CostMethod="Manual detailed",Input!U99,NA()) ->  | V97: =IF(I_CostMethod="Manual detailed",Input!V99,NA()) ->  | W97: =IF(I_CostMethod="Manual detailed",Input!W99,NA()) ->  | X97: =IF(I_CostMethod="Manual detailed",Input!X99,NA()) ->  | Y97: =IF(I_CostMethod="Manual detailed",Input!Y99,NA()) ->  | Z97: =IF(I_CostMethod="Manual detailed",Input!Z99,NA()) ->  | AA97: =IF(I_CostMethod="Manual detailed",Input!AA99,NA()) ->  | AB97: =IF(I_CostMethod="Manual detailed",Input!AB99,NA()) ->  | AC97: =IF(I_CostMethod="Manual detailed",Input!AC99,NA()) ->  | AD97: =IF(I_CostMethod="Manual detailed",Input!AD99,NA()) ->  | AE97: =IF(I_CostMethod="Manual detailed",Input!AE99,NA()) ->  | AF97: =IF(I_CostMethod="Manual detailed",Input!AF99,NA()) ->  | AG97: =IF(I_CostMethod="Manual detailed",Input!AG99,NA()) ->  | AH97: =IF(I_CostMethod="Manual detailed",Input!AH99,NA()) ->  | AI97: =IF(I_CostMethod="Manual detailed",Input!AI99,NA()) ->  | AJ97: =IF(I_CostMethod="Manual detailed",Input!AJ99,NA()) ->  | AK97: =IF(I_CostMethod="Manual detailed",Input!AK99,NA()) ->  | AL97: =IF(I_CostMethod="Manual detailed",Input!AL99,NA()) ->  | AM97: =IF(I_CostMethod="Manual detailed",Input!AM99,NA()) ->  | AN97: =IF(I_CostMethod="Manual detailed",Input!AN99,NA()) ->  | AO97: =IF(I_CostMethod="Manual detailed",Input!AO99,NA()) ->  | AP97: =IF(I_CostMethod="Manual detailed",Input!AP99,NA()) ->  | AQ97: =IF(I_CostMethod="Manual detailed",Input!AQ99,NA()) ->  | AR97: =IF(I_CostMethod="Manual detailed",Input!AR99,NA()) ->  | AS97: =IF(I_CostMethod="Manual detailed",Input!AS99,NA()) ->  | AT97: =IF(I_CostMethod="Manual detailed",Input!AT99,NA()) ->  | AU97: =IF(I_CostMethod="Manual detailed",Input!AU99,NA()) ->  | AV97: =IF(I_CostMethod="Manual detailed",Input!AV99,NA()) ->  | AW97: =IF(I_CostMethod="Manual detailed",Input!AW99,NA()) ->  | AX97: =IF(I_CostMethod="Manual detailed",Input!AX99,NA()) -> 
B98: =Input!$B$100 -> ABEX category2 | E98: EURm | F98: N | G98: =SUM(H98:AX98) ->  | H98: =IF(I_CostMethod="Manual detailed",Input!H100,NA()) ->  | I98: =IF(I_CostMethod="Manual detailed",Input!I100,NA()) ->  | J98: =IF(I_CostMethod="Manual detailed",Input!J100,NA()) ->  | K98: =IF(I_CostMethod="Manual detailed",Input!K100,NA()) ->  | L98: =IF(I_CostMethod="Manual detailed",Input!L100,NA()) ->  | M98: =IF(I_CostMethod="Manual detailed",Input!M100,NA()) ->  | N98: =IF(I_CostMethod="Manual detailed",Input!N100,NA()) ->  | O98: =IF(I_CostMethod="Manual detailed",Input!O100,NA()) ->  | P98: =IF(I_CostMethod="Manual detailed",Input!P100,NA()) ->  | Q98: =IF(I_CostMethod="Manual detailed",Input!Q100,NA()) ->  | R98: =IF(I_CostMethod="Manual detailed",Input!R100,NA()) ->  | S98: =IF(I_CostMethod="Manual detailed",Input!S100,NA()) ->  | T98: =IF(I_CostMethod="Manual detailed",Input!T100,NA()) ->  | U98: =IF(I_CostMethod="Manual detailed",Input!U100,NA()) ->  | V98: =IF(I_CostMethod="Manual detailed",Input!V100,NA()) ->  | W98: =IF(I_CostMethod="Manual detailed",Input!W100,NA()) ->  | X98: =IF(I_CostMethod="Manual detailed",Input!X100,NA()) ->  | Y98: =IF(I_CostMethod="Manual detailed",Input!Y100,NA()) ->  | Z98: =IF(I_CostMethod="Manual detailed",Input!Z100,NA()) ->  | AA98: =IF(I_CostMethod="Manual detailed",Input!AA100,NA()) ->  | AB98: =IF(I_CostMethod="Manual detailed",Input!AB100,NA()) ->  | AC98: =IF(I_CostMethod="Manual detailed",Input!AC100,NA()) ->  | AD98: =IF(I_CostMethod="Manual detailed",Input!AD100,NA()) ->  | AE98: =IF(I_CostMethod="Manual detailed",Input!AE100,NA()) ->  | AF98: =IF(I_CostMethod="Manual detailed",Input!AF100,NA()) ->  | AG98: =IF(I_CostMethod="Manual detailed",Input!AG100,NA()) ->  | AH98: =IF(I_CostMethod="Manual detailed",Input!AH100,NA()) ->  | AI98: =IF(I_CostMethod="Manual detailed",Input!AI100,NA()) ->  | AJ98: =IF(I_CostMethod="Manual detailed",Input!AJ100,NA()) ->  | AK98: =IF(I_CostMethod="Manual detailed",Input!AK100,NA()) ->  | AL98: =IF(I_CostMethod="Manual detailed",Input!AL100,NA()) ->  | AM98: =IF(I_CostMethod="Manual detailed",Input!AM100,NA()) ->  | AN98: =IF(I_CostMethod="Manual detailed",Input!AN100,NA()) ->  | AO98: =IF(I_CostMethod="Manual detailed",Input!AO100,NA()) ->  | AP98: =IF(I_CostMethod="Manual detailed",Input!AP100,NA()) ->  | AQ98: =IF(I_CostMethod="Manual detailed",Input!AQ100,NA()) ->  | AR98: =IF(I_CostMethod="Manual detailed",Input!AR100,NA()) ->  | AS98: =IF(I_CostMethod="Manual detailed",Input!AS100,NA()) ->  | AT98: =IF(I_CostMethod="Manual detailed",Input!AT100,NA()) ->  | AU98: =IF(I_CostMethod="Manual detailed",Input!AU100,NA()) ->  | AV98: =IF(I_CostMethod="Manual detailed",Input!AV100,NA()) ->  | AW98: =IF(I_CostMethod="Manual detailed",Input!AW100,NA()) ->  | AX98: =IF(I_CostMethod="Manual detailed",Input!AX100,NA()) -> 
B99: =Input!$B$101 -> ABEX category3 | E99: EURm | F99: N | G99: =SUM(H99:AX99) ->  | H99: =IF(I_CostMethod="Manual detailed",Input!H101,NA()) ->  | I99: =IF(I_CostMethod="Manual detailed",Input!I101,NA()) ->  | J99: =IF(I_CostMethod="Manual detailed",Input!J101,NA()) ->  | K99: =IF(I_CostMethod="Manual detailed",Input!K101,NA()) ->  | L99: =IF(I_CostMethod="Manual detailed",Input!L101,NA()) ->  | M99: =IF(I_CostMethod="Manual detailed",Input!M101,NA()) ->  | N99: =IF(I_CostMethod="Manual detailed",Input!N101,NA()) ->  | O99: =IF(I_CostMethod="Manual detailed",Input!O101,NA()) ->  | P99: =IF(I_CostMethod="Manual detailed",Input!P101,NA()) ->  | Q99: =IF(I_CostMethod="Manual detailed",Input!Q101,NA()) ->  | R99: =IF(I_CostMethod="Manual detailed",Input!R101,NA()) ->  | S99: =IF(I_CostMethod="Manual detailed",Input!S101,NA()) ->  | T99: =IF(I_CostMethod="Manual detailed",Input!T101,NA()) ->  | U99: =IF(I_CostMethod="Manual detailed",Input!U101,NA()) ->  | V99: =IF(I_CostMethod="Manual detailed",Input!V101,NA()) ->  | W99: =IF(I_CostMethod="Manual detailed",Input!W101,NA()) ->  | X99: =IF(I_CostMethod="Manual detailed",Input!X101,NA()) ->  | Y99: =IF(I_CostMethod="Manual detailed",Input!Y101,NA()) ->  | Z99: =IF(I_CostMethod="Manual detailed",Input!Z101,NA()) ->  | AA99: =IF(I_CostMethod="Manual detailed",Input!AA101,NA()) ->  | AB99: =IF(I_CostMethod="Manual detailed",Input!AB101,NA()) ->  | AC99: =IF(I_CostMethod="Manual detailed",Input!AC101,NA()) ->  | AD99: =IF(I_CostMethod="Manual detailed",Input!AD101,NA()) ->  | AE99: =IF(I_CostMethod="Manual detailed",Input!AE101,NA()) ->  | AF99: =IF(I_CostMethod="Manual detailed",Input!AF101,NA()) ->  | AG99: =IF(I_CostMethod="Manual detailed",Input!AG101,NA()) ->  | AH99: =IF(I_CostMethod="Manual detailed",Input!AH101,NA()) ->  | AI99: =IF(I_CostMethod="Manual detailed",Input!AI101,NA()) ->  | AJ99: =IF(I_CostMethod="Manual detailed",Input!AJ101,NA()) ->  | AK99: =IF(I_CostMethod="Manual detailed",Input!AK101,NA()) ->  | AL99: =IF(I_CostMethod="Manual detailed",Input!AL101,NA()) ->  | AM99: =IF(I_CostMethod="Manual detailed",Input!AM101,NA()) ->  | AN99: =IF(I_CostMethod="Manual detailed",Input!AN101,NA()) ->  | AO99: =IF(I_CostMethod="Manual detailed",Input!AO101,NA()) ->  | AP99: =IF(I_CostMethod="Manual detailed",Input!AP101,NA()) ->  | AQ99: =IF(I_CostMethod="Manual detailed",Input!AQ101,NA()) ->  | AR99: =IF(I_CostMethod="Manual detailed",Input!AR101,NA()) ->  | AS99: =IF(I_CostMethod="Manual detailed",Input!AS101,NA()) ->  | AT99: =IF(I_CostMethod="Manual detailed",Input!AT101,NA()) ->  | AU99: =IF(I_CostMethod="Manual detailed",Input!AU101,NA()) ->  | AV99: =IF(I_CostMethod="Manual detailed",Input!AV101,NA()) ->  | AW99: =IF(I_CostMethod="Manual detailed",Input!AW101,NA()) ->  | AX99: =IF(I_CostMethod="Manual detailed",Input!AX101,NA()) -> 
B100: =Input!$B$102 -> ABEX category4 | E100: EURm | F100: N | G100: =SUM(H100:AX100) ->  | H100: =IF(I_CostMethod="Manual detailed",Input!H102,NA()) ->  | I100: =IF(I_CostMethod="Manual detailed",Input!I102,NA()) ->  | J100: =IF(I_CostMethod="Manual detailed",Input!J102,NA()) ->  | K100: =IF(I_CostMethod="Manual detailed",Input!K102,NA()) ->  | L100: =IF(I_CostMethod="Manual detailed",Input!L102,NA()) ->  | M100: =IF(I_CostMethod="Manual detailed",Input!M102,NA()) ->  | N100: =IF(I_CostMethod="Manual detailed",Input!N102,NA()) ->  | O100: =IF(I_CostMethod="Manual detailed",Input!O102,NA()) ->  | P100: =IF(I_CostMethod="Manual detailed",Input!P102,NA()) ->  | Q100: =IF(I_CostMethod="Manual detailed",Input!Q102,NA()) ->  | R100: =IF(I_CostMethod="Manual detailed",Input!R102,NA()) ->  | S100: =IF(I_CostMethod="Manual detailed",Input!S102,NA()) ->  | T100: =IF(I_CostMethod="Manual detailed",Input!T102,NA()) ->  | U100: =IF(I_CostMethod="Manual detailed",Input!U102,NA()) ->  | V100: =IF(I_CostMethod="Manual detailed",Input!V102,NA()) ->  | W100: =IF(I_CostMethod="Manual detailed",Input!W102,NA()) ->  | X100: =IF(I_CostMethod="Manual detailed",Input!X102,NA()) ->  | Y100: =IF(I_CostMethod="Manual detailed",Input!Y102,NA()) ->  | Z100: =IF(I_CostMethod="Manual detailed",Input!Z102,NA()) ->  | AA100: =IF(I_CostMethod="Manual detailed",Input!AA102,NA()) ->  | AB100: =IF(I_CostMethod="Manual detailed",Input!AB102,NA()) ->  | AC100: =IF(I_CostMethod="Manual detailed",Input!AC102,NA()) ->  | AD100: =IF(I_CostMethod="Manual detailed",Input!AD102,NA()) ->  | AE100: =IF(I_CostMethod="Manual detailed",Input!AE102,NA()) ->  | AF100: =IF(I_CostMethod="Manual detailed",Input!AF102,NA()) ->  | AG100: =IF(I_CostMethod="Manual detailed",Input!AG102,NA()) ->  | AH100: =IF(I_CostMethod="Manual detailed",Input!AH102,NA()) ->  | AI100: =IF(I_CostMethod="Manual detailed",Input!AI102,NA()) ->  | AJ100: =IF(I_CostMethod="Manual detailed",Input!AJ102,NA()) ->  | AK100: =IF(I_CostMethod="Manual detailed",Input!AK102,NA()) ->  | AL100: =IF(I_CostMethod="Manual detailed",Input!AL102,NA()) ->  | AM100: =IF(I_CostMethod="Manual detailed",Input!AM102,NA()) ->  | AN100: =IF(I_CostMethod="Manual detailed",Input!AN102,NA()) ->  | AO100: =IF(I_CostMethod="Manual detailed",Input!AO102,NA()) ->  | AP100: =IF(I_CostMethod="Manual detailed",Input!AP102,NA()) ->  | AQ100: =IF(I_CostMethod="Manual detailed",Input!AQ102,NA()) ->  | AR100: =IF(I_CostMethod="Manual detailed",Input!AR102,NA()) ->  | AS100: =IF(I_CostMethod="Manual detailed",Input!AS102,NA()) ->  | AT100: =IF(I_CostMethod="Manual detailed",Input!AT102,NA()) ->  | AU100: =IF(I_CostMethod="Manual detailed",Input!AU102,NA()) ->  | AV100: =IF(I_CostMethod="Manual detailed",Input!AV102,NA()) ->  | AW100: =IF(I_CostMethod="Manual detailed",Input!AW102,NA()) ->  | AX100: =IF(I_CostMethod="Manual detailed",Input!AX102,NA()) -> 
B101: =Input!$B$103 -> ABEX category5 | E101: EURm | F101: N | G101: =SUM(H101:AX101) ->  | H101: =IF(I_CostMethod="Manual detailed",Input!H103,NA()) ->  | I101: =IF(I_CostMethod="Manual detailed",Input!I103,NA()) ->  | J101: =IF(I_CostMethod="Manual detailed",Input!J103,NA()) ->  | K101: =IF(I_CostMethod="Manual detailed",Input!K103,NA()) ->  | L101: =IF(I_CostMethod="Manual detailed",Input!L103,NA()) ->  | M101: =IF(I_CostMethod="Manual detailed",Input!M103,NA()) ->  | N101: =IF(I_CostMethod="Manual detailed",Input!N103,NA()) ->  | O101: =IF(I_CostMethod="Manual detailed",Input!O103,NA()) ->  | P101: =IF(I_CostMethod="Manual detailed",Input!P103,NA()) ->  | Q101: =IF(I_CostMethod="Manual detailed",Input!Q103,NA()) ->  | R101: =IF(I_CostMethod="Manual detailed",Input!R103,NA()) ->  | S101: =IF(I_CostMethod="Manual detailed",Input!S103,NA()) ->  | T101: =IF(I_CostMethod="Manual detailed",Input!T103,NA()) ->  | U101: =IF(I_CostMethod="Manual detailed",Input!U103,NA()) ->  | V101: =IF(I_CostMethod="Manual detailed",Input!V103,NA()) ->  | W101: =IF(I_CostMethod="Manual detailed",Input!W103,NA()) ->  | X101: =IF(I_CostMethod="Manual detailed",Input!X103,NA()) ->  | Y101: =IF(I_CostMethod="Manual detailed",Input!Y103,NA()) ->  | Z101: =IF(I_CostMethod="Manual detailed",Input!Z103,NA()) ->  | AA101: =IF(I_CostMethod="Manual detailed",Input!AA103,NA()) ->  | AB101: =IF(I_CostMethod="Manual detailed",Input!AB103,NA()) ->  | AC101: =IF(I_CostMethod="Manual detailed",Input!AC103,NA()) ->  | AD101: =IF(I_CostMethod="Manual detailed",Input!AD103,NA()) ->  | AE101: =IF(I_CostMethod="Manual detailed",Input!AE103,NA()) ->  | AF101: =IF(I_CostMethod="Manual detailed",Input!AF103,NA()) ->  | AG101: =IF(I_CostMethod="Manual detailed",Input!AG103,NA()) ->  | AH101: =IF(I_CostMethod="Manual detailed",Input!AH103,NA()) ->  | AI101: =IF(I_CostMethod="Manual detailed",Input!AI103,NA()) ->  | AJ101: =IF(I_CostMethod="Manual detailed",Input!AJ103,NA()) ->  | AK101: =IF(I_CostMethod="Manual detailed",Input!AK103,NA()) ->  | AL101: =IF(I_CostMethod="Manual detailed",Input!AL103,NA()) ->  | AM101: =IF(I_CostMethod="Manual detailed",Input!AM103,NA()) ->  | AN101: =IF(I_CostMethod="Manual detailed",Input!AN103,NA()) ->  | AO101: =IF(I_CostMethod="Manual detailed",Input!AO103,NA()) ->  | AP101: =IF(I_CostMethod="Manual detailed",Input!AP103,NA()) ->  | AQ101: =IF(I_CostMethod="Manual detailed",Input!AQ103,NA()) ->  | AR101: =IF(I_CostMethod="Manual detailed",Input!AR103,NA()) ->  | AS101: =IF(I_CostMethod="Manual detailed",Input!AS103,NA()) ->  | AT101: =IF(I_CostMethod="Manual detailed",Input!AT103,NA()) ->  | AU101: =IF(I_CostMethod="Manual detailed",Input!AU103,NA()) ->  | AV101: =IF(I_CostMethod="Manual detailed",Input!AV103,NA()) ->  | AW101: =IF(I_CostMethod="Manual detailed",Input!AW103,NA()) ->  | AX101: =IF(I_CostMethod="Manual detailed",Input!AX103,NA()) -> 
B103: Per cost item (level 1)
B104: DEVEX total | E104: =I_FX & "m" -> EURm | F104: =I_PB_Output -> R2014 | G104: =SUM(H104:AX104) -> 21.65147309 | H104: =H50*H$20 -> 0 | I104: =I50*I$20 -> 7.360538688 | J104: 7.2162144 | K104: 7.07472 | L104: 0 | M104: 0 | N104: 0 | O104: 0 | P104: 0 | Q104: 0 | R104: 0 | S104: 0 | T104: 0 | U104: 0 | V104: 0 | W104: 0 | X104: 0 | Y104: 0 | Z104: 0 | AA104: 0 | AB104: 0 | AC104: 0 | AD104: 0 | AE104: 0 | AF104: 0 | AG104: 0 | AH104: 0 | AI104: 0 | AJ104: 0 | AK104: 0 | AL104: 0 | AM104: 0 | AN104: 0 | AO104: 0 | AP104: 0 | AQ104: 0 | AR104: 0 | AS104: 0 | AT104: 0 | AU104: 0 | AV104: 0 | AW104: 0 | AX104: 0
B105: CAPEX total | E105: =I_FX & "m" -> EURm | F105: =I_PB_Output -> R2014 | G105: =SUM(H105:AX105) -> 1542.9216 | H105: =H51*H$20 -> 0 | I105: 0 | J105: 0 | K105: 0 | L105: 316.2816 | M105: 542.64 | N105: 684 | O105: 0 | P105: 0 | Q105: 0 | R105: 0 | S105: 0 | T105: 0 | U105: 0 | V105: 0 | W105: 0 | X105: 0 | Y105: 0 | Z105: 0 | AA105: 0 | AB105: 0 | AC105: 0 | AD105: 0 | AE105: 0 | AF105: 0 | AG105: 0 | AH105: 0 | AI105: 0 | AJ105: 0 | AK105: 0 | AL105: 0 | AM105: 0 | AN105: 0 | AO105: 0 | AP105: 0 | AQ105: 0 | AR105: 0 | AS105: 0 | AT105: 0 | AU105: 0 | AV105: 0 | AW105: 0 | AX105: 0
B106: OPEX total | E106: =I_FX & "m" -> EURm | F106: =I_PB_Output -> R2014 | G106: =SUM(H106:AX106) -> 787.5174719 | H106: =H52*H$20 -> 0 | I106: 0 | J106: 0 | K106: 0 | L106: 0 | M106: 0 | N106: 0 | O106: 16.406614 | P106: 32.81322799 | Q106: 32.81322799 | R106: 32.81322799 | S106: 32.81322799 | T106: 32.81322799 | U106: 32.81322799 | V106: 32.81322799 | W106: 32.81322799 | X106: 32.81322799 | Y106: 32.81322799 | Z106: 32.81322799 | AA106: 32.81322799 | AB106: 32.81322799 | AC106: 32.81322799 | AD106: 32.81322799 | AE106: 32.81322799 | AF106: 32.81322799 | AG106: 32.81322799 | AH106: 32.81322799 | AI106: 32.81322799 | AJ106: 32.81322799 | AK106: 32.81322799 | AL106: 32.81322799 | AM106: 16.406614 | AN106: 0 | AO106: 0 | AP106: 0 | AQ106: 0 | AR106: 0 | AS106: 0 | AT106: 0 | AU106: 0 | AV106: 0 | AW106: 0 | AX106: 0
B107: ABEX total | E107: =I_FX & "m" -> EURm | F107: =I_PB_Output -> R2014 | G107: =SUM(H107:AX107) -> 77.14608 | H107: =H53*H$20 -> 0 | I107: 0 | J107: 0 | K107: 0 | L107: 0 | M107: 0 | N107: 0 | O107: 0 | P107: 0 | Q107: 0 | R107: 0 | S107: 0 | T107: 0 | U107: 0 | V107: 0 | W107: 0 | X107: 0 | Y107: 0 | Z107: 0 | AA107: 0 | AB107: 0 | AC107: 0 | AD107: 0 | AE107: 0 | AF107: 0 | AG107: 0 | AH107: 0 | AI107: 0 | AJ107: 0 | AK107: 0 | AL107: 0 | AM107: 77.14608 | AN107: 0 | AO107: 0 | AP107: 0 | AQ107: 0 | AR107: 0 | AS107: 0 | AT107: 0 | AU107: 0 | AV107: 0 | AW107: 0 | AX107: 0
B108: Total | E108: =I_FX & "m" -> EURm | F108: =I_PB_Output -> R2014 | G108: =SUM(H108:AX108) -> 2429.236625 | H108: =H107+H106+H105+H104 -> 0 | I108: 7.360538688 | J108: 7.2162144 | K108: 7.07472 | L108: 316.2816 | M108: 542.64 | N108: 684 | O108: 16.406614 | P108: 32.81322799 | Q108: 32.81322799 | R108: 32.81322799 | S108: 32.81322799 | T108: 32.81322799 | U108: 32.81322799 | V108: 32.81322799 | W108: 32.81322799 | X108: 32.81322799 | Y108: 32.81322799 | Z108: 32.81322799 | AA108: 32.81322799 | AB108: 32.81322799 | AC108: 32.81322799 | AD108: 32.81322799 | AE108: 32.81322799 | AF108: 32.81322799 | AG108: 32.81322799 | AH108: 32.81322799 | AI108: 32.81322799 | AJ108: 32.81322799 | AK108: 32.81322799 | AL108: 32.81322799 | AM108: 93.552694 | AN108: 0 | AO108: 0 | AP108: 0 | AQ108: 0 | AR108: 0 | AS108: 0 | AT108: 0 | AU108: 0 | AV108: 0 | AW108: 0 | AX108: 0
B110: Per cost item (level 2)
B111: =Input!$B$50 -> Site development | E111: =I_FX & "m" -> EURm | F111: =I_PB_Output -> R2014 | G111: =SUM(H111:AX111) ->  | H111: =H57*H$20 ->  | I111: =I57*I$20 -> 
B112: =Input!$B$51 -> Design/dev. - Support Structures | E112: EURm | F112: R2014 | H112: =H58*H$20 -> 
B113: =Input!$B$52 -> Design/dev. - Wind turbines | E113: EURm | F113: R2014 | H113: =H59*H$20 -> 
B114: =Input!$B$53 -> Design/dev. - Export cable | E114: EURm | F114: R2014 | H114: =H60*H$20 -> 
B115: =Input!$B$54 -> Design/dev. - Onshore substation | E115: EURm | F115: R2014 | H115: =H61*H$20 -> 
B116: =Input!$B$55 -> Design/dev. - Offshore substation | E116: EURm | F116: R2014 | H116: =H62*H$20 -> 
B117: =Input!$B$56 -> Design/dev. - Array cable | E117: EURm | F117: R2014 | H117: =H63*H$20 -> 
B118: =Input!$B$57 -> DEVEX category8 | E118: EURm | F118: R2014 | H118: =H64*H$20 -> 
B119: =Input!$B$58 -> DEVEX category9 | E119: EURm | F119: R2014 | H119: =H65*H$20 -> 
B120: =Input!$B$59 -> DEVEX category10 | E120: EURm | F120: R2014 | H120: =H66*H$20 -> 
B121: =Input!$B$63 -> Project management | E121: EURm | F121: R2014 | G121: =SUM(H121:AX121) ->  | H121: =H67*H$20 -> 
B122: =Input!$B$64 -> Production - Support Structures | E122: EURm | F122: R2014 | H122: =H68*H$20 -> 
B123: =Input!$B$65 -> Production - Wind turbines | E123: EURm | F123: R2014 | H123: =H69*H$20 -> 
B124: =Input!$B$66 -> Production - Export cable | E124: EURm | F124: R2014 | H124: =H70*H$20 -> 
B125: =Input!$B$67 -> Production - Onshore substation | E125: EURm | F125: R2014 | H125: =H71*H$20 -> 
B126: =Input!$B$68 -> Production - Offshore substation | E126: EURm | F126: R2014 | H126: =H72*H$20 -> 
B127: =Input!$B$69 -> Production - Array cable | E127: EURm | F127: R2014 | H127: =H73*H$20 -> 
B128: =Input!$B$70 -> Installation - Support Structures | E128: EURm | F128: R2014 | H128: =H74*H$20 -> 
B129: =Input!$B$71 -> Installation - Wind turbines | E129: EURm | F129: R2014 | H129: =H75*H$20 -> 
B130: =Input!$B$72 -> Installation - Export cable | E130: EURm | F130: R2014 | H130: =H76*H$20 -> 
B131: =Input!$B$73 -> Installation - Onshore substation | E131: EURm | F131: R2014 | H131: =H77*H$20 -> 
B132: =Input!$B$74 -> Installation - Offshore substation | E132: EURm | F132: R2014 | H132: =H78*H$20 -> 
B133: =Input!$B$75 -> Installation - Array cable | E133: EURm | F133: R2014 | H133: =H79*H$20 -> 
B134: =Input!$B$76 -> CAPEX category14 | E134: EURm | F134: R2014 | H134: =H80*H$20 -> 
B135: =Input!$B$77 -> CAPEX category15 | E135: EURm | F135: R2014 | H135: =H81*H$20 -> 
B136: =Input!$B$81 -> Operations management | E136: EURm | F136: R2014 | G136: =SUM(H136:AX136) ->  | H136: =H82*H$20 -> 
B137: =Input!$B$82 -> O&M - Support Structures | E137: EURm | F137: R2014 | H137: =H83*H$20 -> 
B138: =Input!$B$83 -> O&M - Wind turbines | E138: EURm | F138: R2014 | H138: =H84*H$20 -> 
B139: =Input!$B$84 -> O&M - Export cable | E139: EURm | F139: R2014 | H139: =H85*H$20 -> 
B140: =Input!$B$85 -> O&M - Onshore substation | E140: EURm | F140: R2014 | H140: =H86*H$20 -> 
B141: =Input!$B$86 -> O&M - Offshore substation | E141: EURm | F141: R2014 | H141: =H87*H$20 -> 
B142: =Input!$B$87 -> O&M - Array cable | E142: EURm | F142: R2014 | H142: =H88*H$20 -> 
B143: =Input!$B$88 -> OPEX category8 | E143: EURm | F143: R2014 | H143: =H89*H$20 -> 
B144: =Input!$B$89 -> OPEX category9 | E144: EURm | F144: R2014 | H144: =H90*H$20 -> 
B145: =Input!$B$90 -> OPEX category10 | E145: EURm | F145: R2014 | H145: =H91*H$20 -> 
B146: =Input!$B$91 -> OPEX category11 | E146: EURm | F146: R2014 | H146: =H92*H$20 -> 
B147: =Input!$B$92 -> OPEX category12 | E147: EURm | F147: R2014 | H147: =H93*H$20 -> 
B148: =Input!$B$93 -> OPEX category13 | E148: EURm | F148: R2014 | H148: =H94*H$20 -> 
B149: =Input!$B$94 -> OPEX category14 | E149: EURm | F149: R2014 | H149: =H95*H$20 -> 
B150: =Input!$B$95 -> OPEX category15 | E150: EURm | F150: R2014 | H150: =H96*H$20 -> 
B151: =Input!$B$99 -> Decommissioning | E151: EURm | F151: R2014 | G151: =SUM(H151:AX151) ->  | H151: =H97*H$20 -> 
B152: =Input!$B$100 -> ABEX category2 | E152: EURm | F152: R2014 | G152: =SUM(H152:AX152) ->  | H152: =H98*H$20 -> 
B153: =Input!$B$101 -> ABEX category3 | E153: EURm | F153: R2014 | G153: =SUM(H153:AX153) ->  | H153: =H99*H$20 -> 
B154: =Input!$B$102 -> ABEX category4 | E154: EURm | F154: R2014 | G154: =SUM(H154:AX154) ->  | H154: =H100*H$20 -> 
B155: =Input!$B$103 -> ABEX category5 | E155: EURm | F155: R2014 | G155: =SUM(H155:AX155) ->  | H155: =H101*H$20 -> 
B157: Per cost item (level 1)
B158: DEVEX total | E158: =I_FX & "m" -> EURm | F158: N | G158: =SUM(H158:AX158) -> 20 | H158: =H50*H$19 -> 0 | I158: =I50*I$19 -> 6.666666667 | J158: 6.666666667 | K158: 6.666666667 | L158: 0 | M158: 0 | N158: 0 | O158: 0 | P158: 0 | Q158: 0 | R158: 0 | S158: 0 | T158: 0 | U158: 0 | V158: 0 | W158: 0 | X158: 0 | Y158: 0 | Z158: 0 | AA158: 0 | AB158: 0 | AC158: 0 | AD158: 0 | AE158: 0 | AF158: 0 | AG158: 0 | AH158: 0 | AI158: 0 | AJ158: 0 | AK158: 0 | AL158: 0 | AM158: 0 | AN158: 0 | AO158: 0 | AP158: 0 | AQ158: 0 | AR158: 0 | AS158: 0 | AT158: 0 | AU158: 0 | AV158: 0 | AW158: 0 | AX158: 0
B159: CAPEX total | E159: =I_FX & "m" -> EURm | F159: N | G159: =SUM(H159:AX159) -> 1520 | H159: =H51*H$19 -> 0 | I159: 0 | J159: 0 | K159: 0 | L159: 304 | M159: 532 | N159: 684 | O159: 0 | P159: 0 | Q159: 0 | R159: 0 | S159: 0 | T159: 0 | U159: 0 | V159: 0 | W159: 0 | X159: 0 | Y159: 0 | Z159: 0 | AA159: 0 | AB159: 0 | AC159: 0 | AD159: 0 | AE159: 0 | AF159: 0 | AG159: 0 | AH159: 0 | AI159: 0 | AJ159: 0 | AK159: 0 | AL159: 0 | AM159: 0 | AN159: 0 | AO159: 0 | AP159: 0 | AQ159: 0 | AR159: 0 | AS159: 0 | AT159: 0 | AU159: 0 | AV159: 0 | AW159: 0 | AX159: 0
B160: OPEX total | E160: =I_FX & "m" -> EURm | F160: N | G160: =SUM(H160:AX160) -> 1028.386343 | H160: =H52*H$19 -> 0 | I160: 0 | J160: 0 | K160: 0 | L160: 0 | M160: 0 | N160: 0 | O160: 16.73474628 | P160: 34.13888241 | Q160: 34.82166005 | R160: 35.51809326 | S160: 36.22845512 | T160: 36.95302422 | U160: 37.69208471 | V160: 38.4459264 | W160: 39.21484493 | X160: 39.99914183 | Y160: 40.79912466 | Z160: 41.61510716 | AA160: 42.4474093 | AB160: 43.29635749 | AC160: 44.16228464 | AD160: 45.04553033 | AE160: 45.94644094 | AF160: 46.86536975 | AG160: 47.80267715 | AH160: 48.75873069 | AI160: 49.73390531 | AJ160: 50.72858341 | AK160: 51.74315508 | AL160: 52.77801818 | AM160: 26.91678927 | AN160: 0 | AO160: 0 | AP160: 0 | AQ160: 0 | AR160: 0 | AS160: 0 | AT160: 0 | AU160: 0 | AV160: 0 | AW160: 0 | AX160: 0
B161: ABEX total | E161: =I_FX & "m" -> EURm | F161: N | G161: =SUM(H161:AX161) -> 126.5663213 | H161: =H53*H$19 -> 0 | I161: 0 | J161: 0 | K161: 0 | L161: 0 | M161: 0 | N161: 0 | O161: 0 | P161: 0 | Q161: 0 | R161: 0 | S161: 0 | T161: 0 | U161: 0 | V161: 0 | W161: 0 | X161: 0 | Y161: 0 | Z161: 0 | AA161: 0 | AB161: 0 | AC161: 0 | AD161: 0 | AE161: 0 | AF161: 0 | AG161: 0 | AH161: 0 | AI161: 0 | AJ161: 0 | AK161: 0 | AL161: 0 | AM161: 126.5663213 | AN161: 0 | AO161: 0 | AP161: 0 | AQ161: 0 | AR161: 0 | AS161: 0 | AT161: 0 | AU161: 0 | AV161: 0 | AW161: 0 | AX161: 0
B162: Total | E162: =I_FX & "m" -> EURm | F162: N | G162: =SUM(H162:AX162) -> 2694.952664 | H162: =H161+H160+H159+H158 -> 0 | I162: 6.666666667 | J162: 6.666666667 | K162: 6.666666667 | L162: 304 | M162: 532 | N162: 684 | O162: 16.73474628 | P162: 34.13888241 | Q162: 34.82166005 | R162: 35.51809326 | S162: 36.22845512 | T162: 36.95302422 | U162: 37.69208471 | V162: 38.4459264 | W162: 39.21484493 | X162: 39.99914183 | Y162: 40.79912466 | Z162: 41.61510716 | AA162: 42.4474093 | AB162: 43.29635749 | AC162: 44.16228464 | AD162: 45.04553033 | AE162: 45.94644094 | AF162: 46.86536975 | AG162: 47.80267715 | AH162: 48.75873069 | AI162: 49.73390531 | AJ162: 50.72858341 | AK162: 51.74315508 | AL162: 52.77801818 | AM162: 153.4831106 | AN162: 0 | AO162: 0 | AP162: 0 | AQ162: 0 | AR162: 0 | AS162: 0 | AT162: 0 | AU162: 0 | AV162: 0 | AW162: 0 | AX162: 0
B164: Per cost item (level 2)
B165: =Input!$B$50 -> Site development | E165: =I_FX & "m" -> EURm | F165: N | G165: =SUM(H165:AX165) ->  | H165: =H57*H$19 ->  | I165: =I57*I$19 -> 
B166: =Input!$B$51 -> Design/dev. - Support Structures | E166: EURm | F166: N | H166: =H58*H$19 -> 
B167: =Input!$B$52 -> Design/dev. - Wind turbines | E167: EURm | F167: N | H167: =H59*H$19 -> 
B168: =Input!$B$53 -> Design/dev. - Export cable | E168: EURm | F168: N | H168: =H60*H$19 -> 
B169: =Input!$B$54 -> Design/dev. - Onshore substation | E169: EURm | F169: N | H169: =H61*H$19 -> 
B170: =Input!$B$55 -> Design/dev. - Offshore substation | E170: EURm | F170: N | H170: =H62*H$19 -> 
B171: =Input!$B$56 -> Design/dev. - Array cable | E171: EURm | F171: N | H171: =H63*H$19 -> 
B172: =Input!$B$57 -> DEVEX category8 | E172: EURm | F172: N | H172: =H64*H$19 -> 
B173: =Input!$B$58 -> DEVEX category9 | E173: EURm | F173: N | H173: =H65*H$19 -> 
B174: =Input!$B$59 -> DEVEX category10 | E174: EURm | F174: N | H174: =H66*H$19 -> 
B175: =Input!$B$63 -> Project management | E175: EURm | F175: N | G175: =SUM(H175:AX175) ->  | H175: =H67*H$19 -> 
B176: =Input!$B$64 -> Production - Support Structures | E176: EURm | F176: N | H176: =H68*H$19 -> 
B177: =Input!$B$65 -> Production - Wind turbines | E177: EURm | F177: N | H177: =H69*H$19 -> 
B178: =Input!$B$66 -> Production - Export cable | E178: EURm | F178: N | H178: =H70*H$19 -> 
B179: =Input!$B$67 -> Production - Onshore substation | E179: EURm | F179: N | H179: =H71*H$19 -> 
B180: =Input!$B$68 -> Production - Offshore substation | E180: EURm | F180: N | H180: =H72*H$19 -> 
B181: =Input!$B$69 -> Production - Array cable | E181: EURm | F181: N | H181: =H73*H$19 -> 
B182: =Input!$B$70 -> Installation - Support Structures | E182: EURm | F182: N | H182: =H74*H$19 -> 
B183: =Input!$B$71 -> Installation - Wind turbines | E183: EURm | F183: N | H183: =H75*H$19 -> 
B184: =Input!$B$72 -> Installation - Export cable | E184: EURm | F184: N | H184: =H76*H$19 -> 
B185: =Input!$B$73 -> Installation - Onshore substation | E185: EURm | F185: N | H185: =H77*H$19 -> 
B186: =Input!$B$74 -> Installation - Offshore substation | E186: EURm | F186: N | H186: =H78*H$19 -> 
B187: =Input!$B$75 -> Installation - Array cable | E187: EURm | F187: N | H187: =H79*H$19 -> 
B188: =Input!$B$76 -> CAPEX category14 | E188: EURm | F188: N | H188: =H80*H$19 -> 
B189: =Input!$B$77 -> CAPEX category15 | E189: EURm | F189: N | H189: =H81*H$19 -> 
B190: =Input!$B$81 -> Operations management | E190: EURm | F190: N | G190: =SUM(H190:AX190) ->  | H190: =H82*H$19 -> 
B191: =Input!$B$82 -> O&M - Support Structures | E191: EURm | F191: N | H191: =H83*H$19 -> 
B192: =Input!$B$83 -> O&M - Wind turbines | E192: EURm | F192: N | H192: =H84*H$19 -> 
B193: =Input!$B$84 -> O&M - Export cable | E193: EURm | F193: N | H193: =H85*H$19 -> 
B194: =Input!$B$85 -> O&M - Onshore substation | E194: EURm | F194: N | H194: =H86*H$19 -> 
B195: =Input!$B$86 -> O&M - Offshore substation | E195: EURm | F195: N | H195: =H87*H$19 -> 
B196: =Input!$B$87 -> O&M - Array cable | E196: EURm | F196: N | H196: =H88*H$19 -> 
B197: =Input!$B$88 -> OPEX category8 | E197: EURm | F197: N | H197: =H89*H$19 -> 
B198: =Input!$B$89 -> OPEX category9 | E198: EURm | F198: N | H198: =H90*H$19 -> 
B199: =Input!$B$90 -> OPEX category10 | E199: EURm | F199: N | H199: =H91*H$19 -> 
B200: =Input!$B$91 -> OPEX category11 | E200: EURm | F200: N | H200: =H92*H$19 -> 
B201: =Input!$B$92 -> OPEX category12 | E201: EURm | F201: N | H201: =H93*H$19 -> 
B202: =Input!$B$93 -> OPEX category13 | E202: EURm | F202: N | H202: =H94*H$19 -> 
B203: =Input!$B$94 -> OPEX category14 | E203: EURm | F203: N | H203: =H95*H$19 -> 
B204: =Input!$B$95 -> OPEX category15 | E204: EURm | F204: N | H204: =H96*H$19 -> 
B205: =Input!$B$99 -> Decommissioning | E205: EURm | F205: N | G205: =SUM(H205:AX205) ->  | H205: =H97*H$19 -> 
B206: =Input!$B$100 -> ABEX category2 | E206: EURm | F206: N | G206: =SUM(H206:AX206) ->  | H206: =H98*H$19 -> 
B207: =Input!$B$101 -> ABEX category3 | E207: EURm | F207: N | G207: =SUM(H207:AX207) ->  | H207: =H99*H$19 -> 
B208: =Input!$B$102 -> ABEX category4 | E208: EURm | F208: N | G208: =SUM(H208:AX208) ->  | H208: =H100*H$19 -> 
B209: =Input!$B$103 -> ABEX category5 | E209: EURm | F209: N | G209: =SUM(H209:AX209) ->  | H209: =H101*H$19 -> 
B211: Discounted cash flow
B212: Per cost item (level 1)
B213: DEVEX total | E213: =I_FX & "m" -> EURm | F213: =I_PB_Output -> R2014 | G213: =SUM(H213:AX213) -> 24.31839283 | H213: =H158*H$10*$G$27 -> 0 | I213: =I158*I$10*$G$27 -> 8.737362432 | J213: 8.0901504 | K213: 7.49088 | L213: 0 | M213: 0 | N213: 0 | O213: 0 | P213: 0 | Q213: 0 | R213: 0 | S213: 0 | T213: 0 | U213: 0 | V213: 0 | W213: 0 | X213: 0 | Y213: 0 | Z213: 0 | AA213: 0 | AB213: 0 | AC213: 0 | AD213: 0 | AE213: 0 | AF213: 0 | AG213: 0 | AH213: 0 | AI213: 0 | AJ213: 0 | AK213: 0 | AL213: 0 | AM213: 0 | AN213: 0 | AO213: 0 | AP213: 0 | AQ213: 0 | AR213: 0 | AS213: 0 | AT213: 0 | AU213: 0 | AV213: 0 | AW213: 0 | AX213: 0
B214: CAPEX total | E214: =I_FX & "m" -> EURm | F214: =I_PB_Output -> R2014 | G214: =SUM(H214:AX214) -> 1438.886044 | H214: =H159*H$10*$G$27 -> 0 | I214: 0 | J214: 0 | K214: 0 | L214: 316.2816 | M214: 512.4933333 | N214: 610.1111111 | O214: 0 | P214: 0 | Q214: 0 | R214: 0 | S214: 0 | T214: 0 | U214: 0 | V214: 0 | W214: 0 | X214: 0 | Y214: 0 | Z214: 0 | AA214: 0 | AB214: 0 | AC214: 0 | AD214: 0 | AE214: 0 | AF214: 0 | AG214: 0 | AH214: 0 | AI214: 0 | AJ214: 0 | AK214: 0 | AL214: 0 | AM214: 0 | AN214: 0 | AO214: 0 | AP214: 0 | AQ214: 0 | AR214: 0 | AS214: 0 | AT214: 0 | AU214: 0 | AV214: 0 | AW214: 0 | AX214: 0
B215: OPEX total | E215: =I_FX & "m" -> EURm | F215: =I_PB_Output -> R2014 | G215: =SUM(H215:AX215) -> 361.0431325 | H215: =H160*H$10*$G$27 -> 0 | I215: 0 | J215: 0 | K215: 0 | L215: 0 | M215: 0 | N215: 0 | O215: 13.82127822 | P215: 26.10685886 | Q215: 24.65647781 | R215: 23.28667349 | S215: 21.9929694 | T215: 20.77113777 | U215: 19.61718567 | V215: 18.52734202 | W215: 17.49804524 | X215: 16.52593162 | Y215: 15.60782431 | Z215: 14.74072296 | AA215: 13.9217939 | AB215: 13.14836091 | AC215: 12.41789641 | AD215: 11.72801328 | AE215: 11.07645699 | AF215: 10.46109827 | AG215: 9.87992614 | AH215: 9.331041354 | AI215: 8.812650168 | AJ215: 8.323058492 | AK215: 7.860666353 | AL215: 7.423962667 | AM215: 3.505760148 | AN215: 0 | AO215: 0 | AP215: 0 | AQ215: 0 | AR215: 0 | AS215: 0 | AT215: 0 | AU215: 0 | AV215: 0 | AW215: 0 | AX215: 0
B216: ABEX total | E216: =I_FX & "m" -> EURm | F216: =I_PB_Output -> R2014 | G216: =SUM(H216:AX216) -> 16.48455025 | H216: =H161*H$10*$G$27 -> 0 | I216: 0 | J216: 0 | K216: 0 | L216: 0 | M216: 0 | N216: 0 | O216: 0 | P216: 0 | Q216: 0 | R216: 0 | S216: 0 | T216: 0 | U216: 0 | V216: 0 | W216: 0 | X216: 0 | Y216: 0 | Z216: 0 | AA216: 0 | AB216: 0 | AC216: 0 | AD216: 0 | AE216: 0 | AF216: 0 | AG216: 0 | AH216: 0 | AI216: 0 | AJ216: 0 | AK216: 0 | AL216: 0 | AM216: 16.48455025 | AN216: 0 | AO216: 0 | AP216: 0 | AQ216: 0 | AR216: 0 | AS216: 0 | AT216: 0 | AU216: 0 | AV216: 0 | AW216: 0 | AX216: 0
... 114 more rows

Sheet Output
B1: Output
B3: Selected financial KPIs
B4: Parameter | E4: Unit | F4: Price basis | G4: Value
B5: Investment/MW | E5: =I_FX & "m" -> EURm | F5: =I_PB_Output -> R2014 | G5: =Calculation!G356 -> 3.911432683
B6: NPV (after tax) | E6: =I_FX & "m" -> EURm | F6: =I_PB_Output -> R2014 | G6: =Calculation!G357 -> 121.5078305
B7: NPV (before tax) | E7: =I_FX & "m" -> EURm | F7: =I_PB_Output -> R2014 | G7: =Calculation!G358 -> 338.7617531
B8: IRR | E8: % | G8: =Calculation!G359 -> 0.08863247207
B10: LCOE KPIs | E10: ="Discounted, " & I_PB_Output -> Discounted, R2014 | I10: Share (%)
E11: LCOE | F11: Numerator | G11: Denominator
B12: Parameter | E12: =I_FX & "/MWh" -> EUR/MWh | F12: =I_FX & "m" -> EURm | G12: TWh | I12: Base (4)
B14: LCOE
B15: LCOE, developer, pre-tax | E15: =F15/G15 -> 98.45374413 | F15: =Calculation!G217 -> 1840.73212 | G15: =Calculation!G44/1000 -> 18.69641562 | I15: =E15/$E$18 -> 0.9380769765
B16: LCOE, developer, post-tax | E16: =(Calculation!G217+Calculation!G332)/Calculation!G44*1000 -> 110.0738283 | F16: =(Calculation!G217+Calculation!G332) -> 2057.986043 | G16: =Calculation!G44/1000 -> 18.69641562 | I16: =E16/$E$18 -> 1.048794283
B17: LCOE, society, pre-tax | E17: =(Calculation!G217+Calculation!G358)/Calculation!G44*1000 -> 116.5728189 | F17: =(Calculation!G217+Calculation!G358) -> 2179.493873 | G17: =Calculation!G44/1000 -> 18.69641562 | I17: 1.110717307
B18: LCOE, society, post tax | E18: =(Calculation!G217+Calculation!G358-Calculation!G332)/Calculation!G44*1000 -> 104.9527348 | F18: =(Calculation!G217+Calculation!G358-Calculation!G332) -> 1962.23995 | G18: =Calculation!G44/1000 -> 18.69641562 | I18: 1
B20: LCOE breakdown level 1
B22: Formula elements
B23: DEVEX | E23: =F23/G23 -> 1.30069813 | F23: =Calculation!G213 -> 24.31839283 | G23: =Calculation!$G$44/1000 -> 18.69641562 | I23: =E23/$E$33 -> 0.01239317996
B24: CAPEX | E24: =F24/G24 -> 76.9605294 | F24: =Calculation!G214 -> 1438.886044 | G24: =Calculation!$G$44/1000 -> 18.69641562 | I24: =E24/$E$33 -> 0.7332875085
B25: OPEX | E25: 19.31082084 | F25: =Calculation!G215 -> 361.0431325 | G25: =Calculation!$G$44/1000 -> 18.69641562 | I25: 0.183995404
B26: ABEX | E26: 0.8816957528 | F26: =Calculation!G216 -> 16.48455025 | G26: =Calculation!$G$44/1000 -> 18.69641562 | I26: 0.008400884023
B27: Developer premium (3,4) | E27: =F27/G27 -> 18.11907479 | F27: =Calculation!G358 -> 338.7617531 | G27: =Calculation!$G$44/1000 -> 18.69641562 | I27: 0.1726403302
B28: Tax (2) | E28: =F28/G28 -> 11.62008413 | F28: =Calculation!G332 -> 217.2539225 | G28: =Calculation!$G$44/1000 -> 18.69641562 | I28: 0.1107173068
B29: Tax (4) | E29: -11.62008413 | F29: =-Calculation!G332 -> -217.2539225 | G29: =Calculation!$G$44/1000 -> 18.69641562 | I29: -0.1107173068
A30: 1 | B30: LCOE, developer, pre-tax | E30: =SUM(E23:E26) -> 98.45374413 | F30: =SUM(F23:F26) -> 1840.73212 | G30: =Calculation!$G$44/1000 -> 18.69641562 | I30: 0.9380769765
A31: 2 | B31: LCOE, developer, post-tax | E31: =SUM(E23:E26,E28) -> 110.0738283 | F31: =SUM(F23:F26,F28) -> 2057.986043 | G31: =Calculation!$G$44/1000 -> 18.69641562 | I31: 1.048794283
A32: 3 | B32: LCOE, society, pre-tax | E32: =SUM(E23:E27) -> 116.5728189 | F32: =SUM(F23:F27) -> 2179.493873 | G32: =Calculation!$G$44/1000 -> 18.69641562 | I32: 1.110717307
A33: 4 | B33: LCOE, society, post tax | E33: =SUM(E23:E27,E29) -> 104.9527348 | F33: =SUM(F23:F27,F29) -> 1962.23995 | G33: =Calculation!$G$44/1000 -> 18.69641562 | I33: 1
B35: LCOE breakdown level 2
B37: Formula elements
B38: =IF(I_CostMethod="Manual detailed",Input!$B50,"") ->  | E38: =IF(I_CostMethod="Manual detailed",F38/G38,"") ->  | F38: =IF(I_CostMethod="Manual detailed",Calculation!G220,"") ->  | G38: =IF(I_CostMethod="Manual detailed",Calculation!$G$44/1000,"") ->  | I38: =IF(I_CostMethod="Manual detailed",E38/$E$89,"") -> 
B39: =IF(I_CostMethod="Manual detailed",Input!$B51,"") ->  | F39: =IF(I_CostMethod="Manual detailed",Calculation!G221,"") ->  | G39: =IF(I_CostMethod="Manual detailed",Calculation!$G$44/1000,"") -> 
B40: =IF(I_CostMethod="Manual detailed",Input!$B52,"") ->  | F40: =IF(I_CostMethod="Manual detailed",Calculation!G222,"") ->  | G40: =IF(I_CostMethod="Manual detailed",Calculation!$G$44/1000,"") -> 
B41: =IF(I_CostMethod="Manual detailed",Input!$B53,"") ->  | F41: =IF(I_CostMethod="Manual detailed",Calculation!G223,"") ->  | G41: =IF(I_CostMethod="Manual detailed",Calculation!$G$44/1000,"") -> 
B42: =IF(I_CostMethod="Manual detailed",Input!$B54,"") ->  | F42: =IF(I_CostMethod="Manual detailed",Calculation!G224,"") ->  | G42: =IF(I_CostMethod="Manual detailed",Calculation!$G$44/1000,"") -> 
B43: =IF(I_CostMethod="Manual detailed",Input!$B55,"") ->  | F43: =IF(I_CostMethod="Manual detailed",Calculation!G225,"") ->  | G43: =IF(I_CostMethod="Manual detailed",Calculation!$G$44/1000,"") -> 
B44: =IF(I_CostMethod="Manual detailed",Input!$B56,"") ->  | F44: =IF(I_CostMethod="Manual detailed",Calculation!G226,"") ->  | G44: =IF(I_CostMethod="Manual detailed",Calculation!$G$44/1000,"") -> 
B45: =IF(I_CostMethod="Manual detailed",Input!$B57,"") ->  | F45: =IF(I_CostMethod="Manual detailed",Calculation!G227,"") ->  | G45: =IF(I_CostMethod="Manual detailed",Calculation!$G$44/1000,"") -> 
B46: =IF(I_CostMethod="Manual detailed",Input!$B58,"") ->  | F46: =IF(I_CostMethod="Manual detailed",Calculation!G228,"") ->  | G46: =IF(I_CostMethod="Manual detailed",Calculation!$G$44/1000,"") -> 
B47: =IF(I_CostMethod="Manual detailed",Input!$B59,"") ->  | F47: =IF(I_CostMethod="Manual detailed",Calculation!G229,"") ->  | G47: =IF(I_CostMethod="Manual detailed",Calculation!$G$44/1000,"") -> 
B48: =IF(I_CostMethod="Manual detailed",Input!$B63,"") ->  | F48: =IF(I_CostMethod="Manual detailed",Calculation!G230,"") ->  | G48: =IF(I_CostMethod="Manual detailed",Calculation!$G$44/1000,"") -> 
B49: =IF(I_CostMethod="Manual detailed",Input!$B64,"") ->  | F49: =IF(I_CostMethod="Manual detailed",Calculation!G231,"") ->  | G49: =IF(I_CostMethod="Manual detailed",Calculation!$G$44/1000,"") -> 
B50: =IF(I_CostMethod="Manual detailed",Input!$B65,"") ->  | F50: =IF(I_CostMethod="Manual detailed",Calculation!G232,"") ->  | G50: =IF(I_CostMethod="Manual detailed",Calculation!$G$44/1000,"") -> 
B51: =IF(I_CostMethod="Manual detailed",Input!$B66,"") ->  | F51: =IF(I_CostMethod="Manual detailed",Calculation!G233,"") ->  | G51: =IF(I_CostMethod="Manual detailed",Calculation!$G$44/1000,"") -> 
B52: =IF(I_CostMethod="Manual detailed",Input!$B67,"") ->  | F52: =IF(I_CostMethod="Manual detailed",Calculation!G234,"") ->  | G52: =IF(I_CostMethod="Manual detailed",Calculation!$G$44/1000,"") -> 
B53: =IF(I_CostMethod="Manual detailed",Input!$B68,"") ->  | F53: =IF(I_CostMethod="Manual detailed",Calculation!G235,"") ->  | G53: =IF(I_CostMethod="Manual detailed",Calculation!$G$44/1000,"") -> 
B54: =IF(I_CostMethod="Manual detailed",Input!$B69,"") ->  | F54: =IF(I_CostMethod="Manual detailed",Calculation!G236,"") ->  | G54: =IF(I_CostMethod="Manual detailed",Calculation!$G$44/1000,"") -> 
B55: =IF(I_CostMethod="Manual detailed",Input!$B70,"") ->  | F55: =IF(I_CostMethod="Manual detailed",Calculation!G237,"") ->  | G55: =IF(I_CostMethod="Manual detailed",Calculation!$G$44/1000,"") -> 
B56: =IF(I_CostMethod="Manual detailed",Input!$B71,"") ->  | F56: =IF(I_CostMethod="Manual detailed",Calculation!G238,"") ->  | G56: =IF(I_CostMethod="Manual detailed",Calculation!$G$44/1000,"") -> 
B57: =IF(I_CostMethod="Manual detailed",Input!$B72,"") ->  | F57: =IF(I_CostMethod="Manual detailed",Calculation!G239,"") ->  | G57: =IF(I_CostMethod="Manual detailed",Calculation!$G$44/1000,"") -> 
B58: =IF(I_CostMethod="Manual detailed",Input!$B73,"") ->  | F58: =IF(I_CostMethod="Manual detailed",Calculation!G240,"") ->  | G58: =IF(I_CostMethod="Manual detailed",Calculation!$G$44/1000,"") -> 
B59: =IF(I_CostMethod="Manual detailed",Input!$B74,"") ->  | F59: =IF(I_CostMethod="Manual detailed",Calculation!G241,"") ->  | G59: =IF(I_CostMethod="Manual detailed",Calculation!$G$44/1000,"") -> 
B60: =IF(I_CostMethod="Manual detailed",Input!$B75,"") ->  | F60: =IF(I_CostMethod="Manual detailed",Calculation!G242,"") ->  | G60: =IF(I_CostMethod="Manual detailed",Calculation!$G$44/1000,"") -> 
B61: =IF(I_CostMethod="Manual detailed",Input!$B76,"") ->  | F61: =IF(I_CostMethod="Manual detailed",Calculation!G243,"") ->  | G61: =IF(I_CostMethod="Manual detailed",Calculation!$G$44/1000,"") -> 
B62: =IF(I_CostMethod="Manual detailed",Input!$B77,"") ->  | F62: =IF(I_CostMethod="Manual detailed",Calculation!G244,"") ->  | G62: =IF(I_CostMethod="Manual detailed",Calculation!$G$44/1000,"") -> 
B63: =IF(I_CostMethod="Manual detailed",Input!$B81,"") ->  | F63: =IF(I_CostMethod="Manual detailed",Calculation!G245,"") ->  | G63: =IF(I_CostMethod="Manual detailed",Calculation!$G$44/1000,"") -> 
B64: =IF(I_CostMethod="Manual detailed",Input!$B82,"") ->  | F64: =IF(I_CostMethod="Manual detailed",Calculation!G246,"") ->  | G64: =IF(I_CostMethod="Manual detailed",Calculation!$G$44/1000,"") -> 
B65: =IF(I_CostMethod="Manual detailed",Input!$B83,"") ->  | F65: =IF(I_CostMethod="Manual detailed",Calculation!G247,"") ->  | G65: =IF(I_CostMethod="Manual detailed",Calculation!$G$44/1000,"") -> 
B66: =IF(I_CostMethod="Manual detailed",Input!$B84,"") ->  | F66: =IF(I_CostMethod="Manual detailed",Calculation!G248,"") ->  | G66: =IF(I_CostMethod="Manual detailed",Calculation!$G$44/1000,"") -> 
B67: =IF(I_CostMethod="Manual detailed",Input!$B85,"") ->  | F67: =IF(I_CostMethod="Manual detailed",Calculation!G249,"") ->  | G67: =IF(I_CostMethod="Manual detailed",Calculation!$G$44/1000,"") -> 
B68: =IF(I_CostMethod="Manual detailed",Input!$B86,"") ->  | F68: =IF(I_CostMethod="Manual detailed",Calculation!G250,"") ->  | G68: =IF(I_CostMethod="Manual detailed",Calculation!$G$44/1000,"") -> 
B69: =IF(I_CostMethod="Manual detailed",Input!$B87,"") ->  | F69: =IF(I_CostMethod="Manual detailed",Calculation!G251,"") ->  | G69: =IF(I_CostMethod="Manual detailed",Calculation!$G$44/1000,"") -> 
B70: =IF(I_CostMethod="Manual detailed",Input!$B88,"") ->  | F70: =IF(I_CostMethod="Manual detailed",Calculation!G252,"") ->  | G70: =IF(I_CostMethod="Manual detailed",Calculation!$G$44/1000,"") ->  | I70: =IF(I_CostMethod="Manual detailed",E70/$E$89,"") -> 
B71: =IF(I_CostMethod="Manual detailed",Input!$B89,"") ->  | F71: =IF(I_CostMethod="Manual detailed",Calculation!G253,"") ->  | G71: =IF(I_CostMethod="Manual detailed",Calculation!$G$44/1000,"") -> 
B72: =IF(I_CostMethod="Manual detailed",Input!$B90,"") ->  | F72: =IF(I_CostMethod="Manual detailed",Calculation!G254,"") ->  | G72: =IF(I_CostMethod="Manual detailed",Calculation!$G$44/1000,"") -> 
B73: =IF(I_CostMethod="Manual detailed",Input!$B91,"") ->  | F73: =IF(I_CostMethod="Manual detailed",Calculation!G255,"") ->  | G73: =IF(I_CostMethod="Manual detailed",Calculation!$G$44/1000,"") -> 
B74: =IF(I_CostMethod="Manual detailed",Input!$B92,"") ->  | F74: =IF(I_CostMethod="Manual detailed",Calculation!G256,"") ->  | G74: =IF(I_CostMethod="Manual detailed",Calculation!$G$44/1000,"") -> 
B75: =IF(I_CostMethod="Manual detailed",Input!$B93,"") ->  | F75: =IF(I_CostMethod="Manual detailed",Calculation!G257,"") ->  | G75: =IF(I_CostMethod="Manual detailed",Calculation!$G$44/1000,"") -> 
B76: =IF(I_CostMethod="Manual detailed",Input!$B94,"") ->  | F76: =IF(I_CostMethod="Manual detailed",Calculation!G258,"") ->  | G76: =IF(I_CostMethod="Manual detailed",Calculation!$G$44/1000,"") -> 
B77: =IF(I_CostMethod="Manual detailed",Input!$B95,"") ->  | F77: =IF(I_CostMethod="Manual detailed",Calculation!G259,"") ->  | G77: =IF(I_CostMethod="Manual detailed",Calculation!$G$44/1000,"") -> 
B78: =IF(I_CostMethod="Manual detailed",Input!$B99,"") ->  | F78: =IF(I_CostMethod="Manual detailed",Calculation!G260,"") ->  | G78: =IF(I_CostMethod="Manual detailed",Calculation!$G$44/1000,"") -> 
B79: =IF(I_CostMethod="Manual detailed",Input!$B100,"") ->  | F79: =IF(I_CostMethod="Manual detailed",Calculation!G261,"") ->  | G79: =IF(I_CostMethod="Manual detailed",Calculation!$G$44/1000,"") -> 
B80: =IF(I_CostMethod="Manual detailed",Input!$B101,"") ->  | F80: =IF(I_CostMethod="Manual detailed",Calculation!G262,"") ->  | G80: =IF(I_CostMethod="Manual detailed",Calculation!$G$44/1000,"") -> 
B81: =IF(I_CostMethod="Manual detailed",Input!$B102,"") ->  | F81: =IF(I_CostMethod="Manual detailed",Calculation!G263,"") ->  | G81: =IF(I_CostMethod="Manual detailed",Calculation!$G$44/1000,"") -> 
B82: =IF(I_CostMethod="Manual detailed",Input!$B103,"") ->  | F82: =IF(I_CostMethod="Manual detailed",Calculation!G264,"") ->  | G82: =IF(I_CostMethod="Manual detailed",Calculation!$G$44/1000,"") -> 
B83: =IF(I_CostMethod="Manual detailed","Developer premium (3,4)","") ->  | F83: =IF(I_CostMethod="Manual detailed",Calculation!G358,"") ->  | G83: =IF(I_CostMethod="Manual detailed",Calculation!$G$44/1000,"") -> 
B84: =IF(I_CostMethod="Manual detailed","Tax (2)","") ->  | F84: =IF(I_CostMethod="Manual detailed",Calculation!G332,"") ->  | G84: =IF(I_CostMethod="Manual detailed",Calculation!$G$44/1000,"") -> 
B85: =IF(I_CostMethod="Manual detailed","Tax (4)","") ->  | F85: =IF(I_CostMethod="Manual detailed",-Calculation!G332,"") ->  | G85: =IF(I_CostMethod="Manual detailed",Calculation!$G$44/1000,"") -> 
A86: 1 | B86: LCOE, developer, pre-tax | E86: =SUM(E38:E82) -> 0 | F86: =SUM(F38:F82) -> 0 | G86: =IF(I_CostMethod="Manual detailed",Calculation!$G$44/1000,"") -> 
A87: 2 | B87: LCOE, developer, post-tax | E87: =SUM(E38:E82,E84) -> 0 | F87: =SUM(F38:F82,F84) -> 0 | G87: =IF(I_CostMethod="Manual detailed",Calculation!$G$44/1000,"") -> 
A88: 3 | B88: LCOE, society, pre-tax | E88: =SUM(E38:E83) -> 0 | F88: =SUM(F38:F83) -> 0 | G88: =IF(I_CostMethod="Manual detailed",Calculation!$G$44/1000,"") -> 
A89: 4 | B89: LCOE, society, post tax | E89: =SUM(E38:E83,E85) -> 0 | F89: =SUM(F38:F83,F85) -> 0 | G89: =IF(I_CostMethod="Manual detailed",Calculation!$G$44/1000,"") -> 

Sheet Appendix -->

Sheet Lists
B1: Lists
C3: Description | D3: List of all possible price basis | E3: List of possible output price basis | F3: List of possible foreign exchange | G3: List of possible tax depreciation profiles | H3: List of possible cost input methods | I3: List of possible earnings input methods
C4: Position start | D4: L_PB_Start | E4: L_PBO_Start | F4: L_FX_Start | G4: L_TDP_Start | H4: L_CIM_Start | I4: L_EIM_Start
C5: List name | D5: L_PB | E5: L_PBO | F5: L_FX | G5: L_TDP | H5: L_CIM | I5: L_EIM
B6: ID | C6: Title | D6: Price basis | E6: Price basis output | F6: Currency | G6: Tax depreciation profile | H6: Cost input method | I6: Earnings input method
B7: =ROW()-6 -> 1 | D7: N | E7: R2008 | F7: EUR | G7: Linear | H7: Manual simple | I7: % of investment
B8: =ROW()-6 -> 2 | D8: R2008 | E8: R2009 | F8: DKK | G8: Declining balance | H8: Manual detailed | I8: Manual
B9: 3 | D9: R2009 | E9: R2010 | F9: GBP | G9: Immediate
B10: 4 | D10: R2010 | E10: R2011
B11: 5 | D11: R2011 | E11: R2012
B12: 6 | D12: R2012 | E12: R2013
B13: 7 | D13: R2013 | E13: R2014
B14: 8 | D14: R2014 | E14: R2015
B15: 9 | D15: R2015 | E15: R2016
B16: 10 | D16: R2016 | E16: R2017
B17: 11 | D17: R2017 | E17: R2018
B18: 12 | D18: R2018 | E18: R2019
B19: 13 | D19: R2019 | E19: R2020
B20: 14 | D20: R2020
B21: 15
B22: 16
B23: 17
B24: 18
B25: 19
B26: 20
B27: 21
B28: 22
B29: 23
B30: 24
B31: 25
B32: 26
B33: 27
B34: 28
B35: 29
B36: 30
B37: 31
B38: 32
B39: 33
B40: 34
B41: 35
B42: 36
B43: 37
B44: 38
B45: 39
B46: 40
B47: 41
B48: 42
B49: 43
B50: 44
B51: 45
B52: 46
B53: 47
B54: 48
B55: 49
B56: 50
